Organisation Code,Organisation Label,Effective Date,Organisational Unit,Service Division Label,Category Internal Name,Purpose,Detailed Expenditure Code,Payment Date,Transaction Number,Irrecoverable VAT Amount,Amount,Capital Or Revenue,Benificiary Name,Procurement Card
Http://opendatacommunities.org/id/metropolitan-district-council/leeds,Leeds City Council,31/07/2017,Communities and Environment,Benefits  Wlefare And Poverty  ,Supplies and Services,Telephones,213,06/06/2017,1707-00001,0.00,80.00,R,(Aq) Limited,Yes
Http://opendatacommunities.org/id/metropolitan-district-council/leeds,Leeds City Council,31/07/2017,Environment & Housing,Leeds Building Services,Supplies and Services,Operational Materials,205,07/07/2017,1707-00002,0.00,27.17,R,A Andrews & Sons (Marbles & Tiles),No
Http://opendatacommunities.org/id/metropolitan-district-council/leeds,Leeds City Council,31/07/2017,Children and Families,Learning Skills & Universal,#N/A,Teaching Furniture & Equipment,207,07/07/2017,1707-00003,0.00,695.00,R,A Ash,No
Http://opendatacommunities.org/id/metropolitan-district-council/leeds,Leeds City Council,31/07/2017,Environment & Housing,Parks and Countryside,Supplies and Services,Other Hired And Contracted Services,265,04/07/2017,1707-00004,0.00,135.00,R,A B Jones,No
Http://opendatacommunities.org/id/metropolitan-district-council/leeds,Leeds City Council,31/07/2017,City Development,Libraries  Arts & Heritage,Supplies and Services,Bought In Professional Services,277,28/07/2017,1707-00005,0.00,300.00,R,A B Jones,No
Http://opendatacommunities.org/id/metropolitan-district-council/leeds,Leeds City Council,31/07/2017,City Development,Libraries  Arts & Heritage,Supplies and Services,Operational Materials,205,28/07/2017,1707-00006,0.00,3723.64,R,A C Entertainment Technologies Ltd,No
Http://opendatacommunities.org/id/metropolitan-district-council/leeds,Leeds City Council,31/07/2017,Children and Families,Safeguarding Targeted & Specialist,Third Party Payments,Services Rendered By Other Organisations,511,21/07/2017,1707-00007,0.00,163.80,R,REDACTED PERSONAL DATA,No
Http://opendatacommunities.org/id/metropolitan-district-council/leeds,Leeds City Council,31/07/2017,Children and Families,Safeguarding Targeted & Specialist,Third Party Payments,Services Rendered By Other Organisations,511,14/07/2017,1707-00008,0.00,244.42,R,A Clarkson,No
Http://opendatacommunities.org/id/metropolitan-district-council/leeds,Leeds City Council,31/07/2017,Children and Families,Safeguarding Targeted & Specialist,Third Party Payments,Services Rendered By Other Organisations,511,21/07/2017,1707-00009,0.00,163.80,R,A Clarkson,No
Http://opendatacommunities.org/id/metropolitan-district-council/leeds,Leeds City Council,31/07/2017,Children and Families,Learning Skills & Universal,Supplies and Services,Bought In Professional Services,277,19/07/2017,1707-00010,0.00,300.00,R,A Craven-Griffiths,No
Http://opendatacommunities.org/id/metropolitan-district-council/leeds,Leeds City Council,31/07/2017,Environment & Housing,Parks and Countryside,Supplies and Services,Bought In Professional Services,277,27/07/2017,1707-00011,0.00,2349.07,R,REDACTED COMMERCIAL CONFIDENTIALITY,No
Http://opendatacommunities.org/id/metropolitan-district-council/leeds,Leeds City Council,31/07/2017,Children and Families,Safeguarding Targeted & Specialist,Third Party Payments,Services Rendered By Voluntary Sector,505,14/07/2017,1707-00012,0.00,1378.65,R,A E Speight,No
Http://opendatacommunities.org/id/metropolitan-district-council/leeds,Leeds City Council,31/07/2017,Children and Families,Safeguarding Targeted & Specialist,Third Party Payments,Services Rendered By Voluntary Sector,505,21/07/2017,1707-00013,0.00,620.10,R,A E Speight,No
Http://opendatacommunities.org/id/metropolitan-district-council/leeds,Leeds City Council,31/07/2017,Children and Families,Safeguarding Targeted & Specialist,Third Party Payments,Services Rendered By Voluntary Sector,505,21/07/2017,1707-00014,0.00,2948.40,R,A E Speight,No
Http://opendatacommunities.org/id/metropolitan-district-council/leeds,Leeds City Council,31/07/2017,City Development,Highways,Capital,Construction,3,12/07/2017,1707-00015,0.00,281941.11,C,A E Yates Ltd,No
Http://opendatacommunities.org/id/metropolitan-district-council/leeds,Leeds City Council,31/07/2017,Children and Families,Safeguarding Targeted & Specialist,Third Party Payments,Services Rendered By Other Organisations,511,21/07/2017,1707-00016,0.00,163.80,R,A Foley,No
Http://opendatacommunities.org/id/metropolitan-district-council/leeds,Leeds City Council,31/07/2017,Resources and Housing,HRA Housing Leeds,Capital,Other Costs,7,20/07/2017,1707-00017,0.00,100.00,C,REDACTED PERSONAL DATA,No
Http://opendatacommunities.org/id/metropolitan-district-council/leeds,Leeds City Council,31/07/2017,Children and Families,Safeguarding Targeted & Specialist,Third Party Payments,Services Rendered By Other Organisations,511,14/07/2017,1707-00018,0.00,196.95,R,A Green,No
Http://opendatacommunities.org/id/metropolitan-district-council/leeds,Leeds City Council,31/07/2017,Children and Families,Safeguarding Targeted & Specialist,Third Party Payments,Services Rendered By Other Organisations,511,21/07/2017,1707-00019,0.00,163.80,R,A Green,No
Http://opendatacommunities.org/id/metropolitan-district-council/leeds,Leeds City Council,31/07/2017,Children and Families,Safeguarding Targeted & Specialist,Third Party Payments,Services Rendered By Other Organisations,511,21/07/2017,1707-00020,0.00,273.00,R,A Hodgson,No
Http://opendatacommunities.org/id/metropolitan-district-council/leeds,Leeds City Council,31/07/2017,Environment & Housing,Leeds Building Services,Supplies and Services,Operational Materials,205,06/07/2017,1707-00021,0.00,54.15,R,A J H  Pump Supply & Repair Ltd,No
Http://opendatacommunities.org/id/metropolitan-district-council/leeds,Leeds City Council,31/07/2017,Environment & Housing,Leeds Building Services,Supplies and Services,Operational Materials,205,06/07/2017,1707-00022,0.00,72.45,R,A J H  Pump Supply & Repair Ltd,No
Http://opendatacommunities.org/id/metropolitan-district-council/leeds,Leeds City Council,31/07/2017,Environment & Housing,Leeds Building Services,Supplies and Services,Operational Furniture And Equipment,203,06/07/2017,1707-00023,0.00,36.00,R,A J H  Pump Supply & Repair Ltd,No
Http://opendatacommunities.org/id/metropolitan-district-council/leeds,Leeds City Council,31/07/2017,Environment & Housing,Leeds Building Services,Supplies and Services,Operational Materials,205,06/07/2017,1707-00024,0.00,38.89,R,A J H  Pump Supply & Repair Ltd,No
Http://opendatacommunities.org/id/metropolitan-district-council/leeds,Leeds City Council,31/07/2017,Environment & Housing,Leeds Building Services,Supplies and Services,Operational Materials,205,06/07/2017,1707-00025,0.00,7.00,R,A J H  Pump Supply & Repair Ltd,No
Http://opendatacommunities.org/id/metropolitan-district-council/leeds,Leeds City Council,31/07/2017,Environment & Housing,Leeds Building Services,Supplies and Services,Operational Materials,205,06/07/2017,1707-00026,0.00,81.14,R,A J H  Pump Supply & Repair Ltd,No
Http://opendatacommunities.org/id/metropolitan-district-council/leeds,Leeds City Council,31/07/2017,Environment & Housing,Leeds Building Services,Supplies and Services,Operational Materials,205,06/07/2017,1707-00027,0.00,21.91,R,A J H  Pump Supply & Repair Ltd,No
Http://opendatacommunities.org/id/metropolitan-district-council/leeds,Leeds City Council,31/07/2017,Environment & Housing,Leeds Building Services,Supplies and Services,Operational Materials,205,06/07/2017,1707-00028,0.00,135.00,R,A J H  Pump Supply & Repair Ltd,No
Http://opendatacommunities.org/id/metropolitan-district-council/leeds,Leeds City Council,31/07/2017,Environment & Housing,Leeds Building Services,Supplies and Services,Operational Materials,205,06/07/2017,1707-00029,0.00,124.95,R,A J H  Pump Supply & Repair Ltd,No
Http://opendatacommunities.org/id/metropolitan-district-council/leeds,Leeds City Council,31/07/2017,Environment & Housing,Leeds Building Services,Supplies and Services,Operational Materials,205,06/07/2017,1707-00030,0.00,130.58,R,A J H  Pump Supply & Repair Ltd,No
Http://opendatacommunities.org/id/metropolitan-district-council/leeds,Leeds City Council,31/07/2017,Environment & Housing,Leeds Building Services,Supplies and Services,Operational Materials,205,06/07/2017,1707-00031,0.00,23.05,R,A J H  Pump Supply & Repair Ltd,No
Http://opendatacommunities.org/id/metropolitan-district-council/leeds,Leeds City Council,31/07/2017,Environment & Housing,Leeds Building Services,Supplies and Services,Operational Materials,205,06/07/2017,1707-00032,0.00,178.50,R,A J H  Pump Supply & Repair Ltd,No
Http://opendatacommunities.org/id/metropolitan-district-council/leeds,Leeds City Council,31/07/2017,Environment & Housing,Leeds Building Services,Supplies and Services,Operational Materials,205,06/07/2017,1707-00033,0.00,18.45,R,A J H  Pump Supply & Repair Ltd,No
Http://opendatacommunities.org/id/metropolitan-district-council/leeds,Leeds City Council,31/07/2017,Environment & Housing,Leeds Building Services,Supplies and Services,Operational Materials,205,06/07/2017,1707-00034,0.00,348.00,R,A J H  Pump Supply & Repair Ltd,No
Http://opendatacommunities.org/id/metropolitan-district-council/leeds,Leeds City Council,31/07/2017,Environment & Housing,Leeds Building Services,Supplies and Services,Operational Materials,205,06/07/2017,1707-00035,0.00,253.48,R,A J H  Pump Supply & Repair Ltd,No
Http://opendatacommunities.org/id/metropolitan-district-council/leeds,Leeds City Council,31/07/2017,Environment & Housing,Leeds Building Services,Supplies and Services,Operational Materials,205,06/07/2017,1707-00036,0.00,95.12,R,A J H  Pump Supply & Repair Ltd,No
Http://opendatacommunities.org/id/metropolitan-district-council/leeds,Leeds City Council,31/07/2017,Environment & Housing,Leeds Building Services,Supplies and Services,Operational Materials,205,06/07/2017,1707-00037,0.00,85.03,R,A J H  Pump Supply & Repair Ltd,No
Http://opendatacommunities.org/id/metropolitan-district-council/leeds,Leeds City Council,31/07/2017,Environment & Housing,Leeds Building Services,Supplies and Services,Operational Materials,205,06/07/2017,1707-00038,0.00,34.25,R,A J H  Pump Supply & Repair Ltd,No
Http://opendatacommunities.org/id/metropolitan-district-council/leeds,Leeds City Council,31/07/2017,Environment & Housing,Leeds Building Services,Supplies and Services,Operational Materials,205,06/07/2017,1707-00039,0.00,15.90,R,A J H  Pump Supply & Repair Ltd,No
Http://opendatacommunities.org/id/metropolitan-district-council/leeds,Leeds City Council,31/07/2017,Environment & Housing,Leeds Building Services,Supplies and Services,Operational Materials,205,06/07/2017,1707-00040,0.00,19.45,R,A J H  Pump Supply & Repair Ltd,No
Http://opendatacommunities.org/id/metropolitan-district-council/leeds,Leeds City Council,31/07/2017,Environment & Housing,Leeds Building Services,Supplies and Services,Operational Materials,205,06/07/2017,1707-00041,0.00,333.50,R,A J H  Pump Supply & Repair Ltd,No
Http://opendatacommunities.org/id/metropolitan-district-council/leeds,Leeds City Council,31/07/2017,Environment & Housing,Leeds Building Services,Supplies and Services,Operational Materials,205,06/07/2017,1707-00042,0.00,323.45,R,A J H  Pump Supply & Repair Ltd,No
Http://opendatacommunities.org/id/metropolitan-district-council/leeds,Leeds City Council,31/07/2017,Environment & Housing,Leeds Building Services,Supplies and Services,Operational Materials,205,06/07/2017,1707-00043,0.00,80.97,R,A J H  Pump Supply & Repair Ltd,No
Http://opendatacommunities.org/id/metropolitan-district-council/leeds,Leeds City Council,31/07/2017,Environment & Housing,Leeds Building Services,Supplies and Services,Operational Materials,205,06/07/2017,1707-00044,0.00,493.50,R,A J H  Pump Supply & Repair Ltd,No
Http://opendatacommunities.org/id/metropolitan-district-council/leeds,Leeds City Council,31/07/2017,Environment & Housing,Leeds Building Services,Supplies and Services,Operational Materials,205,06/07/2017,1707-00045,0.00,25.90,R,A J H  Pump Supply & Repair Ltd,No
Http://opendatacommunities.org/id/metropolitan-district-council/leeds,Leeds City Council,31/07/2017,Environment & Housing,Leeds Building Services,Supplies and Services,Operational Materials,205,06/07/2017,1707-00046,0.00,12.95,R,A J H  Pump Supply & Repair Ltd,No
Http://opendatacommunities.org/id/metropolitan-district-council/leeds,Leeds City Council,31/07/2017,Environment & Housing,Leeds Building Services,Supplies and Services,Operational Materials,205,06/07/2017,1707-00047,0.00,434.45,R,A J H  Pump Supply & Repair Ltd,No
Http://opendatacommunities.org/id/metropolitan-district-council/leeds,Leeds City Council,31/07/2017,Environment & Housing,Leeds Building Services,Supplies and Services,Operational Materials,205,06/07/2017,1707-00048,0.00,19.50,R,A J H  Pump Supply & Repair Ltd,No
Http://opendatacommunities.org/id/metropolitan-district-council/leeds,Leeds City Council,31/07/2017,Environment & Housing,Leeds Building Services,Supplies and Services,Operational Materials,205,06/07/2017,1707-00049,0.00,210.00,R,A J H  Pump Supply & Repair Ltd,No
Http://opendatacommunities.org/id/metropolitan-district-council/leeds,Leeds City Council,31/07/2017,Environment & Housing,Leeds Building Services,Supplies and Services,Operational Materials,205,06/07/2017,1707-00050,0.00,84.92,R,A J H  Pump Supply & Repair Ltd,No
Http://opendatacommunities.org/id/metropolitan-district-council/leeds,Leeds City Council,31/07/2017,Environment & Housing,Leeds Building Services,Supplies and Services,Operational Materials,205,06/07/2017,1707-00051,0.00,53.85,R,A J H  Pump Supply & Repair Ltd,No
Http://opendatacommunities.org/id/metropolitan-district-council/leeds,Leeds City Council,31/07/2017,Environment & Housing,Leeds Building Services,Supplies and Services,Operational Materials,205,06/07/2017,1707-00052,0.00,39.00,R,A J H  Pump Supply & Repair Ltd,No
Http://opendatacommunities.org/id/metropolitan-district-council/leeds,Leeds City Council,31/07/2017,Environment & Housing,Leeds Building Services,Supplies and Services,Operational Materials,205,06/07/2017,1707-00053,0.00,208.40,R,A J H  Pump Supply & Repair Ltd,No
Http://opendatacommunities.org/id/metropolitan-district-council/leeds,Leeds City Council,31/07/2017,Environment & Housing,Leeds Building Services,Supplies and Services,Operational Materials,205,07/07/2017,1707-00054,0.00,20.90,R,A J H  Pump Supply & Repair Ltd,No
Http://opendatacommunities.org/id/metropolitan-district-council/leeds,Leeds City Council,31/07/2017,Environment & Housing,Leeds Building Services,Supplies and Services,Operational Materials,205,07/07/2017,1707-00055,0.00,109.00,R,A J H  Pump Supply & Repair Ltd,No
Http://opendatacommunities.org/id/metropolitan-district-council/leeds,Leeds City Council,31/07/2017,Environment & Housing,Leeds Building Services,Supplies and Services,Operational Materials,205,07/07/2017,1707-00056,0.00,316.10,R,A J H  Pump Supply & Repair Ltd,No
Http://opendatacommunities.org/id/metropolitan-district-council/leeds,Leeds City Council,31/07/2017,Environment & Housing,Leeds Building Services,Supplies and Services,Operational Materials,205,07/07/2017,1707-00057,0.00,110.45,R,A J H  Pump Supply & Repair Ltd,No
Http://opendatacommunities.org/id/metropolitan-district-council/leeds,Leeds City Council,31/07/2017,Environment & Housing,Leeds Building Services,Supplies and Services,Operational Materials,205,07/07/2017,1707-00058,0.00,21.45,R,A J H  Pump Supply & Repair Ltd,No
Http://opendatacommunities.org/id/metropolitan-district-council/leeds,Leeds City Council,31/07/2017,Environment & Housing,Leeds Building Services,Supplies and Services,Operational Materials,205,07/07/2017,1707-00059,0.00,79.89,R,A J H  Pump Supply & Repair Ltd,No
Http://opendatacommunities.org/id/metropolitan-district-council/leeds,Leeds City Council,31/07/2017,Environment & Housing,Leeds Building Services,Supplies and Services,Operational Materials,205,07/07/2017,1707-00060,0.00,19.45,R,A J H  Pump Supply & Repair Ltd,No
Http://opendatacommunities.org/id/metropolitan-district-council/leeds,Leeds City Council,31/07/2017,Environment & Housing,Leeds Building Services,Supplies and Services,Operational Materials,205,07/07/2017,1707-00061,0.00,98.81,R,A J H  Pump Supply & Repair Ltd,No
Http://opendatacommunities.org/id/metropolitan-district-council/leeds,Leeds City Council,31/07/2017,Environment & Housing,Leeds Building Services,Supplies and Services,Operational Materials,205,07/07/2017,1707-00062,0.00,250.00,R,A J H  Pump Supply & Repair Ltd,No
Http://opendatacommunities.org/id/metropolitan-district-council/leeds,Leeds City Council,31/07/2017,Environment & Housing,Leeds Building Services,Supplies and Services,Operational Materials,205,07/07/2017,1707-00063,0.00,144.40,R,A J H  Pump Supply & Repair Ltd,No
Http://opendatacommunities.org/id/metropolitan-district-council/leeds,Leeds City Council,31/07/2017,Environment & Housing,Leeds Building Services,Supplies and Services,Operational Materials,205,07/07/2017,1707-00064,0.00,42.24,R,A J H  Pump Supply & Repair Ltd,No
Http://opendatacommunities.org/id/metropolitan-district-council/leeds,Leeds City Council,31/07/2017,Environment & Housing,Leeds Building Services,Supplies and Services,Operational Materials,205,07/07/2017,1707-00065,0.00,139.00,R,A J H  Pump Supply & Repair Ltd,No
Http://opendatacommunities.org/id/metropolitan-district-council/leeds,Leeds City Council,31/07/2017,Environment & Housing,Leeds Building Services,Supplies and Services,Operational Materials,205,14/07/2017,1707-00066,0.00,798.00,R,A J H  Pump Supply & Repair Ltd,No
Http://opendatacommunities.org/id/metropolitan-district-council/leeds,Leeds City Council,31/07/2017,Environment & Housing,Leeds Building Services,Supplies and Services,Operational Materials,205,21/07/2017,1707-00067,0.00,962.50,R,A J H  Pump Supply & Repair Ltd,No
Http://opendatacommunities.org/id/metropolitan-district-council/leeds,Leeds City Council,31/07/2017,Environment & Housing,Leeds Building Services,Supplies and Services,Operational Materials,205,21/07/2017,1707-00068,0.00,119.50,R,A J H  Pump Supply & Repair Ltd,No
Http://opendatacommunities.org/id/metropolitan-district-council/leeds,Leeds City Council,31/07/2017,Environment & Housing,Leeds Building Services,Supplies and Services,Operational Materials,205,21/07/2017,1707-00069,0.00,38.00,R,A J H  Pump Supply & Repair Ltd,No
Http://opendatacommunities.org/id/metropolitan-district-council/leeds,Leeds City Council,31/07/2017,Environment & Housing,Leeds Building Services,Supplies and Services,Operational Materials,205,21/07/2017,1707-00070,0.00,129.82,R,A J H  Pump Supply & Repair Ltd,No
Http://opendatacommunities.org/id/metropolitan-district-council/leeds,Leeds City Council,31/07/2017,Environment & Housing,Leeds Building Services,Supplies and Services,Operational Materials,205,21/07/2017,1707-00071,0.00,81.11,R,A J H  Pump Supply & Repair Ltd,No
Http://opendatacommunities.org/id/metropolitan-district-council/leeds,Leeds City Council,31/07/2017,Environment & Housing,Leeds Building Services,Supplies and Services,Operational Materials,205,21/07/2017,1707-00072,0.00,210.95,R,A J H  Pump Supply & Repair Ltd,No
Http://opendatacommunities.org/id/metropolitan-district-council/leeds,Leeds City Council,31/07/2017,Environment & Housing,Leeds Building Services,Supplies and Services,Operational Materials,205,21/07/2017,1707-00073,0.00,38.00,R,A J H  Pump Supply & Repair Ltd,No
Http://opendatacommunities.org/id/metropolitan-district-council/leeds,Leeds City Council,31/07/2017,Environment & Housing,Leeds Building Services,Supplies and Services,Operational Materials,205,21/07/2017,1707-00074,0.00,705.25,R,A J H  Pump Supply & Repair Ltd,No
Http://opendatacommunities.org/id/metropolitan-district-council/leeds,Leeds City Council,31/07/2017,Environment & Housing,Leeds Building Services,Supplies and Services,Operational Materials,205,21/07/2017,1707-00075,0.00,118.02,R,A J H  Pump Supply & Repair Ltd,No
Http://opendatacommunities.org/id/metropolitan-district-council/leeds,Leeds City Council,31/07/2017,Environment & Housing,Leeds Building Services,Supplies and Services,Operational Materials,205,21/07/2017,1707-00076,0.00,55.39,R,A J H  Pump Supply & Repair Ltd,No
Http://opendatacommunities.org/id/metropolitan-district-council/leeds,Leeds City Council,31/07/2017,Environment & Housing,Leeds Building Services,Supplies and Services,Operational Materials,205,21/07/2017,1707-00077,0.00,73.55,R,A J H  Pump Supply & Repair Ltd,No
Http://opendatacommunities.org/id/metropolitan-district-council/leeds,Leeds City Council,31/07/2017,Environment & Housing,Leeds Building Services,Supplies and Services,Operational Materials,205,21/07/2017,1707-00078,0.00,29.95,R,A J H  Pump Supply & Repair Ltd,No
Http://opendatacommunities.org/id/metropolitan-district-council/leeds,Leeds City Council,31/07/2017,Environment & Housing,Leeds Building Services,Supplies and Services,Operational Materials,205,21/07/2017,1707-00079,0.00,114.24,R,A J H  Pump Supply & Repair Ltd,No
Http://opendatacommunities.org/id/metropolitan-district-council/leeds,Leeds City Council,31/07/2017,Environment & Housing,Leeds Building Services,Supplies and Services,Operational Materials,205,21/07/2017,1707-00080,0.00,105.00,R,A J H  Pump Supply & Repair Ltd,No
Http://opendatacommunities.org/id/metropolitan-district-council/leeds,Leeds City Council,31/07/2017,Environment & Housing,Leeds Building Services,Supplies and Services,Operational Materials,205,21/07/2017,1707-00081,0.00,117.60,R,A J H  Pump Supply & Repair Ltd,No
Http://opendatacommunities.org/id/metropolitan-district-council/leeds,Leeds City Council,31/07/2017,Environment & Housing,Leeds Building Services,Supplies and Services,Operational Materials,205,21/07/2017,1707-00082,0.00,38.45,R,A J H  Pump Supply & Repair Ltd,No
Http://opendatacommunities.org/id/metropolitan-district-council/leeds,Leeds City Council,31/07/2017,Environment & Housing,Leeds Building Services,Supplies and Services,Operational Materials,205,21/07/2017,1707-00083,0.00,11.14,R,A J H  Pump Supply & Repair Ltd,No
Http://opendatacommunities.org/id/metropolitan-district-council/leeds,Leeds City Council,31/07/2017,Environment & Housing,Leeds Building Services,Supplies and Services,Operational Materials,205,21/07/2017,1707-00084,0.00,179.72,R,A J H  Pump Supply & Repair Ltd,No
Http://opendatacommunities.org/id/metropolitan-district-council/leeds,Leeds City Council,31/07/2017,Environment & Housing,Leeds Building Services,Supplies and Services,Operational Materials,205,21/07/2017,1707-00085,0.00,150.00,R,A J H  Pump Supply & Repair Ltd,No
Http://opendatacommunities.org/id/metropolitan-district-council/leeds,Leeds City Council,31/07/2017,Environment & Housing,Leeds Building Services,Supplies and Services,Operational Materials,205,21/07/2017,1707-00086,0.00,858.64,R,A J H  Pump Supply & Repair Ltd,No
Http://opendatacommunities.org/id/metropolitan-district-council/leeds,Leeds City Council,31/07/2017,Environment & Housing,Leeds Building Services,Supplies and Services,Operational Materials,205,21/07/2017,1707-00087,0.00,76.00,R,A J H  Pump Supply & Repair Ltd,No
Http://opendatacommunities.org/id/metropolitan-district-council/leeds,Leeds City Council,31/07/2017,Environment & Housing,Leeds Building Services,Supplies and Services,Operational Furniture And Equipment,203,21/07/2017,1707-00088,0.00,175.00,R,A J H  Pump Supply & Repair Ltd,No
Http://opendatacommunities.org/id/metropolitan-district-council/leeds,Leeds City Council,31/07/2017,Environment & Housing,Leeds Building Services,Supplies and Services,Operational Materials,205,21/07/2017,1707-00089,0.00,659.99,R,A J H  Pump Supply & Repair Ltd,No
Http://opendatacommunities.org/id/metropolitan-district-council/leeds,Leeds City Council,31/07/2017,Environment & Housing,Leeds Building Services,Supplies and Services,Operational Materials,205,21/07/2017,1707-00090,0.00,268.10,R,A J H  Pump Supply & Repair Ltd,No
Http://opendatacommunities.org/id/metropolitan-district-council/leeds,Leeds City Council,31/07/2017,Environment & Housing,Leeds Building Services,Supplies and Services,Operational Materials,205,21/07/2017,1707-00091,0.00,880.00,R,A J H  Pump Supply & Repair Ltd,No
Http://opendatacommunities.org/id/metropolitan-district-council/leeds,Leeds City Council,31/07/2017,Environment & Housing,Leeds Building Services,Supplies and Services,Operational Materials,205,25/07/2017,1707-00092,0.00,14322.00,R,A J H  Pump Supply & Repair Ltd,No
Http://opendatacommunities.org/id/metropolitan-district-council/leeds,Leeds City Council,31/07/2017,Communities and Environment,Customer Access,Supplies and Services,Resaleable Materials,204,07/07/2017,1707-00093,0.00,10.08,R,A J Promotions,No
Http://opendatacommunities.org/id/metropolitan-district-council/leeds,Leeds City Council,31/07/2017,City Development,Libraries  Arts & Heritage,Supplies and Services,Art Galleries Total Stores,003,07/07/2017,1707-00094,0.00,98.00,R,A J Promotions,No
Http://opendatacommunities.org/id/metropolitan-district-council/leeds,Leeds City Council,31/07/2017,Environment & Housing,Parks and Countryside,Supplies and Services,Resaleable Materials,204,12/07/2017,1707-00095,0.00,720.00,R,A J Promotions,No
Http://opendatacommunities.org/id/metropolitan-district-council/leeds,Leeds City Council,31/07/2017,City Development,Libraries  Arts & Heritage,Supplies and Services,Art Galleries Total Stores,003,14/07/2017,1707-00096,0.00,42.00,R,A J Promotions,No
Http://opendatacommunities.org/id/metropolitan-district-council/leeds,Leeds City Council,31/07/2017,Environment & Housing,Parks and Countryside,Supplies and Services,Resaleable Materials,204,19/07/2017,1707-00097,0.00,1017.58,R,A J Promotions,No
Http://opendatacommunities.org/id/metropolitan-district-council/leeds,Leeds City Council,31/07/2017,Environment & Housing,Parks and Countryside,Supplies and Services,Resaleable Materials,204,21/07/2017,1707-00098,0.00,740.00,R,A J Promotions,No
Http://opendatacommunities.org/id/metropolitan-district-council/leeds,Leeds City Council,31/07/2017,Environment & Housing,Parks and Countryside,Supplies and Services,Resaleable Materials,204,26/07/2017,1707-00099,0.00,540.00,R,A J Promotions,No
Http://opendatacommunities.org/id/metropolitan-district-council/leeds,Leeds City Council,31/07/2017,Communities and Environment,Customer Access,Supplies and Services,Operational Materials,205,26/07/2017,1707-00100,0.00,79.00,R,A J Promotions,No
Http://opendatacommunities.org/id/metropolitan-district-council/leeds,Leeds City Council,31/07/2017,Environment & Housing,Parks and Countryside,Supplies and Services,Resaleable Materials,204,28/07/2017,1707-00101,0.00,33.00,R,A J Promotions,No
Http://opendatacommunities.org/id/metropolitan-district-council/leeds,Leeds City Council,31/07/2017,City Development,Libraries  Arts & Heritage,Supplies and Services,Other Hired And Contracted Services,265,10/07/2017,1707-00102,0.00,460.00,R,REDACTED PERSONAL DATA,No
Http://opendatacommunities.org/id/metropolitan-district-council/leeds,Leeds City Council,31/07/2017,Children and Families,Safeguarding Targeted & Specialist,Third Party Payments,Services Rendered By Other Organisations,511,21/07/2017,1707-00103,0.00,1171.80,R,A K Walsh,No
Http://opendatacommunities.org/id/metropolitan-district-council/leeds,Leeds City Council,31/07/2017,Children and Families,Safeguarding Targeted & Specialist,Third Party Payments,Services Rendered By Other Organisations,511,21/07/2017,1707-00104,0.00,405.00,R,A Little Something Extra Ltd,No
Http://opendatacommunities.org/id/metropolitan-district-council/leeds,Leeds City Council,31/07/2017,Children and Families,Safeguarding Targeted & Specialist,Third Party Payments,Services Rendered By Other Organisations,511,21/07/2017,1707-00105,0.00,600.00,R,A Little Something Extra Ltd,No
Http://opendatacommunities.org/id/metropolitan-district-council/leeds,Leeds City Council,31/07/2017,Children and Families,Safeguarding Targeted & Specialist,Third Party Payments,Services Rendered By Voluntary Sector,505,26/07/2017,1707-00106,0.00,540.00,R,A Little Something Extra Ltd,No
Http://opendatacommunities.org/id/metropolitan-district-council/leeds,Leeds City Council,31/07/2017,Children and Families,Safeguarding Targeted & Specialist,Third Party Payments,Services Rendered By Other Organisations,511,14/07/2017,1707-00107,0.00,244.42,R,A Longbottom,No
Http://opendatacommunities.org/id/metropolitan-district-council/leeds,Leeds City Council,31/07/2017,Children and Families,Safeguarding Targeted & Specialist,Third Party Payments,Services Rendered By Other Organisations,511,21/07/2017,1707-00108,0.00,203.28,R,A Longbottom,No
Http://opendatacommunities.org/id/metropolitan-district-council/leeds,Leeds City Council,31/07/2017,Environment & Housing,Statutory Housing,Supplies and Services,Other Hired And Contracted Services,265,27/07/2017,1707-00109,0.00,575.00,R,A M Gardening Services,No
Http://opendatacommunities.org/id/metropolitan-district-council/leeds,Leeds City Council,31/07/2017,Communities and Environment,Customer Access,Supplies and Services,Other Hired And Contracted Services,265,05/07/2017,1707-00110,0.00,1024.62,R,A Namaki,No
Http://opendatacommunities.org/id/metropolitan-district-council/leeds,Leeds City Council,31/07/2017,Resources and Housing,HRA Housing Leeds,Capital,Other Costs,7,20/07/2017,1707-00111,0.00,60.00,C,REDACTED PERSONAL DATA,No
Http://opendatacommunities.org/id/metropolitan-district-council/leeds,Leeds City Council,31/07/2017,City Development,Libraries  Arts & Heritage,Supplies and Services,Operational Materials,205,19/07/2017,1707-00112,0.00,2526.30,R,A P Fitzpatrick Fine Art Materials,No
Http://opendatacommunities.org/id/metropolitan-district-council/leeds,Leeds City Council,31/07/2017,City Development,Libraries  Arts & Heritage,Supplies and Services,Postages,212,19/07/2017,1707-00113,0.00,12.50,R,A P Fitzpatrick Fine Art Materials,No
Http://opendatacommunities.org/id/metropolitan-district-council/leeds,Leeds City Council,31/07/2017,City Development,Libraries  Arts & Heritage,Supplies and Services,Operational Materials,205,26/07/2017,1707-00114,0.00,193.00,R,A P Fitzpatrick Fine Art Materials,No
Http://opendatacommunities.org/id/metropolitan-district-council/leeds,Leeds City Council,31/07/2017,Adults and Health,Public Health,Third Party Payments,Public Health Commissioned Services,526,27/07/2017,1707-00115,0.00,218.95,R,A P Health,No
Http://opendatacommunities.org/id/metropolitan-district-council/leeds,Leeds City Council,31/07/2017,Children and Families,Safeguarding Targeted & Specialist,Third Party Payments,Allowances,546,26/07/2017,1707-00116,0.00,827.74,R,REDACTED PERSONAL DATA,No
Http://opendatacommunities.org/id/metropolitan-district-council/leeds,Leeds City Council,31/07/2017,Children and Families,Safeguarding Targeted & Specialist,Third Party Payments,Allowances,546,27/07/2017,1707-00117,0.00,316.60,R,REDACTED PERSONAL DATA,No
Http://opendatacommunities.org/id/metropolitan-district-council/leeds,Leeds City Council,31/07/2017,Environment & Housing,Waste Management,Employees,Central Training,79,06/07/2017,1707-00118,0.00,617.75,R,A T Nerac Ltd,No
Http://opendatacommunities.org/id/metropolitan-district-council/leeds,Leeds City Council,31/07/2017,Environment & Housing,Waste Management,Employees,Central Training,79,06/07/2017,1707-00119,0.00,222.25,R,A T Nerac Ltd,No
Http://opendatacommunities.org/id/metropolitan-district-council/leeds,Leeds City Council,31/07/2017,Environment & Housing,Waste Management,Employees,Central Training,79,06/07/2017,1707-00120,0.00,211.00,R,A T Nerac Ltd,No
Http://opendatacommunities.org/id/metropolitan-district-council/leeds,Leeds City Council,31/07/2017,Children and Families,Safeguarding Targeted & Specialist,Third Party Payments,Services Rendered By Other Organisations,511,14/07/2017,1707-00121,0.00,196.95,R,A Walding,No
Http://opendatacommunities.org/id/metropolitan-district-council/leeds,Leeds City Council,31/07/2017,Children and Families,Safeguarding Targeted & Specialist,Third Party Payments,Services Rendered By Other Organisations,511,21/07/2017,1707-00122,0.00,1506.96,R,A Walding,No
Http://opendatacommunities.org/id/metropolitan-district-council/leeds,Leeds City Council,31/07/2017,Children and Families,Safeguarding Targeted & Specialist,Third Party Payments,Services Rendered By Other Organisations,511,21/07/2017,1707-00123,0.00,756.00,R,REDACTED PERSONAL DATA,No
Http://opendatacommunities.org/id/metropolitan-district-council/leeds,Leeds City Council,31/07/2017,Environment & Housing,Streetscene Environmental Services,Income,Penalties  Fines & Car Parking Charges,934,21/07/2017,1707-00124,0.00,5.70,R,REDACTED PERSONAL DATA,No
Http://opendatacommunities.org/id/metropolitan-district-council/leeds,Leeds City Council,31/07/2017,Children and Families,Safeguarding Targeted & Specialist,Supplies and Services,Insurance Claims,248,06/07/2017,1707-00125,0.00,100.00,R,REDACTED PERSONAL DATA,No
Http://opendatacommunities.org/id/metropolitan-district-council/leeds,Leeds City Council,31/07/2017,Insurance,Insurance,Supplies and Services,Insurance Claims,248,06/07/2017,1707-00126,0.00,0.00,R,REDACTED PERSONAL DATA,No
Http://opendatacommunities.org/id/metropolitan-district-council/leeds,Leeds City Council,31/07/2017,Children and Families,Safeguarding Targeted & Specialist  ,Third Party Payments,Placement Support,550,14/06/2017,1707-00127,0.00,45.99,R,A1 Comms Retail Limite,Yes
Http://opendatacommunities.org/id/metropolitan-district-council/leeds,Leeds City Council,31/07/2017,Adults and Health,Public Health,Third Party Payments,Public Health Commissioned Services,526,11/07/2017,1707-00128,0.00,89.01,R,Aaa Healthcare Ltd,No
Http://opendatacommunities.org/id/metropolitan-district-council/leeds,Leeds City Council,31/07/2017,Adults and Health,Public Health,Third Party Payments,Public Health Commissioned Services,526,11/07/2017,1707-00129,0.00,6.00,R,Aaa Healthcare Ltd,No
Http://opendatacommunities.org/id/metropolitan-district-council/leeds,Leeds City Council,31/07/2017,Adults and Health,Public Health,Third Party Payments,Public Health Commissioned Services,526,27/07/2017,1707-00130,0.00,76.95,R,Aaa Healthcare Ltd,No
Http://opendatacommunities.org/id/metropolitan-district-council/leeds,Leeds City Council,31/07/2017,Strategic Landlord,Property and Contracts,Employees,Training & Development,70,06/07/2017,1707-00131,0.00,410.00,R,Aaa Training Co Ltd,No
Http://opendatacommunities.org/id/metropolitan-district-council/leeds,Leeds City Council as Accountable Body,31/07/2017,Social Services Pooled Budgets,Leeds Community Equip Store Pooled Budgt,Supplies and Services,Other Equipment,203,13/07/2017,1707-00132,0.00,498.00,R,Aat (Gb) Ltd,No
Http://opendatacommunities.org/id/metropolitan-district-council/leeds,Leeds City Council as Accountable Body,31/07/2017,Social Services Pooled Budgets,Leeds Community Equip Store Pooled Budgt,Supplies and Services,Other Equipment,203,13/07/2017,1707-00133,0.00,614.00,R,Aat (Gb) Ltd,No
Http://opendatacommunities.org/id/metropolitan-district-council/leeds,Leeds City Council as Accountable Body,31/07/2017,Social Services Pooled Budgets,Leeds Community Equip Store Pooled Budgt,Supplies and Services,Other Equipment,203,28/07/2017,1707-00134,0.00,190.00,R,Aat (Gb) Ltd,No
Http://opendatacommunities.org/id/metropolitan-district-council/leeds,Leeds City Council as Accountable Body,31/07/2017,Social Services Pooled Budgets,Leeds Community Equip Store Pooled Budgt,Supplies and Services,Other Equipment,203,28/07/2017,1707-00135,0.00,1800.00,R,Aat (Gb) Ltd,No
Http://opendatacommunities.org/id/metropolitan-district-council/leeds,Leeds City Council as Accountable Body,31/07/2017,Social Services Pooled Budgets,Leeds Community Equip Store Pooled Budgt,Supplies and Services,Other Equipment,203,28/07/2017,1707-00136,0.00,992.00,R,Aat (Gb) Ltd,No
Http://opendatacommunities.org/id/metropolitan-district-council/leeds,Leeds City Council,31/07/2017,City Development,Support Services  ,Supplies and Services,Postages,212,08/06/2017,1707-00137,0.00,85.00,R,Abacus Express,Yes
Http://opendatacommunities.org/id/metropolitan-district-council/leeds,Leeds City Council,31/07/2017,Children and Families,Safeguarding Targeted & Specialist,Support Services,Legal Disbursements,411,05/07/2017,1707-00138,0.00,26.77,R,Abacus Express Limited,No
Http://opendatacommunities.org/id/metropolitan-district-council/leeds,Leeds City Council,31/07/2017,City Development,Planning & Sustainable Development,Support Services,Legal Disbursements,411,05/07/2017,1707-00139,0.00,19.35,R,Abacus Express Limited,No
Http://opendatacommunities.org/id/metropolitan-district-council/leeds,Leeds City Council,31/07/2017,Children and Families,Safeguarding Targeted & Specialist,Support Services,Legal Disbursements,411,07/07/2017,1707-00140,0.00,45.00,R,Abacus Express Limited,No
Http://opendatacommunities.org/id/metropolitan-district-council/leeds,Leeds City Council,31/07/2017,Children and Families,Safeguarding Targeted & Specialist,Support Services,Legal Disbursements,411,07/07/2017,1707-00141,0.00,20.43,R,Abacus Express Limited,No
Http://opendatacommunities.org/id/metropolitan-district-council/leeds,Leeds City Council,31/07/2017,Children and Families,Safeguarding Targeted & Specialist,Support Services,Legal Disbursements,411,07/07/2017,1707-00142,0.00,16.66,R,Abacus Express Limited,No
Http://opendatacommunities.org/id/metropolitan-district-council/leeds,Leeds City Council,31/07/2017,Children and Families,Safeguarding Targeted & Specialist,Support Services,Legal Disbursements,411,07/07/2017,1707-00143,0.00,15.59,R,Abacus Express Limited,No
Http://opendatacommunities.org/id/metropolitan-district-council/leeds,Leeds City Council,31/07/2017,Children and Families,Safeguarding Targeted & Specialist,Support Services,Legal Disbursements,411,07/07/2017,1707-00144,0.00,15.59,R,Abacus Express Limited,No
Http://opendatacommunities.org/id/metropolitan-district-council/leeds,Leeds City Council,31/07/2017,Children and Families,Safeguarding Targeted & Specialist,Support Services,Legal Disbursements,411,07/07/2017,1707-00145,0.00,15.59,R,Abacus Express Limited,No
Http://opendatacommunities.org/id/metropolitan-district-council/leeds,Leeds City Council,31/07/2017,City Development,Highways,Supplies and Services,Postages,212,14/07/2017,1707-00146,0.00,31.18,R,Abacus Express Limited,No
Http://opendatacommunities.org/id/metropolitan-district-council/leeds,Leeds City Council,31/07/2017,Adults and Health,Services For Older People - 65 And Over,Third Party Payments,Nursing Care Dementia,574,26/07/2017,1707-00147,0.00,1556.00,R,Abbendon Nursing Home,No
Http://opendatacommunities.org/id/metropolitan-district-council/leeds,Leeds City Council,31/07/2017,Children and Families,Safeguarding Targeted & Specialist,Third Party Payments,Services Rendered By Other Organisations,511,14/07/2017,1707-00148,0.00,1838.20,R,Abc Daycare And Ozone Out Of School,No
Http://opendatacommunities.org/id/metropolitan-district-council/leeds,Leeds City Council,31/07/2017,Children and Families,Safeguarding Targeted & Specialist,Third Party Payments,Services Rendered By Other Organisations,511,21/07/2017,1707-00149,0.00,103.35,R,Abc Daycare And Ozone Out Of School,No
Http://opendatacommunities.org/id/metropolitan-district-council/leeds,Leeds City Council,31/07/2017,Children and Families,Safeguarding Targeted & Specialist,Third Party Payments,Services Rendered By Other Organisations,511,21/07/2017,1707-00150,0.00,1083.60,R,Abc Daycare And Ozone Out Of School,No
Http://opendatacommunities.org/id/metropolitan-district-council/leeds,Leeds City Council,31/07/2017,Children and Families,Safeguarding Targeted & Specialist,Third Party Payments,Services Rendered By Other Organisations,511,14/07/2017,1707-00151,0.00,808.00,R,Abc Nursery At Lufc,No
Http://opendatacommunities.org/id/metropolitan-district-council/leeds,Leeds City Council,31/07/2017,Children and Families,Safeguarding Targeted & Specialist,Third Party Payments,Services Rendered By Other Organisations,511,21/07/2017,1707-00152,0.00,516.75,R,Abc Nursery At Lufc,No
Http://opendatacommunities.org/id/metropolitan-district-council/leeds,Leeds City Council,31/07/2017,Children and Families,Safeguarding Targeted & Specialist,Third Party Payments,Services Rendered By Other Organisations,511,21/07/2017,1707-00153,0.00,2599.80,R,Abc Nursery At Lufc,No
Http://opendatacommunities.org/id/metropolitan-district-council/leeds,Leeds City Council,31/07/2017,Resources and Housing,Strategic Housing Partnerships,Capital,Construction,3,31/07/2017,1707-00154,0.00,4004.00,C,Abc Property Developers,No
Http://opendatacommunities.org/id/metropolitan-district-council/leeds,Leeds City Council,31/07/2017,Children and Families,Safeguarding Targeted & Specialist,Third Party Payments,Services Rendered By Other Organisations,511,14/07/2017,1707-00155,0.00,2838.10,R,Abc@D'S Childcare Services,No
Http://opendatacommunities.org/id/metropolitan-district-council/leeds,Leeds City Council,31/07/2017,Children and Families,Safeguarding Targeted & Specialist,Third Party Payments,Services Rendered By Other Organisations,511,21/07/2017,1707-00156,0.00,463.22,R,Abc@D'S Childcare Services,No
Http://opendatacommunities.org/id/metropolitan-district-council/leeds,Leeds City Council,31/07/2017,Children and Families,Safeguarding Targeted & Specialist,Third Party Payments,Services Rendered By Other Organisations,511,21/07/2017,1707-00157,0.00,4837.40,R,Abc@D'S Childcare Services,No
Http://opendatacommunities.org/id/metropolitan-district-council/leeds,Leeds City Council,31/07/2017,Communities and Environment,Customer Access,Supplies and Services,Other Hired And Contracted Services,265,24/07/2017,1707-00158,0.00,23.50,R,Abdoul Hakeem Ramadhan,No
Http://opendatacommunities.org/id/metropolitan-district-council/leeds,Leeds City Council,31/07/2017,Communities and Environment,Customer Access,Supplies and Services,Other Hired And Contracted Services,265,05/07/2017,1707-00159,0.00,526.25,R,Abdulahad Denha,No
Http://opendatacommunities.org/id/metropolitan-district-council/leeds,Leeds City Council,31/07/2017,Communities and Environment,Customer Access,Supplies and Services,Other Hired And Contracted Services,265,05/07/2017,1707-00160,0.00,566.35,R,Abdur Rahman Khan,No
Http://opendatacommunities.org/id/metropolitan-district-council/leeds,Leeds City Council,31/07/2017,Adults and Health,Services For Older People - 65 And Over,Third Party Payments,Nursing Home,570,26/07/2017,1707-00161,0.00,25305.84,R,Aberford Hall,No
Http://opendatacommunities.org/id/metropolitan-district-council/leeds,Leeds City Council,31/07/2017,Adults and Health,Services For Older People - 65 And Over,Third Party Payments,Nursing Care Dementia,574,26/07/2017,1707-00162,0.00,1486.20,R,Aberford Hall,No
Http://opendatacommunities.org/id/metropolitan-district-council/leeds,Leeds City Council,31/07/2017,Adults and Health,Services For Older People - 65 And Over,Third Party Payments,Residential,580,26/07/2017,1707-00163,0.00,2665.28,R,Aberford Hall,No
Http://opendatacommunities.org/id/metropolitan-district-council/leeds,Leeds City Council,31/07/2017,Environment & Housing,Leeds Building Services,Supplies and Services,Operational Materials,205,04/07/2017,1707-00164,0.00,250.45,R,Abi Garage Doors Ltd,No
Http://opendatacommunities.org/id/metropolitan-district-council/leeds,Leeds City Council,31/07/2017,Environment & Housing,Leeds Building Services,Supplies and Services,Operational Materials,205,14/07/2017,1707-00165,0.00,265.77,R,Abi Garage Doors Ltd,No
Http://opendatacommunities.org/id/metropolitan-district-council/leeds,Leeds City Council,31/07/2017,Environment & Housing,Strategic Housing Support,Supplies and Services,Other Hired And Contracted Services,265,19/07/2017,1707-00166,0.00,707.94,R,REDACTED PERSONAL DATA,No
Http://opendatacommunities.org/id/metropolitan-district-council/leeds,Leeds City Council,31/07/2017,Children and Families,Safeguarding Targeted & Specialist,Supplies and Services,Telephones,213,17/07/2017,1707-00167,0.00,3.60,R,REDACTED PERSONAL DATA,No
Http://opendatacommunities.org/id/metropolitan-district-council/leeds,Leeds City Council,31/07/2017,Children and Families,Safeguarding Targeted & Specialist,Supplies and Services,Food & Drink,231,17/07/2017,1707-00168,0.00,33.04,R,REDACTED PERSONAL DATA,No
Http://opendatacommunities.org/id/metropolitan-district-council/leeds,Leeds City Council,31/07/2017,Children and Families,Safeguarding Targeted & Specialist,Transport,Public Transport Expenses,310,17/07/2017,1707-00169,0.00,10.60,R,REDACTED PERSONAL DATA,No
Http://opendatacommunities.org/id/metropolitan-district-council/leeds,Leeds City Council,31/07/2017,Children and Families,Safeguarding Targeted & Specialist,Transport,Car & Motorcycle Allowances,311,17/07/2017,1707-00170,0.00,9.00,R,REDACTED PERSONAL DATA,No
Http://opendatacommunities.org/id/metropolitan-district-council/leeds,Leeds City Council,31/07/2017,Children and Families,Safeguarding Targeted & Specialist,Employees,Agency Staff,8,04/07/2017,1707-00171,0.00,2018.96,R,Academic Appointments Ltd,No
Http://opendatacommunities.org/id/metropolitan-district-council/leeds,Leeds City Council,31/07/2017,Children and Families,Safeguarding Targeted & Specialist,Employees,Agency Staff,8,13/07/2017,1707-00172,0.00,2018.96,R,Academic Appointments Ltd,No
Http://opendatacommunities.org/id/metropolitan-district-council/leeds,Leeds City Council,31/07/2017,Children and Families,Safeguarding Targeted & Specialist,Employees,Agency Staff,8,20/07/2017,1707-00173,0.00,1559.48,R,Academic Appointments Ltd,No
Http://opendatacommunities.org/id/metropolitan-district-council/leeds,Leeds City Council,31/07/2017,Children and Families,Safeguarding Targeted & Specialist,Employees,Agency Staff,8,27/07/2017,1707-00174,0.00,1090.00,R,Academic Appointments Ltd,No
Http://opendatacommunities.org/id/metropolitan-district-council/leeds,Leeds City Council,31/07/2017,Resources and Housing,Strategic Housing Partnerships,Capital,Construction,3,13/07/2017,1707-00175,0.00,2052.00,C,Accent Homes Ltd,No
Http://opendatacommunities.org/id/metropolitan-district-council/leeds,Leeds City Council,31/07/2017,Resources and Housing,Strategic Housing Partnerships,Capital,Construction,3,20/07/2017,1707-00176,0.00,1560.60,C,Accent Homes Ltd,No
Http://opendatacommunities.org/id/metropolitan-district-council/leeds,Leeds City Council,31/07/2017,Children and Families,Safeguarding Targeted & Specialist  ,Supplies and Services,Operational Furniture And Equipment,203,12/06/2017,1707-00177,0.00,65.21,R,Access Locksmiths,Yes
Http://opendatacommunities.org/id/metropolitan-district-council/leeds,Leeds City Council,31/07/2017,Strategic Landlord,Property and Contracts,Premises,General Maintenance,104,07/07/2017,1707-00178,0.00,118.40,R,Access Locksmiths (Leeds) Limited,No
Http://opendatacommunities.org/id/metropolitan-district-council/leeds,Leeds City Council,31/07/2017,Strategic Landlord,Property and Contracts,Premises,General Maintenance,104,07/07/2017,1707-00179,0.00,118.40,R,Access Locksmiths (Leeds) Limited,No
Http://opendatacommunities.org/id/metropolitan-district-council/leeds,Leeds City Council,31/07/2017,Environment & Housing,Leeds Building Services,Supplies and Services,Operational Furniture And Equipment,203,19/07/2017,1707-00180,0.00,93.72,R,Access Locksmiths (Leeds) Limited,No
Http://opendatacommunities.org/id/metropolitan-district-council/leeds,Leeds City Council,31/07/2017,Environment & Housing,Leeds Building Services,Supplies and Services,Operational Materials,205,21/07/2017,1707-00181,0.00,6.50,R,Access Locksmiths (Leeds) Limited,No
Http://opendatacommunities.org/id/metropolitan-district-council/leeds,Leeds City Council,31/07/2017,Environment & Housing,Leeds Building Services,Supplies and Services,Operational Furniture And Equipment,203,28/07/2017,1707-00182,0.00,1825.60,R,Access Locksmiths (Leeds) Limited,No
Http://opendatacommunities.org/id/metropolitan-district-council/leeds,Leeds City Council,31/07/2017,Children and Families,Safeguarding Targeted & Specialist,Supplies and Services,Computer Software & Equipment,214,26/07/2017,1707-00183,0.00,500.00,R,Access Moving Image Ltd,No
Http://opendatacommunities.org/id/metropolitan-district-council/leeds,Leeds City Council,31/07/2017,Environment & Housing,Leeds Building Services,Supplies and Services,Other Hired And Contracted Services,265,03/07/2017,1707-00184,0.00,331.50,R,Access Opening Systems Limited,No
Http://opendatacommunities.org/id/metropolitan-district-council/leeds,Leeds City Council,31/07/2017,Environment & Housing,Leeds Building Services,Supplies and Services,Other Hired And Contracted Services,265,03/07/2017,1707-00185,0.00,3860.60,R,Access Opening Systems Limited,No
Http://opendatacommunities.org/id/metropolitan-district-council/leeds,Leeds City Council,31/07/2017,Environment & Housing,Leeds Building Services,Supplies and Services,Other Hired And Contracted Services,265,03/07/2017,1707-00186,0.00,170.00,R,Access Opening Systems Limited,No
Http://opendatacommunities.org/id/metropolitan-district-council/leeds,Leeds City Council,31/07/2017,Environment & Housing,Leeds Building Services,Supplies and Services,Other Hired And Contracted Services,265,06/07/2017,1707-00187,0.00,110.00,R,Access Opening Systems Limited,No
Http://opendatacommunities.org/id/metropolitan-district-council/leeds,Leeds City Council,31/07/2017,Insurance,Insurance,Supplies and Services,Insurance Claims,248,25/07/2017,1707-00188,0.00,7267.00,R,Accident Advice Solicitors,No
Http://opendatacommunities.org/id/metropolitan-district-council/leeds,Leeds City Council,31/07/2017,Insurance,Insurance,Supplies and Services,Insurance Claims,248,25/07/2017,1707-00189,0.00,2529.00,R,Accident Advice Solicitors,No
Http://opendatacommunities.org/id/metropolitan-district-council/leeds,Leeds City Council,31/07/2017,City Development,Recreation,Transport,External Hire -Occasional,304,17/07/2017,1707-00190,0.00,124.50,R,Ace Container Services Limited,No
Http://opendatacommunities.org/id/metropolitan-district-council/leeds,Leeds City Council,31/07/2017,Children and Families,Safeguarding Targeted & Specialist,Supplies and Services,Advertising,211,28/07/2017,1707-00191,0.00,996.00,R,Acoo Review Ltd,No
Http://opendatacommunities.org/id/metropolitan-district-council/leeds,Leeds City Council,31/07/2017,Adults and Health,Services For Older People - 65 And Over,Third Party Payments,Nursing Care Dementia,574,26/07/2017,1707-00192,0.00,1546.28,R,Acorn Nursing Home,No
Http://opendatacommunities.org/id/metropolitan-district-council/leeds,Leeds City Council,31/07/2017,Resources and Housing,Strategy and Improvement,Supplies and Services,Operational Furniture And Equipment,203,14/07/2017,1707-00193,0.00,700.00,R,Acorn Scaffolding (Yorkshire) Ltd,No
Http://opendatacommunities.org/id/metropolitan-district-council/leeds,Leeds City Council,31/07/2017,City Development,Libraries  Arts & Heritage,Supplies and Services,Other Hired And Contracted Services,265,26/07/2017,1707-00194,0.00,2679.00,R,Acorn Scaffolding (Yorkshire) Ltd,No
Http://opendatacommunities.org/id/metropolitan-district-council/leeds,Leeds City Council,31/07/2017,Adults and Health,Other Adult Services,Third Party Payments,Residential - Drugs & Alcohol,583,28/07/2017,1707-00195,0.00,-57.52,R,Acorn Treatment & Housing,No
Http://opendatacommunities.org/id/metropolitan-district-council/leeds,Leeds City Council,31/07/2017,Adults and Health,Other Adult Services,Third Party Payments,Residential - Drugs & Alcohol,583,28/07/2017,1707-00196,0.00,2435.71,R,Acorn Treatment & Housing,No
Http://opendatacommunities.org/id/metropolitan-district-council/leeds,Leeds City Council,31/07/2017,Adults and Health,Services For Older People - 65 And Over,Third Party Payments,Nursing Home,570,26/07/2017,1707-00197,0.00,23790.72,R,Acre Green,No
Http://opendatacommunities.org/id/metropolitan-district-council/leeds,Leeds City Council,31/07/2017,Adults and Health,Services For Older People - 65 And Over,Third Party Payments,Nursing Care Dementia,574,26/07/2017,1707-00198,0.00,1099.96,R,Acre Green,No
Http://opendatacommunities.org/id/metropolitan-district-council/leeds,Leeds City Council,31/07/2017,Adults and Health,Services For Older People - 65 And Over,Third Party Payments,Residential,580,26/07/2017,1707-00199,0.00,5874.60,R,Acre Green,No
Http://opendatacommunities.org/id/metropolitan-district-council/leeds,Leeds City Council,31/07/2017,Adults and Health,Services For Older People Under 65 P/Dis,Third Party Payments,Nursing Home,570,26/07/2017,1707-00200,0.00,5682.64,R,Acre Green,No
Http://opendatacommunities.org/id/metropolitan-district-council/leeds,Leeds City Council,31/07/2017,Adults and Health,Services For Older People Under 65 P/Dis,Third Party Payments,Residential,580,26/07/2017,1707-00201,0.00,3145.20,R,Acre Green,No
Http://opendatacommunities.org/id/metropolitan-district-council/leeds,Leeds City Council,31/07/2017,Children and Families,Safeguarding Targeted & Specialist,Third Party Payments,Services Rendered By Other Organisations,511,14/07/2017,1707-00202,0.00,3317.85,R,Acre Wood Day Nursery,No
Http://opendatacommunities.org/id/metropolitan-district-council/leeds,Leeds City Council,31/07/2017,Children and Families,Safeguarding Targeted & Specialist,Third Party Payments,Services Rendered By Other Organisations,511,21/07/2017,1707-00203,0.00,11327.40,R,Acre Wood Day Nursery,No
Http://opendatacommunities.org/id/metropolitan-district-council/leeds,Leeds City Council,31/07/2017,Children and Families,Safeguarding Targeted & Specialist,Supplies and Services,Teaching Materials,202,28/07/2017,1707-00204,0.00,216.00,R,Acs (Uk) Ltd,No
Http://opendatacommunities.org/id/metropolitan-district-council/leeds,Leeds City Council,31/07/2017,Adults and Health,Services For Adults Under 65 Mental/Dis,Third Party Payments,Fees - Level 4,520,06/07/2017,1707-00205,0.00,220.00,R,Action First Recruitment Ltd,No
Http://opendatacommunities.org/id/metropolitan-district-council/leeds,Leeds City Council,31/07/2017,Adults and Health,Services For Adults Under 65 Mental/Dis,Third Party Payments,Fees - Level 4,520,17/07/2017,1707-00206,0.00,440.00,R,Action First Recruitment Ltd,No
Http://opendatacommunities.org/id/metropolitan-district-council/leeds,Leeds City Council,31/07/2017,Adults and Health,Services For Adults Under 65 Mental/Dis,Third Party Payments,Fees - Level 4,520,28/07/2017,1707-00207,0.00,1250.00,R,Action First Recruitment Ltd,No
Http://opendatacommunities.org/id/metropolitan-district-council/leeds,Leeds City Council,31/07/2017,Adults and Health,Services For Adults Under 65 Mental/Dis,Third Party Payments,Fees - Level 4,520,28/07/2017,1707-00208,0.00,1000.00,R,Action First Recruitment Ltd,No
Http://opendatacommunities.org/id/metropolitan-district-council/leeds,Leeds City Council,31/07/2017,Adults and Health,Services For Adults Under 65 Mental/Dis,Third Party Payments,Fees - Level 4,520,28/07/2017,1707-00209,0.00,660.00,R,Action First Recruitment Ltd,No
Http://opendatacommunities.org/id/metropolitan-district-council/leeds,Leeds City Council,31/07/2017,Adults and Health,Services For Adults Under 65 Mental/Dis,Third Party Payments,Fees - Level 4,520,28/07/2017,1707-00210,0.00,250.00,R,Action First Recruitment Ltd,No
Http://opendatacommunities.org/id/metropolitan-district-council/leeds,Leeds City Council,31/07/2017,Adults and Health,Services For Adults Under 65 Mental/Dis,Third Party Payments,Fees - Level 4,520,28/07/2017,1707-00211,0.00,220.00,R,Action First Recruitment Ltd,No
Http://opendatacommunities.org/id/metropolitan-district-council/leeds,Leeds City Council,31/07/2017,Children and Families,Safeguarding Targeted & Specialist,Third Party Payments,Independent Fostering Agencies,509,21/07/2017,1707-00212,0.00,4622.40,R,Action For Children,No
Http://opendatacommunities.org/id/metropolitan-district-council/leeds,Leeds City Council,31/07/2017,Children and Families,Safeguarding Targeted & Specialist,Third Party Payments,Independent Fostering Agencies,509,21/07/2017,1707-00213,0.00,4624.20,R,Action For Children,No
Http://opendatacommunities.org/id/metropolitan-district-council/leeds,Leeds City Council,31/07/2017,Children and Families,Safeguarding Targeted & Specialist,Third Party Payments,Independent Fostering Agencies,509,21/07/2017,1707-00214,0.00,4624.20,R,Action For Children,No
Http://opendatacommunities.org/id/metropolitan-district-council/leeds,Leeds City Council,31/07/2017,Children and Families,Safeguarding Targeted & Specialist,Third Party Payments,Independent Fostering Agencies,509,21/07/2017,1707-00215,0.00,4624.20,R,Action For Children,No
Http://opendatacommunities.org/id/metropolitan-district-council/leeds,Leeds City Council,31/07/2017,Children and Families,Safeguarding Targeted & Specialist,Third Party Payments,Independent Fostering Agencies,509,21/07/2017,1707-00216,0.00,4624.20,R,Action For Children,No
Http://opendatacommunities.org/id/metropolitan-district-council/leeds,Leeds City Council,31/07/2017,Children and Families,Safeguarding Targeted & Specialist,Third Party Payments,Independent Fostering Agencies,509,21/07/2017,1707-00217,0.00,1522.26,R,Action For Children,No
Http://opendatacommunities.org/id/metropolitan-district-council/leeds,Leeds City Council,31/07/2017,Children and Families,Safeguarding Targeted & Specialist,Third Party Payments,Independent Fostering Agencies,509,28/07/2017,1707-00218,0.00,4622.40,R,Action For Children,No
Http://opendatacommunities.org/id/metropolitan-district-council/leeds,Leeds City Council,31/07/2017,Children and Families,Safeguarding Targeted & Specialist,Third Party Payments,Services Rendered By Other Organisations,511,21/07/2017,1707-00219,0.00,103.35,R,Active Kids Yeadon Llp,No
Http://opendatacommunities.org/id/metropolitan-district-council/leeds,Leeds City Council,31/07/2017,Children and Families,Safeguarding Targeted & Specialist,Third Party Payments,Services Rendered By Other Organisations,511,21/07/2017,1707-00220,0.00,3990.30,R,Active Kids Yeadon Llp,No
Http://opendatacommunities.org/id/metropolitan-district-council/leeds,Leeds City Council,31/07/2017,Civic Enterprise Leeds,Commercial Services  ,Employees,Best Value Training,70,26/06/2017,1707-00221,0.00,729.00,R,Activia Ltd,Yes
Http://opendatacommunities.org/id/metropolitan-district-council/leeds,Leeds City Council,31/07/2017,Children and Families,Safeguarding Targeted & Specialist  ,Supplies and Services,Admission Charges To Schools,283,20/06/2017,1707-00222,0.00,586.50,R,Activitybookercom,Yes
Http://opendatacommunities.org/id/metropolitan-district-council/leeds,Leeds City Council,31/07/2017,Children and Families,Safeguarding Targeted & Specialist  ,Supplies and Services,Admission Charges To Schools,283,21/06/2017,1707-00223,0.00,799.80,R,Activitybookercom,Yes
Http://opendatacommunities.org/id/metropolitan-district-council/leeds,Leeds City Council,31/07/2017,Environment & Housing,Environmental Action (West North West),Premises,Removal Of Workplace Waste,126,04/07/2017,1707-00224,0.00,220.00,R,Acumen Waste Services Ltd,No
Http://opendatacommunities.org/id/metropolitan-district-council/leeds,Leeds City Council,31/07/2017,Environment & Housing,Environmental Action (West North West),Supplies and Services,Bought In Professional Services,277,04/07/2017,1707-00225,0.00,110.00,R,Acumen Waste Services Ltd,No
Http://opendatacommunities.org/id/metropolitan-district-council/leeds,Leeds City Council,31/07/2017,Environment & Housing,Environmental Action (West North West),Premises,Removal Of Workplace Waste,126,07/07/2017,1707-00226,0.00,220.00,R,Acumen Waste Services Ltd,No
Http://opendatacommunities.org/id/metropolitan-district-council/leeds,Leeds City Council,31/07/2017,Environment & Housing,Environmental Action (West North West),Premises,Removal Of Workplace Waste,126,07/07/2017,1707-00227,0.00,110.00,R,Acumen Waste Services Ltd,No
Http://opendatacommunities.org/id/metropolitan-district-council/leeds,Leeds City Council,31/07/2017,Environment & Housing,Environmental Action (South),Premises,Removal Of Workplace Waste,126,07/07/2017,1707-00228,0.00,220.00,R,Acumen Waste Services Ltd,No
Http://opendatacommunities.org/id/metropolitan-district-council/leeds,Leeds City Council,31/07/2017,Environment & Housing,Environmental Action (West North West),Premises,Removal Of Workplace Waste,126,07/07/2017,1707-00229,0.00,220.00,R,Acumen Waste Services Ltd,No
Http://opendatacommunities.org/id/metropolitan-district-council/leeds,Leeds City Council,31/07/2017,Environment & Housing,Environmental Action (South),Premises,Removal Of Workplace Waste,126,07/07/2017,1707-00230,0.00,220.00,R,Acumen Waste Services Ltd,No
Http://opendatacommunities.org/id/metropolitan-district-council/leeds,Leeds City Council,31/07/2017,Environment & Housing,Environmental Action (West North West),Premises,Removal Of Workplace Waste,126,07/07/2017,1707-00231,0.00,110.00,R,Acumen Waste Services Ltd,No
Http://opendatacommunities.org/id/metropolitan-district-council/leeds,Leeds City Council,31/07/2017,Environment & Housing,Environmental Action (West North West),Premises,Removal Of Workplace Waste,126,07/07/2017,1707-00232,0.00,110.00,R,Acumen Waste Services Ltd,No
Http://opendatacommunities.org/id/metropolitan-district-council/leeds,Leeds City Council,31/07/2017,Environment & Housing,Waste Management,Supplies and Services,Recycling & Reuse Charges,234,07/07/2017,1707-00233,0.00,4755.66,R,Acumen Waste Services Ltd,No
Http://opendatacommunities.org/id/metropolitan-district-council/leeds,Leeds City Council,31/07/2017,Environment & Housing,Environmental Action (West North West),Premises,Removal Of Workplace Waste,126,07/07/2017,1707-00234,0.00,110.00,R,Acumen Waste Services Ltd,No
Http://opendatacommunities.org/id/metropolitan-district-council/leeds,Leeds City Council,31/07/2017,Environment & Housing,Environmental Action (West North West),Premises,Removal Of Workplace Waste,126,11/07/2017,1707-00235,0.00,110.00,R,Acumen Waste Services Ltd,No
Http://opendatacommunities.org/id/metropolitan-district-council/leeds,Leeds City Council,31/07/2017,Environment & Housing,Environmental Action (West North West),Premises,Removal Of Workplace Waste,126,11/07/2017,1707-00236,0.00,110.00,R,Acumen Waste Services Ltd,No
Http://opendatacommunities.org/id/metropolitan-district-council/leeds,Leeds City Council,31/07/2017,Environment & Housing,Waste Management,Supplies and Services,Recycling & Reuse Charges,234,13/07/2017,1707-00237,0.00,8487.56,R,Acumen Waste Services Ltd,No
Http://opendatacommunities.org/id/metropolitan-district-council/leeds,Leeds City Council,31/07/2017,Environment & Housing,Environmental Action (West North West),Premises,Removal Of Workplace Waste,126,17/07/2017,1707-00238,0.00,220.00,R,Acumen Waste Services Ltd,No
Http://opendatacommunities.org/id/metropolitan-district-council/leeds,Leeds City Council,31/07/2017,Environment & Housing,Environmental Action (West North West),Premises,Removal Of Workplace Waste,126,17/07/2017,1707-00239,0.00,220.00,R,Acumen Waste Services Ltd,No
Http://opendatacommunities.org/id/metropolitan-district-council/leeds,Leeds City Council,31/07/2017,Environment & Housing,Waste Management,Supplies and Services,Recycling & Reuse Charges,234,21/07/2017,1707-00240,0.00,5723.81,R,Acumen Waste Services Ltd,No
Http://opendatacommunities.org/id/metropolitan-district-council/leeds,Leeds City Council,31/07/2017,Environment & Housing,Environmental Action (West North West),Premises,Removal Of Workplace Waste,126,28/07/2017,1707-00241,0.00,110.00,R,Acumen Waste Services Ltd,No
Http://opendatacommunities.org/id/metropolitan-district-council/leeds,Leeds City Council,31/07/2017,Environment & Housing,Waste Management,Supplies and Services,Recycling & Reuse Charges,234,28/07/2017,1707-00242,0.00,4722.16,R,Acumen Waste Services Ltd,No
Http://opendatacommunities.org/id/metropolitan-district-council/leeds,Leeds City Council,31/07/2017,Environment & Housing,Parks and Countryside,Supplies and Services,Resaleable Materials,204,28/07/2017,1707-00243,0.00,412.00,R,Acushnet Europe Limited,No
Http://opendatacommunities.org/id/metropolitan-district-council/leeds,Leeds City Council,31/07/2017,City Development,Highways,Supplies and Services,Publication And Promotion,267,12/07/2017,1707-00244,0.00,932.40,R,Ad Merchandise Ltd,No
Http://opendatacommunities.org/id/metropolitan-district-council/leeds,Leeds City Council,31/07/2017,Civic Enterprise Leeds,Shared Services,Supplies and Services,Operational Materials,205,14/07/2017,1707-00245,0.00,645.00,R,Ad3 Envelope Printers Limited,No
Http://opendatacommunities.org/id/metropolitan-district-council/leeds,Leeds City Council,31/07/2017,Civic Enterprise Leeds,Shared Services,Supplies and Services,Other Hired And Contracted Services,265,14/07/2017,1707-00246,0.00,161.20,R,Ad3 Envelope Printers Limited,No
Http://opendatacommunities.org/id/metropolitan-district-council/leeds,Leeds City Council,31/07/2017,Civic Enterprise Leeds,Shared Services,Supplies and Services,Other Hired And Contracted Services,265,14/07/2017,1707-00247,0.00,96.44,R,Ad3 Envelope Printers Limited,No
Http://opendatacommunities.org/id/metropolitan-district-council/leeds,Leeds City Council,31/07/2017,Civic Enterprise Leeds,Shared Services,Supplies and Services,Other Hired And Contracted Services,265,28/07/2017,1707-00248,0.00,439.75,R,Ad3 Envelope Printers Limited,No
Http://opendatacommunities.org/id/metropolitan-district-council/leeds,Leeds City Council,31/07/2017,City Development,Libraries  Arts & Heritage,Supplies and Services,Other Hired And Contracted Services,265,12/07/2017,1707-00249,0.00,4000.00,R,Adam Bowett,No
Http://opendatacommunities.org/id/metropolitan-district-council/leeds,Leeds City Council,31/07/2017,Adults and Health,Services For Adults Under 65 Mental/Dis,Support Services,Legal Disbursements,411,06/07/2017,1707-00250,0.00,600.00,R,Adam Fullwood,No
Http://opendatacommunities.org/id/metropolitan-district-council/leeds,Leeds City Council,31/07/2017,Adults and Health,Services For Older People - 65 And Over,Third Party Payments,Nursing Home,570,26/07/2017,1707-00251,0.00,7450.07,R,Adbolton Hall,No
Http://opendatacommunities.org/id/metropolitan-district-council/leeds,Leeds City Council,31/07/2017,Children and Families,Safeguarding Targeted & Specialist,Supplies and Services,Conference Meetings,253,26/07/2017,1707-00252,0.00,416.00,R,Adcs,No
Http://opendatacommunities.org/id/metropolitan-district-council/leeds,Leeds City Council,31/07/2017,Resources and Housing,HRA Housing Leeds,Capital,Internal Fees,6,18/07/2017,1707-00253,0.00,858.75,C,Addleshaw Goddard Llp,No
Http://opendatacommunities.org/id/metropolitan-district-council/leeds,Leeds City Council,31/07/2017,Resources and Housing,Sustainable Energy & Climate Change,Capital,Other Costs,7,18/07/2017,1707-00254,0.00,858.75,C,Addleshaw Goddard Llp,No
Http://opendatacommunities.org/id/metropolitan-district-council/leeds,Leeds City Council,31/07/2017,Environment & Housing,Parks and Countryside,Supplies and Services,Other Hired And Contracted Services,265,24/07/2017,1707-00255,0.00,6510.00,R,Addlestone & Partners,No
Http://opendatacommunities.org/id/metropolitan-district-council/leeds,Leeds City Council,31/07/2017,Resources and Housing,Technology  ,Employees,Agency Staff,8,09/06/2017,1707-00256,0.00,626.79,R,Adecco Alfred Marks,Yes
Http://opendatacommunities.org/id/metropolitan-district-council/leeds,Leeds City Council,31/07/2017,Resources and Housing,Technology  ,Employees,Agency Staff,8,09/06/2017,1707-00257,0.00,508.50,R,Adecco Alfred Marks,Yes
Http://opendatacommunities.org/id/metropolitan-district-council/leeds,Leeds City Council,31/07/2017,Resources and Housing,Technology  ,Employees,Agency Staff,8,09/06/2017,1707-00258,0.00,2058.80,R,Adecco Alfred Marks,Yes
Http://opendatacommunities.org/id/metropolitan-district-council/leeds,Leeds City Council,31/07/2017,Resources and Housing,Technology  ,Employees,Agency Staff,8,09/06/2017,1707-00259,0.00,2300.00,R,Adecco Alfred Marks,Yes
Http://opendatacommunities.org/id/metropolitan-district-council/leeds,Leeds City Council,31/07/2017,Resources and Housing,Technology  ,Employees,Agency Staff,8,09/06/2017,1707-00260,0.00,1647.04,R,Adecco Alfred Marks,Yes
Http://opendatacommunities.org/id/metropolitan-district-council/leeds,Leeds City Council,31/07/2017,Resources and Housing,Technology  ,Employees,Agency Staff,8,09/06/2017,1707-00261,0.00,1714.25,R,Adecco Alfred Marks,Yes
Http://opendatacommunities.org/id/metropolitan-district-council/leeds,Leeds City Council,31/07/2017,Resources and Housing,Technology  ,Employees,Agency Staff,8,09/06/2017,1707-00262,0.00,1371.40,R,Adecco Alfred Marks,Yes
Http://opendatacommunities.org/id/metropolitan-district-council/leeds,Leeds City Council,31/07/2017,Resources and Housing,Technology  ,Employees,Agency Staff,8,09/06/2017,1707-00263,0.00,2300.00,R,Adecco Alfred Marks,Yes
Http://opendatacommunities.org/id/metropolitan-district-council/leeds,Leeds City Council,31/07/2017,Resources and Housing,Technology  ,Employees,Agency Staff,8,09/06/2017,1707-00264,0.00,1714.25,R,Adecco Alfred Marks,Yes
Http://opendatacommunities.org/id/metropolitan-district-council/leeds,Leeds City Council,31/07/2017,Resources and Housing,Technology  ,Employees,Agency Staff,8,20/06/2017,1707-00265,0.00,5082.50,R,Adecco Alfred Marks,Yes
Http://opendatacommunities.org/id/metropolitan-district-council/leeds,Leeds City Council,31/07/2017,Resources and Housing,Technology  ,Employees,Agency Staff,8,23/06/2017,1707-00266,0.00,27468.60,R,Adecco Alfred Marks,Yes
Http://opendatacommunities.org/id/metropolitan-district-council/leeds,Leeds City Council,31/07/2017,Resources and Housing,Technology  ,Employees,Agency Staff,8,27/06/2017,1707-00267,0.00,7093.25,R,Adecco Alfred Marks,Yes
Http://opendatacommunities.org/id/metropolitan-district-council/leeds,Leeds City Council,31/07/2017,Strategic Accounts,Miscellaneous,Supplies and Services,Non-Recurring Grants,227,26/07/2017,1707-00268,0.00,150.00,R,Adel Crag Community Association,No
Http://opendatacommunities.org/id/metropolitan-district-council/leeds,Leeds City Council,31/07/2017,Adults and Health,Public Health,Third Party Payments,Public Health Commissioned Services,526,11/07/2017,1707-00269,0.00,21.00,R,Adel Pharmacy,No
Http://opendatacommunities.org/id/metropolitan-district-council/leeds,Leeds City Council,31/07/2017,Adults and Health,Public Health,Third Party Payments,Public Health Commissioned Services,526,13/07/2017,1707-00270,0.00,10.37,R,Adel Pharmacy,No
Http://opendatacommunities.org/id/metropolitan-district-council/leeds,Leeds City Council,31/07/2017,Children and Families,Safeguarding Targeted & Specialist,Third Party Payments,Services Rendered By Voluntary Sector,505,14/07/2017,1707-00271,0.00,590.85,R,Adel Pre School,No
Http://opendatacommunities.org/id/metropolitan-district-council/leeds,Leeds City Council,31/07/2017,Children and Families,Safeguarding Targeted & Specialist,Third Party Payments,Services Rendered By Voluntary Sector,505,21/07/2017,1707-00272,0.00,6584.76,R,Adel Pre School,No
Http://opendatacommunities.org/id/metropolitan-district-council/leeds,Leeds City Council,31/07/2017,Children and Families,Safeguarding Targeted & Specialist,Third Party Payments,Services Rendered By Other Organisations,511,21/07/2017,1707-00273,0.00,491.40,R,Adele Harrington,No
Http://opendatacommunities.org/id/metropolitan-district-council/leeds,Leeds City Council,31/07/2017,Children and Families,Safeguarding Targeted & Specialist,Third Party Payments,Services Rendered By Other Organisations,511,21/07/2017,1707-00274,0.00,241.08,R,REDACTED PERSONAL DATA,No
Http://opendatacommunities.org/id/metropolitan-district-council/leeds,Leeds City Council,31/07/2017,Adults and Health,Services For Older People - 65 And Over,Third Party Payments,Nursing Home,570,26/07/2017,1707-00275,0.00,1157.68,R,Aden House,No
Http://opendatacommunities.org/id/metropolitan-district-council/leeds,Leeds City Council,31/07/2017,City Development,Libraries  Arts & Heritage,Supplies and Services,Other Hired And Contracted Services,265,25/07/2017,1707-00276,0.00,2550.00,R,Adetoun Rattenbury,No
Http://opendatacommunities.org/id/metropolitan-district-council/leeds,Leeds City Council,31/07/2017,Environment & Housing,Leeds Building Services,Supplies and Services,Operational Materials,205,06/07/2017,1707-00277,0.00,398.03,R,Adi Global,No
Http://opendatacommunities.org/id/metropolitan-district-council/leeds,Leeds City Council,31/07/2017,Environment & Housing,Leeds Building Services,Supplies and Services,Operational Materials,205,06/07/2017,1707-00278,0.00,242.16,R,Adi Global,No
Http://opendatacommunities.org/id/metropolitan-district-council/leeds,Leeds City Council,31/07/2017,Environment & Housing,Leeds Building Services,Supplies and Services,Operational Materials,205,06/07/2017,1707-00279,0.00,226.59,R,Adi Global,No
Http://opendatacommunities.org/id/metropolitan-district-council/leeds,Leeds City Council,31/07/2017,Environment & Housing,Leeds Building Services,Supplies and Services,Operational Materials,205,07/07/2017,1707-00280,0.00,1378.71,R,Adi Global,No
Http://opendatacommunities.org/id/metropolitan-district-council/leeds,Leeds City Council,31/07/2017,Environment & Housing,Leeds Building Services,Supplies and Services,Operational Materials,205,14/07/2017,1707-00281,0.00,3354.61,R,Adi Global,No
Http://opendatacommunities.org/id/metropolitan-district-council/leeds,Leeds City Council,31/07/2017,Environment & Housing,Leeds Building Services,Supplies and Services,Operational Materials,205,14/07/2017,1707-00282,0.00,539.00,R,Adi Global,No
Http://opendatacommunities.org/id/metropolitan-district-council/leeds,Leeds City Council,31/07/2017,Environment & Housing,Leeds Building Services,Supplies and Services,Operational Materials,205,21/07/2017,1707-00283,0.00,422.10,R,Adi Global,No
Http://opendatacommunities.org/id/metropolitan-district-council/leeds,Leeds City Council,31/07/2017,Environment & Housing,Community Safety,Supplies and Services,Other Hired And Contracted Services,265,26/07/2017,1707-00284,0.00,894.00,R,Adi Global,No
Http://opendatacommunities.org/id/metropolitan-district-council/leeds,Leeds City Council,31/07/2017,Environment & Housing,Community Safety  ,Supplies and Services,Other Hired And Contracted Services,265,09/06/2017,1707-00285,0.00,19.21,R,Adi-Gardiner Ltd,Yes
Http://opendatacommunities.org/id/metropolitan-district-council/leeds,Leeds City Council,31/07/2017,Environment & Housing,Community Safety  ,Supplies and Services,Other Hired And Contracted Services,265,13/06/2017,1707-00286,0.00,71.76,R,Adi-Gardiner Ltd,Yes
Http://opendatacommunities.org/id/metropolitan-district-council/leeds,Leeds City Council,31/07/2017,Civic Enterprise Leeds,Commercial Services,Transport,Vehicle Spares,345,14/07/2017,1707-00287,0.00,88.00,R,Adm Car Audio,No
Http://opendatacommunities.org/id/metropolitan-district-council/leeds,Leeds City Council,31/07/2017,Children and Families,Safeguarding Targeted & Specialist,Supplies and Services,Security Services(Non Infrastructure),262,14/07/2017,1707-00288,0.00,108.90,R,Adm Security,No
Http://opendatacommunities.org/id/metropolitan-district-council/leeds,Leeds City Council,31/07/2017,Children and Families,Safeguarding Targeted & Specialist,Supplies and Services,Security Services(Non Infrastructure),262,20/07/2017,1707-00289,0.00,108.90,R,Adm Security,No
Http://opendatacommunities.org/id/metropolitan-district-council/leeds,Leeds City Council,31/07/2017,Children and Families,Safeguarding Targeted & Specialist,Supplies and Services,Security Services(Non Infrastructure),262,28/07/2017,1707-00290,0.00,108.90,R,Adm Security,No
Http://opendatacommunities.org/id/metropolitan-district-council/leeds,Leeds City Council,31/07/2017,Communities and Environment,Customer Access,Supplies and Services,Other Hired And Contracted Services,265,05/07/2017,1707-00291,0.00,119.50,R,Adrien Kaponczai,No
Http://opendatacommunities.org/id/metropolitan-district-council/leeds,Leeds City Council,31/07/2017,Strategic Landlord,Housing Management,Premises,Premises Security Services,162,12/07/2017,1707-00292,0.00,143.56,R,Adt Fire And Security Plc,No
Http://opendatacommunities.org/id/metropolitan-district-council/leeds,Leeds City Council,31/07/2017,Strategic Landlord,Housing Management,Premises,Premises Security Services,162,17/07/2017,1707-00293,0.00,946.09,R,Adt Fire And Security Plc,No
Http://opendatacommunities.org/id/metropolitan-district-council/leeds,Leeds City Council,31/07/2017,Civic Enterprise Leeds,Corporate Property Management,Premises,Maintenance Of Buildings,101,18/07/2017,1707-00294,0.00,259.00,R,Adt Fire And Security Plc,No
Http://opendatacommunities.org/id/metropolitan-district-council/leeds,Leeds City Council,31/07/2017,Civic Enterprise Leeds,Facilities Management  ,Supplies and Services,Operational Furniture And Equipment,203,23/06/2017,1707-00295,0.00,465.05,R,Adt Leeds Cc,Yes
Http://opendatacommunities.org/id/metropolitan-district-council/leeds,Leeds City Council as Accountable Body,31/07/2017,Social Services Pooled Budgets,Jcs For People With Learning Disabilitie,Third Party Payments,Sheltered Accommodation,569,06/07/2017,1707-00296,0.00,1332.20,R,Adult Placement Services,No
Http://opendatacommunities.org/id/metropolitan-district-council/leeds,Leeds City Council as Accountable Body,31/07/2017,Social Services Pooled Budgets,Jcs For People With Learning Disabilitie,Third Party Payments,Sheltered Accommodation,569,06/07/2017,1707-00297,0.00,452.00,R,Adult Placement Services,No
Http://opendatacommunities.org/id/metropolitan-district-council/leeds,Leeds City Council as Accountable Body,31/07/2017,Social Services Pooled Budgets,Jcs For People With Learning Disabilitie,Third Party Payments,Sheltered Accommodation,569,06/07/2017,1707-00298,0.00,1332.20,R,Adult Placement Services,No
Http://opendatacommunities.org/id/metropolitan-district-council/leeds,Leeds City Council as Accountable Body,31/07/2017,Social Services Pooled Budgets,Jcs For People With Learning Disabilitie,Third Party Payments,Sheltered Accommodation,569,06/07/2017,1707-00299,0.00,823.81,R,Adult Placement Services,No
Http://opendatacommunities.org/id/metropolitan-district-council/leeds,Leeds City Council as Accountable Body,31/07/2017,Social Services Pooled Budgets,Jcs For People With Learning Disabilitie,Third Party Payments,Sheltered Accommodation,569,21/07/2017,1707-00300,0.00,1332.20,R,Adult Placement Services,No
Http://opendatacommunities.org/id/metropolitan-district-council/leeds,Leeds City Council,31/07/2017,Adults and Health,Services For Adults Under 65 Mental/Dis,Third Party Payments,Nursing Home,570,26/07/2017,1707-00301,0.00,1541.96,R,Adult Supported Living Ltd,No
Http://opendatacommunities.org/id/metropolitan-district-council/leeds,Leeds City Council,31/07/2017,City Development,Libraries  Arts & Heritage,Supplies and Services,External Audit Fees,261,05/07/2017,1707-00302,0.00,90.00,R,Advance Stocks Ltd,No
Http://opendatacommunities.org/id/metropolitan-district-council/leeds,Leeds City Council,31/07/2017,City Development,Recreation,Supplies and Services,External Audit Fees,261,27/07/2017,1707-00303,0.00,235.00,R,Advance Stocks Ltd,No
Http://opendatacommunities.org/id/metropolitan-district-council/leeds,Leeds City Council,31/07/2017,City Development,Recreation,Supplies and Services,External Audit Fees,261,27/07/2017,1707-00304,0.00,90.00,R,Advance Stocks Ltd,No
Http://opendatacommunities.org/id/metropolitan-district-council/leeds,Leeds City Council as Accountable Body,31/07/2017,Social Services Pooled Budgets,Jcs For People With Learning Disabilitie,Third Party Payments,Day Centre,564,13/07/2017,1707-00305,0.00,492.05,R,Advitam Ltd,No
Http://opendatacommunities.org/id/metropolitan-district-council/leeds,Leeds City Council as Accountable Body,31/07/2017,Social Services Pooled Budgets,Jcs For People With Learning Disabilitie,Third Party Payments,Residential,580,26/07/2017,1707-00306,0.00,20183.88,R,Advitam Ltd,No
Http://opendatacommunities.org/id/metropolitan-district-council/leeds,Leeds City Council,31/07/2017,Adults and Health,Services For Adults Under 65 Mental/Dis,Third Party Payments,Payments To Voluntary Organisations,561,05/07/2017,1707-00307,0.00,244.16,R,Advonet,No
Http://opendatacommunities.org/id/metropolitan-district-council/leeds,Leeds City Council,31/07/2017,Adults and Health,Services For Adults Under 65 Mental/Dis,Third Party Payments,Payments To Voluntary Organisations,561,05/07/2017,1707-00308,0.00,8464.17,R,Advonet,No
Http://opendatacommunities.org/id/metropolitan-district-council/leeds,Leeds City Council,31/07/2017,Adults and Health,Services For Adults Under 65 Mental/Dis,Third Party Payments,Payments To Voluntary Organisations,561,05/07/2017,1707-00309,0.00,9451.84,R,Advonet,No
Http://opendatacommunities.org/id/metropolitan-district-council/leeds,Leeds City Council,31/07/2017,Adults and Health,Services For Older People - 65 And Over,Third Party Payments,Payments To Voluntary Organisations,561,14/07/2017,1707-00310,0.00,83435.70,R,Advonet,No
Http://opendatacommunities.org/id/metropolitan-district-council/leeds,Leeds City Council as Accountable Body,31/07/2017,Social Services Pooled Budgets,Jcs For People With Learning Disabilitie,Third Party Payments,Day Centre,564,06/07/2017,1707-00311,0.00,1440.00,R,Affinity Trust,No
Http://opendatacommunities.org/id/metropolitan-district-council/leeds,Leeds City Council as Accountable Body,31/07/2017,Social Services Pooled Budgets,Jcs For People With Learning Disabilitie,Third Party Payments,Day Centre,564,06/07/2017,1707-00312,0.00,1020.33,R,Affinity Trust,No
Http://opendatacommunities.org/id/metropolitan-district-council/leeds,Leeds City Council as Accountable Body,31/07/2017,Social Services Pooled Budgets,Jcs For People With Learning Disabilitie,Third Party Payments,Home Care,568,06/07/2017,1707-00313,0.00,1050.00,R,Affinity Trust,No
Http://opendatacommunities.org/id/metropolitan-district-council/leeds,Leeds City Council as Accountable Body,31/07/2017,Social Services Pooled Budgets,Jcs For People With Learning Disabilitie,Third Party Payments,Home Care,568,06/07/2017,1707-00314,0.00,508.74,R,Affinity Trust,No
Http://opendatacommunities.org/id/metropolitan-district-council/leeds,Leeds City Council as Accountable Body,31/07/2017,Social Services Pooled Budgets,Jcs For People With Learning Disabilitie,Third Party Payments,Home Care,568,06/07/2017,1707-00315,0.00,1560.00,R,Affinity Trust,No
Http://opendatacommunities.org/id/metropolitan-district-council/leeds,Leeds City Council as Accountable Body,31/07/2017,Social Services Pooled Budgets,Jcs For People With Learning Disabilitie,Third Party Payments,Home Care,568,06/07/2017,1707-00316,0.00,2512.80,R,Affinity Trust,No
Http://opendatacommunities.org/id/metropolitan-district-council/leeds,Leeds City Council as Accountable Body,31/07/2017,Social Services Pooled Budgets,Jcs For People With Learning Disabilitie,Third Party Payments,Home Care,568,06/07/2017,1707-00317,0.00,1770.99,R,Affinity Trust,No
Http://opendatacommunities.org/id/metropolitan-district-council/leeds,Leeds City Council as Accountable Body,31/07/2017,Social Services Pooled Budgets,Jcs For People With Learning Disabilitie,Third Party Payments,Home Care,568,06/07/2017,1707-00318,0.00,991.98,R,Affinity Trust,No
Http://opendatacommunities.org/id/metropolitan-district-council/leeds,Leeds City Council as Accountable Body,31/07/2017,Social Services Pooled Budgets,Jcs For People With Learning Disabilitie,Third Party Payments,Home Care,568,06/07/2017,1707-00319,0.00,3172.89,R,Affinity Trust,No
Http://opendatacommunities.org/id/metropolitan-district-council/leeds,Leeds City Council as Accountable Body,31/07/2017,Social Services Pooled Budgets,Jcs For People With Learning Disabilitie,Third Party Payments,Day Centre,564,06/07/2017,1707-00320,0.00,938.56,R,Affinity Trust,No
Http://opendatacommunities.org/id/metropolitan-district-council/leeds,Leeds City Council as Accountable Body,31/07/2017,Social Services Pooled Budgets,Jcs For People With Learning Disabilitie,Third Party Payments,Home Care,568,06/07/2017,1707-00321,0.00,525.72,R,Affinity Trust,No
Http://opendatacommunities.org/id/metropolitan-district-council/leeds,Leeds City Council as Accountable Body,31/07/2017,Social Services Pooled Budgets,Jcs For People With Learning Disabilitie,Third Party Payments,Day Centre,564,06/07/2017,1707-00322,0.00,2598.90,R,Affinity Trust,No
Http://opendatacommunities.org/id/metropolitan-district-council/leeds,Leeds City Council as Accountable Body,31/07/2017,Social Services Pooled Budgets,Jcs For People With Learning Disabilitie,Third Party Payments,Home Care,568,06/07/2017,1707-00323,0.00,1495.85,R,Affinity Trust,No
Http://opendatacommunities.org/id/metropolitan-district-council/leeds,Leeds City Council as Accountable Body,31/07/2017,Social Services Pooled Budgets,Jcs For People With Learning Disabilitie,Third Party Payments,Home Care,568,06/07/2017,1707-00324,0.00,804.48,R,Affinity Trust,No
Http://opendatacommunities.org/id/metropolitan-district-council/leeds,Leeds City Council as Accountable Body,31/07/2017,Social Services Pooled Budgets,Jcs For People With Learning Disabilitie,Third Party Payments,Home Care,568,06/07/2017,1707-00325,0.00,1176.98,R,Affinity Trust,No
Http://opendatacommunities.org/id/metropolitan-district-council/leeds,Leeds City Council as Accountable Body,31/07/2017,Social Services Pooled Budgets,Jcs For People With Learning Disabilitie,Third Party Payments,Home Care,568,06/07/2017,1707-00326,0.00,1577.97,R,Affinity Trust,No
Http://opendatacommunities.org/id/metropolitan-district-council/leeds,Leeds City Council as Accountable Body,31/07/2017,Social Services Pooled Budgets,Jcs For People With Learning Disabilitie,Third Party Payments,Home Care,568,06/07/2017,1707-00327,0.00,1005.60,R,Affinity Trust,No
Http://opendatacommunities.org/id/metropolitan-district-council/leeds,Leeds City Council as Accountable Body,31/07/2017,Social Services Pooled Budgets,Jcs For People With Learning Disabilitie,Third Party Payments,Home Care,568,06/07/2017,1707-00328,0.00,360.00,R,Affinity Trust,No
Http://opendatacommunities.org/id/metropolitan-district-council/leeds,Leeds City Council as Accountable Body,31/07/2017,Social Services Pooled Budgets,Jcs For People With Learning Disabilitie,Third Party Payments,Home Care,568,06/07/2017,1707-00329,0.00,298.31,R,Affinity Trust,No
Http://opendatacommunities.org/id/metropolitan-district-council/leeds,Leeds City Council as Accountable Body,31/07/2017,Social Services Pooled Budgets,Jcs For People With Learning Disabilitie,Third Party Payments,Home Care,568,06/07/2017,1707-00330,0.00,402.24,R,Affinity Trust,No
Http://opendatacommunities.org/id/metropolitan-district-council/leeds,Leeds City Council as Accountable Body,31/07/2017,Social Services Pooled Budgets,Jcs For People With Learning Disabilitie,Third Party Payments,Day Centre,564,06/07/2017,1707-00331,0.00,714.78,R,Affinity Trust,No
Http://opendatacommunities.org/id/metropolitan-district-council/leeds,Leeds City Council as Accountable Body,31/07/2017,Social Services Pooled Budgets,Jcs For People With Learning Disabilitie,Third Party Payments,Day Centre,564,06/07/2017,1707-00332,0.00,2279.36,R,Affinity Trust,No
Http://opendatacommunities.org/id/metropolitan-district-council/leeds,Leeds City Council as Accountable Body,31/07/2017,Social Services Pooled Budgets,Jcs For People With Learning Disabilitie,Third Party Payments,Day Centre,564,06/07/2017,1707-00333,0.00,1337.31,R,Affinity Trust,No
Http://opendatacommunities.org/id/metropolitan-district-council/leeds,Leeds City Council as Accountable Body,31/07/2017,Social Services Pooled Budgets,Jcs For People With Learning Disabilitie,Third Party Payments,Home Care,568,06/07/2017,1707-00334,0.00,974.78,R,Affinity Trust,No
Http://opendatacommunities.org/id/metropolitan-district-council/leeds,Leeds City Council as Accountable Body,31/07/2017,Social Services Pooled Budgets,Jcs For People With Learning Disabilitie,Third Party Payments,Home Care,568,06/07/2017,1707-00335,0.00,627.22,R,Affinity Trust,No
Http://opendatacommunities.org/id/metropolitan-district-council/leeds,Leeds City Council as Accountable Body,31/07/2017,Social Services Pooled Budgets,Jcs For People With Learning Disabilitie,Third Party Payments,Home Care,568,06/07/2017,1707-00336,0.00,300.00,R,Affinity Trust,No
Http://opendatacommunities.org/id/metropolitan-district-council/leeds,Leeds City Council as Accountable Body,31/07/2017,Social Services Pooled Budgets,Jcs For People With Learning Disabilitie,Third Party Payments,Home Care,568,06/07/2017,1707-00337,0.00,1222.47,R,Affinity Trust,No
Http://opendatacommunities.org/id/metropolitan-district-council/leeds,Leeds City Council as Accountable Body,31/07/2017,Social Services Pooled Budgets,Jcs For People With Learning Disabilitie,Third Party Payments,Home Care,568,06/07/2017,1707-00338,0.00,351.56,R,Affinity Trust,No
Http://opendatacommunities.org/id/metropolitan-district-council/leeds,Leeds City Council as Accountable Body,31/07/2017,Social Services Pooled Budgets,Jcs For People With Learning Disabilitie,Third Party Payments,Home Care,568,06/07/2017,1707-00339,0.00,612.00,R,Affinity Trust,No
Http://opendatacommunities.org/id/metropolitan-district-council/leeds,Leeds City Council as Accountable Body,31/07/2017,Social Services Pooled Budgets,Jcs For People With Learning Disabilitie,Third Party Payments,Day Centre,564,06/07/2017,1707-00340,0.00,416.64,R,Affinity Trust,No
Http://opendatacommunities.org/id/metropolitan-district-council/leeds,Leeds City Council as Accountable Body,31/07/2017,Social Services Pooled Budgets,Jcs For People With Learning Disabilitie,Third Party Payments,Home Care,568,06/07/2017,1707-00341,0.00,767.04,R,Affinity Trust,No
Http://opendatacommunities.org/id/metropolitan-district-council/leeds,Leeds City Council as Accountable Body,31/07/2017,Social Services Pooled Budgets,Jcs For People With Learning Disabilitie,Third Party Payments,Home Care,568,06/07/2017,1707-00342,0.00,1452.00,R,Affinity Trust,No
Http://opendatacommunities.org/id/metropolitan-district-council/leeds,Leeds City Council as Accountable Body,31/07/2017,Social Services Pooled Budgets,Jcs For People With Learning Disabilitie,Third Party Payments,Home Care,568,06/07/2017,1707-00343,0.00,1211.04,R,Affinity Trust,No
Http://opendatacommunities.org/id/metropolitan-district-council/leeds,Leeds City Council as Accountable Body,31/07/2017,Social Services Pooled Budgets,Jcs For People With Learning Disabilitie,Third Party Payments,Home Care,568,06/07/2017,1707-00344,0.00,1382.27,R,Affinity Trust,No
Http://opendatacommunities.org/id/metropolitan-district-council/leeds,Leeds City Council as Accountable Body,31/07/2017,Social Services Pooled Budgets,Jcs For People With Learning Disabilitie,Third Party Payments,Home Care,568,06/07/2017,1707-00345,0.00,191.76,R,Affinity Trust,No
Http://opendatacommunities.org/id/metropolitan-district-council/leeds,Leeds City Council as Accountable Body,31/07/2017,Social Services Pooled Budgets,Jcs For People With Learning Disabilitie,Third Party Payments,Home Care,568,06/07/2017,1707-00346,0.00,639.20,R,Affinity Trust,No
Http://opendatacommunities.org/id/metropolitan-district-council/leeds,Leeds City Council as Accountable Body,31/07/2017,Social Services Pooled Budgets,Jcs For People With Learning Disabilitie,Third Party Payments,Home Care,568,06/07/2017,1707-00347,0.00,408.00,R,Affinity Trust,No
Http://opendatacommunities.org/id/metropolitan-district-council/leeds,Leeds City Council as Accountable Body,31/07/2017,Social Services Pooled Budgets,Jcs For People With Learning Disabilitie,Third Party Payments,Home Care,568,06/07/2017,1707-00348,0.00,1118.60,R,Affinity Trust,No
Http://opendatacommunities.org/id/metropolitan-district-council/leeds,Leeds City Council as Accountable Body,31/07/2017,Social Services Pooled Budgets,Jcs For People With Learning Disabilitie,Third Party Payments,Home Care,568,06/07/2017,1707-00349,0.00,2956.30,R,Affinity Trust,No
Http://opendatacommunities.org/id/metropolitan-district-council/leeds,Leeds City Council as Accountable Body,31/07/2017,Social Services Pooled Budgets,Jcs For People With Learning Disabilitie,Third Party Payments,Home Care,568,06/07/2017,1707-00350,0.00,102.16,R,Affinity Trust,No
Http://opendatacommunities.org/id/metropolitan-district-council/leeds,Leeds City Council as Accountable Body,31/07/2017,Social Services Pooled Budgets,Jcs For People With Learning Disabilitie,Third Party Payments,Home Care,568,06/07/2017,1707-00351,0.00,941.92,R,Affinity Trust,No
Http://opendatacommunities.org/id/metropolitan-district-council/leeds,Leeds City Council as Accountable Body,31/07/2017,Social Services Pooled Budgets,Jcs For People With Learning Disabilitie,Third Party Payments,Home Care,568,06/07/2017,1707-00352,0.00,319.60,R,Affinity Trust,No
Http://opendatacommunities.org/id/metropolitan-district-council/leeds,Leeds City Council as Accountable Body,31/07/2017,Social Services Pooled Budgets,Jcs For People With Learning Disabilitie,Third Party Payments,Home Care,568,06/07/2017,1707-00353,0.00,335.58,R,Affinity Trust,No
Http://opendatacommunities.org/id/metropolitan-district-council/leeds,Leeds City Council as Accountable Body,31/07/2017,Social Services Pooled Budgets,Jcs For People With Learning Disabilitie,Third Party Payments,Home Care,568,06/07/2017,1707-00354,0.00,958.80,R,Affinity Trust,No
Http://opendatacommunities.org/id/metropolitan-district-council/leeds,Leeds City Council as Accountable Body,31/07/2017,Social Services Pooled Budgets,Jcs For People With Learning Disabilitie,Third Party Payments,Home Care,568,06/07/2017,1707-00355,0.00,942.82,R,Affinity Trust,No
Http://opendatacommunities.org/id/metropolitan-district-council/leeds,Leeds City Council as Accountable Body,31/07/2017,Social Services Pooled Budgets,Jcs For People With Learning Disabilitie,Third Party Payments,Home Care,568,06/07/2017,1707-00356,0.00,958.80,R,Affinity Trust,No
Http://opendatacommunities.org/id/metropolitan-district-council/leeds,Leeds City Council as Accountable Body,31/07/2017,Social Services Pooled Budgets,Jcs For People With Learning Disabilitie,Third Party Payments,Home Care,568,06/07/2017,1707-00357,0.00,966.79,R,Affinity Trust,No
Http://opendatacommunities.org/id/metropolitan-district-council/leeds,Leeds City Council as Accountable Body,31/07/2017,Social Services Pooled Budgets,Jcs For People With Learning Disabilitie,Third Party Payments,Home Care,568,06/07/2017,1707-00358,0.00,1190.51,R,Affinity Trust,No
Http://opendatacommunities.org/id/metropolitan-district-council/leeds,Leeds City Council as Accountable Body,31/07/2017,Social Services Pooled Budgets,Jcs For People With Learning Disabilitie,Third Party Payments,Home Care,568,06/07/2017,1707-00359,0.00,1278.40,R,Affinity Trust,No
Http://opendatacommunities.org/id/metropolitan-district-council/leeds,Leeds City Council as Accountable Body,31/07/2017,Social Services Pooled Budgets,Jcs For People With Learning Disabilitie,Third Party Payments,Home Care,568,06/07/2017,1707-00360,0.00,511.36,R,Affinity Trust,No
Http://opendatacommunities.org/id/metropolitan-district-council/leeds,Leeds City Council as Accountable Body,31/07/2017,Social Services Pooled Budgets,Jcs For People With Learning Disabilitie,Third Party Payments,Home Care,568,06/07/2017,1707-00361,0.00,816.00,R,Affinity Trust,No
Http://opendatacommunities.org/id/metropolitan-district-council/leeds,Leeds City Council as Accountable Body,31/07/2017,Social Services Pooled Budgets,Jcs For People With Learning Disabilitie,Third Party Payments,Day Centre,564,06/07/2017,1707-00362,0.00,364.56,R,Affinity Trust,No
Http://opendatacommunities.org/id/metropolitan-district-council/leeds,Leeds City Council as Accountable Body,31/07/2017,Social Services Pooled Budgets,Jcs For People With Learning Disabilitie,Third Party Payments,Home Care,568,06/07/2017,1707-00363,0.00,671.16,R,Affinity Trust,No
Http://opendatacommunities.org/id/metropolitan-district-council/leeds,Leeds City Council as Accountable Body,31/07/2017,Social Services Pooled Budgets,Jcs For People With Learning Disabilitie,Third Party Payments,Home Care,568,06/07/2017,1707-00364,0.00,1452.00,R,Affinity Trust,No
Http://opendatacommunities.org/id/metropolitan-district-council/leeds,Leeds City Council as Accountable Body,31/07/2017,Social Services Pooled Budgets,Jcs For People With Learning Disabilitie,Third Party Payments,Home Care,568,06/07/2017,1707-00365,0.00,1211.04,R,Affinity Trust,No
Http://opendatacommunities.org/id/metropolitan-district-council/leeds,Leeds City Council as Accountable Body,31/07/2017,Social Services Pooled Budgets,Jcs For People With Learning Disabilitie,Third Party Payments,Home Care,568,06/07/2017,1707-00366,0.00,1374.28,R,Affinity Trust,No
Http://opendatacommunities.org/id/metropolitan-district-council/leeds,Leeds City Council as Accountable Body,31/07/2017,Social Services Pooled Budgets,Jcs For People With Learning Disabilitie,Third Party Payments,Home Care,568,06/07/2017,1707-00367,0.00,191.76,R,Affinity Trust,No
Http://opendatacommunities.org/id/metropolitan-district-council/leeds,Leeds City Council as Accountable Body,31/07/2017,Social Services Pooled Budgets,Jcs For People With Learning Disabilitie,Third Party Payments,Home Care,568,06/07/2017,1707-00368,0.00,639.20,R,Affinity Trust,No
Http://opendatacommunities.org/id/metropolitan-district-council/leeds,Leeds City Council as Accountable Body,31/07/2017,Social Services Pooled Budgets,Jcs For People With Learning Disabilitie,Third Party Payments,Home Care,568,06/07/2017,1707-00369,0.00,408.00,R,Affinity Trust,No
Http://opendatacommunities.org/id/metropolitan-district-council/leeds,Leeds City Council as Accountable Body,31/07/2017,Social Services Pooled Budgets,Jcs For People With Learning Disabilitie,Third Party Payments,Home Care,568,06/07/2017,1707-00370,0.00,1062.67,R,Affinity Trust,No
Http://opendatacommunities.org/id/metropolitan-district-council/leeds,Leeds City Council as Accountable Body,31/07/2017,Social Services Pooled Budgets,Jcs For People With Learning Disabilitie,Third Party Payments,Home Care,568,06/07/2017,1707-00371,0.00,3052.18,R,Affinity Trust,No
Http://opendatacommunities.org/id/metropolitan-district-council/leeds,Leeds City Council as Accountable Body,31/07/2017,Social Services Pooled Budgets,Jcs For People With Learning Disabilitie,Third Party Payments,Home Care,568,06/07/2017,1707-00372,0.00,306.48,R,Affinity Trust,No
Http://opendatacommunities.org/id/metropolitan-district-council/leeds,Leeds City Council as Accountable Body,31/07/2017,Social Services Pooled Budgets,Jcs For People With Learning Disabilitie,Third Party Payments,Home Care,568,06/07/2017,1707-00373,0.00,824.18,R,Affinity Trust,No
Http://opendatacommunities.org/id/metropolitan-district-council/leeds,Leeds City Council as Accountable Body,31/07/2017,Social Services Pooled Budgets,Jcs For People With Learning Disabilitie,Third Party Payments,Home Care,568,06/07/2017,1707-00374,0.00,319.60,R,Affinity Trust,No
Http://opendatacommunities.org/id/metropolitan-district-council/leeds,Leeds City Council as Accountable Body,31/07/2017,Social Services Pooled Budgets,Jcs For People With Learning Disabilitie,Third Party Payments,Home Care,568,06/07/2017,1707-00375,0.00,806.99,R,Affinity Trust,No
Http://opendatacommunities.org/id/metropolitan-district-council/leeds,Leeds City Council as Accountable Body,31/07/2017,Social Services Pooled Budgets,Jcs For People With Learning Disabilitie,Third Party Payments,Home Care,568,06/07/2017,1707-00376,0.00,423.47,R,Affinity Trust,No
Http://opendatacommunities.org/id/metropolitan-district-council/leeds,Leeds City Council as Accountable Body,31/07/2017,Social Services Pooled Budgets,Jcs For People With Learning Disabilitie,Third Party Payments,Day Centre,564,06/07/2017,1707-00377,0.00,1350.00,R,Affinity Trust,No
Http://opendatacommunities.org/id/metropolitan-district-council/leeds,Leeds City Council as Accountable Body,31/07/2017,Social Services Pooled Budgets,Jcs For People With Learning Disabilitie,Third Party Payments,Day Centre,564,06/07/2017,1707-00378,0.00,1065.33,R,Affinity Trust,No
Http://opendatacommunities.org/id/metropolitan-district-council/leeds,Leeds City Council as Accountable Body,31/07/2017,Social Services Pooled Budgets,Jcs For People With Learning Disabilitie,Third Party Payments,Home Care,568,06/07/2017,1707-00379,0.00,885.00,R,Affinity Trust,No
Http://opendatacommunities.org/id/metropolitan-district-council/leeds,Leeds City Council as Accountable Body,31/07/2017,Social Services Pooled Budgets,Jcs For People With Learning Disabilitie,Third Party Payments,Home Care,568,06/07/2017,1707-00380,0.00,2503.40,R,Affinity Trust,No
Http://opendatacommunities.org/id/metropolitan-district-council/leeds,Leeds City Council as Accountable Body,31/07/2017,Social Services Pooled Budgets,Jcs For People With Learning Disabilitie,Third Party Payments,Home Care,568,06/07/2017,1707-00381,0.00,1770.99,R,Affinity Trust,No
Http://opendatacommunities.org/id/metropolitan-district-council/leeds,Leeds City Council as Accountable Body,31/07/2017,Social Services Pooled Budgets,Jcs For People With Learning Disabilitie,Third Party Payments,Home Care,568,06/07/2017,1707-00382,0.00,945.99,R,Affinity Trust,No
Http://opendatacommunities.org/id/metropolitan-district-council/leeds,Leeds City Council as Accountable Body,31/07/2017,Social Services Pooled Budgets,Jcs For People With Learning Disabilitie,Third Party Payments,Home Care,568,06/07/2017,1707-00383,0.00,465.06,R,Affinity Trust,No
Http://opendatacommunities.org/id/metropolitan-district-council/leeds,Leeds City Council as Accountable Body,31/07/2017,Social Services Pooled Budgets,Jcs For People With Learning Disabilitie,Third Party Payments,Day Centre,564,06/07/2017,1707-00384,0.00,3243.60,R,Affinity Trust,No
Http://opendatacommunities.org/id/metropolitan-district-council/leeds,Leeds City Council as Accountable Body,31/07/2017,Social Services Pooled Budgets,Jcs For People With Learning Disabilitie,Third Party Payments,Home Care,568,06/07/2017,1707-00385,0.00,1458.20,R,Affinity Trust,No
Http://opendatacommunities.org/id/metropolitan-district-council/leeds,Leeds City Council as Accountable Body,31/07/2017,Social Services Pooled Budgets,Jcs For People With Learning Disabilitie,Third Party Payments,Home Care,568,06/07/2017,1707-00386,0.00,754.20,R,Affinity Trust,No
Http://opendatacommunities.org/id/metropolitan-district-council/leeds,Leeds City Council as Accountable Body,31/07/2017,Social Services Pooled Budgets,Jcs For People With Learning Disabilitie,Third Party Payments,Home Care,568,06/07/2017,1707-00387,0.00,1136.54,R,Affinity Trust,No
Http://opendatacommunities.org/id/metropolitan-district-council/leeds,Leeds City Council as Accountable Body,31/07/2017,Social Services Pooled Budgets,Jcs For People With Learning Disabilitie,Third Party Payments,Home Care,568,06/07/2017,1707-00388,0.00,1519.29,R,Affinity Trust,No
Http://opendatacommunities.org/id/metropolitan-district-council/leeds,Leeds City Council as Accountable Body,31/07/2017,Social Services Pooled Budgets,Jcs For People With Learning Disabilitie,Third Party Payments,Home Care,568,06/07/2017,1707-00389,0.00,921.80,R,Affinity Trust,No
Http://opendatacommunities.org/id/metropolitan-district-council/leeds,Leeds City Council as Accountable Body,31/07/2017,Social Services Pooled Budgets,Jcs For People With Learning Disabilitie,Third Party Payments,Home Care,568,06/07/2017,1707-00390,0.00,360.00,R,Affinity Trust,No
Http://opendatacommunities.org/id/metropolitan-district-council/leeds,Leeds City Council as Accountable Body,31/07/2017,Social Services Pooled Budgets,Jcs For People With Learning Disabilitie,Third Party Payments,Home Care,568,06/07/2017,1707-00391,0.00,301.68,R,Affinity Trust,No
Http://opendatacommunities.org/id/metropolitan-district-council/leeds,Leeds City Council as Accountable Body,31/07/2017,Social Services Pooled Budgets,Jcs For People With Learning Disabilitie,Third Party Payments,Day Centre,564,06/07/2017,1707-00392,0.00,601.92,R,Affinity Trust,No
Http://opendatacommunities.org/id/metropolitan-district-council/leeds,Leeds City Council as Accountable Body,31/07/2017,Social Services Pooled Budgets,Jcs For People With Learning Disabilitie,Third Party Payments,Day Centre,564,06/07/2017,1707-00393,0.00,1994.44,R,Affinity Trust,No
Http://opendatacommunities.org/id/metropolitan-district-council/leeds,Leeds City Council as Accountable Body,31/07/2017,Social Services Pooled Budgets,Jcs For People With Learning Disabilitie,Third Party Payments,Day Centre,564,06/07/2017,1707-00394,0.00,966.60,R,Affinity Trust,No
Http://opendatacommunities.org/id/metropolitan-district-council/leeds,Leeds City Council as Accountable Body,31/07/2017,Social Services Pooled Budgets,Jcs For People With Learning Disabilitie,Third Party Payments,Day Centre,564,06/07/2017,1707-00395,0.00,14162.33,R,Affinity Trust,No
Http://opendatacommunities.org/id/metropolitan-district-council/leeds,Leeds City Council as Accountable Body,31/07/2017,Social Services Pooled Budgets,Jcs For People With Learning Disabilitie,Third Party Payments,Day Centre,564,06/07/2017,1707-00396,0.00,17538.00,R,Affinity Trust,No
Http://opendatacommunities.org/id/metropolitan-district-council/leeds,Leeds City Council,31/07/2017,Adults and Health,Services For Older People - 65 And Over,Third Party Payments,Home Care,568,06/07/2017,1707-00397,0.00,335.58,R,Affinity Trust,No
Http://opendatacommunities.org/id/metropolitan-district-council/leeds,Leeds City Council as Accountable Body,31/07/2017,Social Services Pooled Budgets,Jcs For People With Learning Disabilitie,Third Party Payments,Day Centre,564,06/07/2017,1707-00398,0.00,1245.33,R,Affinity Trust,No
Http://opendatacommunities.org/id/metropolitan-district-council/leeds,Leeds City Council as Accountable Body,31/07/2017,Social Services Pooled Budgets,Jcs For People With Learning Disabilitie,Third Party Payments,Day Centre,564,06/07/2017,1707-00399,0.00,1035.99,R,Affinity Trust,No
Http://opendatacommunities.org/id/metropolitan-district-council/leeds,Leeds City Council,31/07/2017,Adults and Health,Services For Older People Under 65 P/Dis,Third Party Payments,Home Care,568,07/07/2017,1707-00400,0.00,934.83,R,Affinity Trust,No
Http://opendatacommunities.org/id/metropolitan-district-council/leeds,Leeds City Council,31/07/2017,Adults and Health,Services For Older People Under 65 P/Dis,Third Party Payments,Home Care,568,07/07/2017,1707-00401,0.00,503.37,R,Affinity Trust,No
Http://opendatacommunities.org/id/metropolitan-district-council/leeds,Leeds City Council,31/07/2017,Adults and Health,Services For Older People - 65 And Over,Third Party Payments,Home Care,568,07/07/2017,1707-00402,0.00,1076.48,R,Affinity Trust,No
Http://opendatacommunities.org/id/metropolitan-district-council/leeds,Leeds City Council,31/07/2017,Adults and Health,Services For Older People - 65 And Over,Third Party Payments,Home Care,568,07/07/2017,1707-00403,0.00,1685.89,R,Affinity Trust,No
Http://opendatacommunities.org/id/metropolitan-district-council/leeds,Leeds City Council as Accountable Body,31/07/2017,Social Services Pooled Budgets,Jcs For People With Learning Disabilitie,Third Party Payments,Home Care,568,13/07/2017,1707-00404,0.00,748.41,R,Affinity Trust,No
Http://opendatacommunities.org/id/metropolitan-district-council/leeds,Leeds City Council as Accountable Body,31/07/2017,Social Services Pooled Budgets,Jcs For People With Learning Disabilitie,Third Party Payments,Home Care,568,13/07/2017,1707-00405,0.00,1560.00,R,Affinity Trust,No
Http://opendatacommunities.org/id/metropolitan-district-council/leeds,Leeds City Council as Accountable Body,31/07/2017,Social Services Pooled Budgets,Jcs For People With Learning Disabilitie,Third Party Payments,Home Care,568,13/07/2017,1707-00406,0.00,3007.83,R,Affinity Trust,No
Http://opendatacommunities.org/id/metropolitan-district-council/leeds,Leeds City Council as Accountable Body,31/07/2017,Social Services Pooled Budgets,Jcs For People With Learning Disabilitie,Third Party Payments,Day Centre,564,13/07/2017,1707-00407,0.00,804.48,R,Affinity Trust,No
Http://opendatacommunities.org/id/metropolitan-district-council/leeds,Leeds City Council,31/07/2017,Adults and Health,Services For Older People Under 65 P/Dis,Third Party Payments,Home Care,568,28/07/2017,1707-00408,0.00,526.68,R,Affinity Trust,No
Http://opendatacommunities.org/id/metropolitan-district-council/leeds,Leeds City Council,31/07/2017,Adults and Health,Services For Older People Under 65 P/Dis,Third Party Payments,Home Care,568,28/07/2017,1707-00409,0.00,100.92,R,Affinity Trust,No
Http://opendatacommunities.org/id/metropolitan-district-council/leeds,Leeds City Council,31/07/2017,Adults and Health,Services For Older People Under 65 P/Dis,Third Party Payments,Home Care,568,28/07/2017,1707-00410,0.00,403.68,R,Affinity Trust,No
Http://opendatacommunities.org/id/metropolitan-district-council/leeds,Leeds City Council as Accountable Body,31/07/2017,Social Services Pooled Budgets,Jcs For People With Learning Disabilitie,Third Party Payments,Sheltered Accommodation,569,26/07/2017,1707-00411,0.00,140473.33,R,Affinity Trust North Divisional Office,No
Http://opendatacommunities.org/id/metropolitan-district-council/leeds,Leeds City Council,31/07/2017,City Development,Libraries  Arts & Heritage,Supplies and Services,Other Hired And Contracted Services,265,21/07/2017,1707-00412,0.00,200.00,R,After Hours,No
Http://opendatacommunities.org/id/metropolitan-district-council/leeds,Leeds City Council,31/07/2017,Adults and Health,Other Adult Services,Supplies and Services,Food & Drink,231,28/07/2017,1707-00413,0.00,100.00,R,Age Uk Leeds Enterprises,No
Http://opendatacommunities.org/id/metropolitan-district-council/leeds,Leeds City Council,31/07/2017,Children and Families,Safeguarding Targeted & Specialist,Transfer Payments,Leaving Care Grants,635,13/07/2017,1707-00414,0.00,945.22,R,REDACTED PERSONAL DATA,No
Http://opendatacommunities.org/id/metropolitan-district-council/leeds,Leeds City Council,31/07/2017,Children and Families,Learning Skills & Universal,Supplies and Services,Teaching Materials,202,12/07/2017,1707-00415,0.00,38.46,R,Aid Training & Operations Ltd,No
Http://opendatacommunities.org/id/metropolitan-district-council/leeds,Leeds City Council,31/07/2017,Children and Families,Learning Skills & Universal,Supplies and Services,Teaching Materials,202,13/07/2017,1707-00416,0.00,12.96,R,Aid Training & Operations Ltd,No
Http://opendatacommunities.org/id/metropolitan-district-council/leeds,Leeds City Council,31/07/2017,Children and Families,Learning Skills & Universal,Supplies and Services,Teaching Materials,202,31/07/2017,1707-00417,0.00,40.96,R,Aid Training & Operations Ltd,No
Http://opendatacommunities.org/id/metropolitan-district-council/leeds,Leeds City Council as Accountable Body,31/07/2017,Social Services Pooled Budgets,Leeds Community Equip Store Pooled Budgt,Supplies and Services,Other Equipment,203,06/07/2017,1707-00418,0.00,215.00,R,Aidapt Bathrooms Ltd,No
Http://opendatacommunities.org/id/metropolitan-district-council/leeds,Leeds City Council as Accountable Body,31/07/2017,Social Services Pooled Budgets,Leeds Community Equip Store Pooled Budgt,Supplies and Services,Other Equipment,203,06/07/2017,1707-00419,0.00,2542.25,R,Aidapt Bathrooms Ltd,No
Http://opendatacommunities.org/id/metropolitan-district-council/leeds,Leeds City Council as Accountable Body,31/07/2017,Social Services Pooled Budgets,Leeds Community Equip Store Pooled Budgt,Supplies and Services,Other Equipment,203,13/07/2017,1707-00420,0.00,91.20,R,Aidapt Bathrooms Ltd,No
Http://opendatacommunities.org/id/metropolitan-district-council/leeds,Leeds City Council as Accountable Body,31/07/2017,Social Services Pooled Budgets,Leeds Community Equip Store Pooled Budgt,Supplies and Services,Other Equipment,203,13/07/2017,1707-00421,0.00,415.50,R,Aidapt Bathrooms Ltd,No
Http://opendatacommunities.org/id/metropolitan-district-council/leeds,Leeds City Council as Accountable Body,31/07/2017,Social Services Pooled Budgets,Leeds Community Equip Store Pooled Budgt,Supplies and Services,Other Equipment,203,21/07/2017,1707-00422,0.00,2085.30,R,Aidapt Bathrooms Ltd,No
Http://opendatacommunities.org/id/metropolitan-district-council/leeds,Leeds City Council as Accountable Body,31/07/2017,Social Services Pooled Budgets,Leeds Community Equip Store Pooled Budgt,Supplies and Services,Other Equipment,203,28/07/2017,1707-00423,0.00,1160.80,R,Aidapt Bathrooms Ltd,No
Http://opendatacommunities.org/id/metropolitan-district-council/leeds,Leeds City Council,31/07/2017,Environment & Housing,Leeds Building Services,Supplies and Services,Operational Materials,205,06/07/2017,1707-00424,0.00,2163.42,R,Air Conditioning Accessories,No
Http://opendatacommunities.org/id/metropolitan-district-council/leeds,Leeds City Council,31/07/2017,Environment & Housing,Leeds Building Services,Supplies and Services,Operational Materials,205,21/07/2017,1707-00425,0.00,72.15,R,Air Conditioning Accessories,No
Http://opendatacommunities.org/id/metropolitan-district-council/leeds,Leeds City Council,31/07/2017,Environment & Housing,Leeds Building Services,Supplies and Services,Operational Materials,205,21/07/2017,1707-00426,0.00,63.06,R,Air Conditioning Accessories,No
Http://opendatacommunities.org/id/metropolitan-district-council/leeds,Leeds City Council,31/07/2017,Environment & Housing,Leeds Building Services,Supplies and Services,Operational Materials,205,21/07/2017,1707-00427,0.00,17.33,R,Air Conditioning Accessories,No
Http://opendatacommunities.org/id/metropolitan-district-council/leeds,Leeds City Council,31/07/2017,Environment & Housing,Leeds Building Services,Supplies and Services,Operational Materials,205,25/07/2017,1707-00428,0.00,282.60,R,Air Conditioning Accessories,No
Http://opendatacommunities.org/id/metropolitan-district-council/leeds,Leeds City Council,31/07/2017,Civic Enterprise Leeds,Commercial Services  ,Supplies and Services,Operational Materials,205,01/06/2017,1707-00429,0.00,79.15,R,Air Force Pneumati,Yes
Http://opendatacommunities.org/id/metropolitan-district-council/leeds,Leeds City Council,31/07/2017,Civic Enterprise Leeds,Commercial Services  ,Supplies and Services,Operational Materials,205,09/06/2017,1707-00430,0.00,26.00,R,Air Force Pneumati,Yes
Http://opendatacommunities.org/id/metropolitan-district-council/leeds,Leeds City Council,31/07/2017,Civic Enterprise Leeds,Commercial Services  ,Supplies and Services,Operational Materials,205,09/06/2017,1707-00431,0.00,88.00,R,Air Force Pneumati,Yes
Http://opendatacommunities.org/id/metropolitan-district-council/leeds,Leeds City Council,31/07/2017,Civic Enterprise Leeds,Commercial Services  ,Supplies and Services,Operational Materials,205,26/06/2017,1707-00432,0.00,108.85,R,Air Force Pneumati,Yes
Http://opendatacommunities.org/id/metropolitan-district-council/leeds,Leeds City Council,31/07/2017,Environment & Housing,Environmental Health,Supplies and Services,Operational Furniture And Equipment,203,05/07/2017,1707-00433,0.00,14.31,R,Air Liquide Uk,No
Http://opendatacommunities.org/id/metropolitan-district-council/leeds,Leeds City Council,31/07/2017,Environment & Housing,Environmental Health,Supplies and Services,Operational Furniture And Equipment,203,07/07/2017,1707-00434,0.00,75.12,R,Air Liquide Uk,No
Http://opendatacommunities.org/id/metropolitan-district-council/leeds,Leeds City Council,31/07/2017,Environment & Housing,Environmental Health,Supplies and Services,Operational Furniture And Equipment,203,28/07/2017,1707-00435,0.00,14.31,R,Air Liquide Uk,No
Http://opendatacommunities.org/id/metropolitan-district-council/leeds,Leeds City Council,31/07/2017,Adults and Health,Services For Adults Under 65 Mental/Dis,Third Party Payments,Residential,580,26/07/2017,1707-00436,0.00,6028.00,R,Aire House,No
Http://opendatacommunities.org/id/metropolitan-district-council/leeds,Leeds City Council as Accountable Body,31/07/2017,Social Services Pooled Budgets,Jcs For People With Learning Disabilitie,Third Party Payments,Residential,580,26/07/2017,1707-00437,0.00,3059.84,R,Aire House,No
Http://opendatacommunities.org/id/metropolitan-district-council/leeds,Leeds City Council,31/07/2017,City Development,Libraries  Arts & Heritage,Supplies and Services,Non-Recurring Grants,227,04/07/2017,1707-00438,0.00,1000.00,R,Aire Place Studios Cic,No
Http://opendatacommunities.org/id/metropolitan-district-council/leeds,Leeds City Council,31/07/2017,Adults and Health,Services For Older People - 65 And Over,Third Party Payments,Residential Care Dementia,571,26/07/2017,1707-00439,0.00,40209.92,R,Aire View Residential Home,No
Http://opendatacommunities.org/id/metropolitan-district-council/leeds,Leeds City Council,31/07/2017,Adults and Health,Services For Older People - 65 And Over,Third Party Payments,Residential,580,26/07/2017,1707-00440,0.00,15262.58,R,Aire View Residential Home,No
Http://opendatacommunities.org/id/metropolitan-district-council/leeds,Leeds City Council,31/07/2017,Communities and Environment,Communities,Supplies and Services,'Well Being' Large Grants Projects,230,20/07/2017,1707-00441,0.00,216.00,R,Aireborough & District Angling Assoc,No
Http://opendatacommunities.org/id/metropolitan-district-council/leeds,Leeds City Council,31/07/2017,Children and Families,Safeguarding Targeted & Specialist  ,Third Party Payments,Section 17,551,06/06/2017,1707-00442,0.00,170.00,R,Aireborough Skip,Yes
Http://opendatacommunities.org/id/metropolitan-district-council/leeds,Leeds City Council,31/07/2017,Adults and Health,Services For Older People - 65 And Over,Third Party Payments,Residential Care Dementia,571,26/07/2017,1707-00443,0.00,4891.44,R,Airedale (Goldsborough),No
Http://opendatacommunities.org/id/metropolitan-district-council/leeds,Leeds City Council,31/07/2017,Adults and Health,Services For Older People - 65 And Over,Third Party Payments,Residential,580,26/07/2017,1707-00444,0.00,24037.76,R,Airedale (Goldsborough),No
Http://opendatacommunities.org/id/metropolitan-district-council/leeds,Leeds City Council,31/07/2017,Civic Enterprise Leeds,Commercial Services,Supplies and Services,Operational Furniture And Equipment,203,10/07/2017,1707-00445,0.00,144.00,R,Airedale Catering Equipment Ltd,No
Http://opendatacommunities.org/id/metropolitan-district-council/leeds,Leeds City Council,31/07/2017,Civic Enterprise Leeds,Commercial Services,Supplies and Services,Operational Furniture And Equipment,203,10/07/2017,1707-00446,0.00,7292.00,R,Airedale Catering Equipment Ltd,No
Http://opendatacommunities.org/id/metropolitan-district-council/leeds,Leeds City Council,31/07/2017,Children and Families,Safeguarding Targeted & Specialist,Supplies and Services,Teaching Materials,202,10/07/2017,1707-00447,0.00,4065.00,R,Airedale Catering Equipment Ltd,No
Http://opendatacommunities.org/id/metropolitan-district-council/leeds,Leeds City Council as Accountable Body,31/07/2017,Social Services Pooled Budgets,Jcs For People With Learning Disabilitie,Third Party Payments,Home Care,568,13/07/2017,1707-00448,0.00,101.53,R,Airedale Nhs Foundation Trust,No
Http://opendatacommunities.org/id/metropolitan-district-council/leeds,Leeds City Council as Accountable Body,31/07/2017,Social Services Pooled Budgets,Jcs For People With Learning Disabilitie,Third Party Payments,Home Care,568,21/07/2017,1707-00449,0.00,101.53,R,Airedale Nhs Foundation Trust,No
Http://opendatacommunities.org/id/metropolitan-district-council/leeds,Leeds City Council as Accountable Body,31/07/2017,Social Services Pooled Budgets,Jcs For People With Learning Disabilitie,Third Party Payments,Home Care,568,21/07/2017,1707-00450,0.00,101.53,R,Airedale Nhs Foundation Trust,No
Http://opendatacommunities.org/id/metropolitan-district-council/leeds,Leeds City Council,31/07/2017,Civic Enterprise Leeds,Commercial Services,Supplies and Services,Other Hired And Contracted Services,265,26/07/2017,1707-00451,0.00,157.50,R,Air-Weigh Europe Limited,No
Http://opendatacommunities.org/id/metropolitan-district-council/leeds,Leeds City Council,31/07/2017,Civic Enterprise Leeds,Commercial Services,Supplies and Services,Other Hired And Contracted Services,265,26/07/2017,1707-00452,0.00,112.50,R,Air-Weigh Europe Limited,No
Http://opendatacommunities.org/id/metropolitan-district-council/leeds,Leeds City Council,31/07/2017,Adults and Health,Services For Adults Under 65 Mental/Dis,Third Party Payments,Fees - Level 4,520,19/07/2017,1707-00453,0.00,175.00,R,Ait Mitra,No
Http://opendatacommunities.org/id/metropolitan-district-council/leeds,Leeds City Council,31/07/2017,Adults and Health,Services For Adults Under 65 Mental/Dis,Third Party Payments,Fees - Level 4,520,19/07/2017,1707-00454,0.00,175.00,R,Ait Mitra,No
Http://opendatacommunities.org/id/metropolitan-district-council/leeds,Leeds City Council,31/07/2017,Adults and Health,Services For Adults Under 65 Mental/Dis,Third Party Payments,Fees - Level 4,520,21/07/2017,1707-00455,0.00,175.00,R,Ait Mitra,No
Http://opendatacommunities.org/id/metropolitan-district-council/leeds,Leeds City Council,31/07/2017,Adults and Health,Services For Adults Under 65 Mental/Dis,Third Party Payments,Fees - Level 4,520,21/07/2017,1707-00456,0.00,175.00,R,Ait Mitra,No
Http://opendatacommunities.org/id/metropolitan-district-council/leeds,Leeds City Council,31/07/2017,Adults and Health,Services For Adults Under 65 Mental/Dis,Third Party Payments,Fees - Level 4,520,21/07/2017,1707-00457,0.00,175.00,R,Ait Mitra,No
Http://opendatacommunities.org/id/metropolitan-district-council/leeds,Leeds City Council,31/07/2017,Adults and Health,Services For Adults Under 65 Mental/Dis,Third Party Payments,Fees - Level 4,520,21/07/2017,1707-00458,0.00,175.00,R,Ait Mitra,No
Http://opendatacommunities.org/id/metropolitan-district-council/leeds,Leeds City Council,31/07/2017,Adults and Health,Services For Adults Under 65 Mental/Dis,Third Party Payments,Fees - Level 4,520,21/07/2017,1707-00459,0.00,175.00,R,Ait Mitra,No
Http://opendatacommunities.org/id/metropolitan-district-council/leeds,Leeds City Council,31/07/2017,Adults and Health,Services For Adults Under 65 Mental/Dis,Third Party Payments,Fees - Level 4,520,21/07/2017,1707-00460,0.00,175.00,R,Ait Mitra,No
Http://opendatacommunities.org/id/metropolitan-district-council/leeds,Leeds City Council,31/07/2017,Adults and Health,Services For Adults Under 65 Mental/Dis,Third Party Payments,Fees - Level 4,520,21/07/2017,1707-00461,0.00,175.00,R,Ait Mitra,No
Http://opendatacommunities.org/id/metropolitan-district-council/leeds,Leeds City Council,31/07/2017,Adults and Health,Services For Adults Under 65 Mental/Dis,Third Party Payments,Fees - Level 4,520,21/07/2017,1707-00462,0.00,175.00,R,Ait Mitra,No
Http://opendatacommunities.org/id/metropolitan-district-council/leeds,Leeds City Council,31/07/2017,Adults and Health,Services For Adults Under 65 Mental/Dis,Third Party Payments,Fees - Level 4,520,28/07/2017,1707-00463,0.00,175.00,R,Ait Mitra,No
Http://opendatacommunities.org/id/metropolitan-district-council/leeds,Leeds City Council as Accountable Body,31/07/2017,Social Services Pooled Budgets,Jcs For People With Learning Disabilitie,Third Party Payments,Residential,580,26/07/2017,1707-00464,0.00,6173.24,R,Aitch Care Homes,No
Http://opendatacommunities.org/id/metropolitan-district-council/leeds,Leeds City Council,31/07/2017,City Development,Recreation,Supplies and Services,Operational Materials,205,07/07/2017,1707-00465,0.00,1696.50,R,Aitkens Sportsturf Ltd,No
Http://opendatacommunities.org/id/metropolitan-district-council/leeds,Leeds City Council,31/07/2017,Environment & Housing,Parks and Countryside,Supplies and Services,Operational Materials,205,07/07/2017,1707-00466,0.00,316.80,R,Aitkens Sportsturf Ltd,No
Http://opendatacommunities.org/id/metropolitan-district-council/leeds,Leeds City Council,31/07/2017,Environment & Housing,Parks and Countryside,Supplies and Services,Operational Materials,205,19/07/2017,1707-00467,0.00,221.40,R,Aitkens Sportsturf Ltd,No
Http://opendatacommunities.org/id/metropolitan-district-council/leeds,Leeds City Council,31/07/2017,Adults and Health,Services For Older People - 65 And Over,Third Party Payments,Home Care,568,21/07/2017,1707-00468,0.00,4026.96,R,Aj Community Care Ltd,No
Http://opendatacommunities.org/id/metropolitan-district-council/leeds,Leeds City Council,31/07/2017,Adults and Health,Services For Older People Under 65 P/Dis,Third Party Payments,Home Care,568,21/07/2017,1707-00469,0.00,5776.77,R,Aj Community Care Ltd,No
Http://opendatacommunities.org/id/metropolitan-district-council/leeds,Leeds City Council,31/07/2017,Adults and Health,Services For Older People - 65 And Over,Third Party Payments,Home Care,568,21/07/2017,1707-00470,0.00,806.96,R,Aj Community Care Ltd,No
Http://opendatacommunities.org/id/metropolitan-district-council/leeds,Leeds City Council,31/07/2017,Adults and Health,Services For Older People - 65 And Over,Third Party Payments,Home Care,568,21/07/2017,1707-00471,0.00,6323.11,R,Aj Community Care Ltd,No
Http://opendatacommunities.org/id/metropolitan-district-council/leeds,Leeds City Council,31/07/2017,Adults and Health,Services For Older People Under 65 P/Dis,Third Party Payments,Home Care,568,21/07/2017,1707-00472,0.00,12968.14,R,Aj Community Care Ltd,No
Http://opendatacommunities.org/id/metropolitan-district-council/leeds,Leeds City Council,31/07/2017,Environment & Housing,Leeds Building Services,Supplies and Services,Operational Furniture And Equipment,203,05/07/2017,1707-00473,0.00,346.66,R,Ajm Fixings & Power Tools Ltd,No
Http://opendatacommunities.org/id/metropolitan-district-council/leeds,Leeds City Council,31/07/2017,Environment & Housing,Leeds Building Services,Supplies and Services,Operational Furniture And Equipment,203,07/07/2017,1707-00474,0.00,131.25,R,Ajm Fixings & Power Tools Ltd,No
Http://opendatacommunities.org/id/metropolitan-district-council/leeds,Leeds City Council,31/07/2017,Environment & Housing,Leeds Building Services,Supplies and Services,Operational Furniture And Equipment,203,14/07/2017,1707-00475,0.00,102.07,R,Ajm Fixings & Power Tools Ltd,No
Http://opendatacommunities.org/id/metropolitan-district-council/leeds,Leeds City Council,31/07/2017,Adults and Health,Services For Older People - 65 And Over,Third Party Payments,Nursing Home,570,26/07/2017,1707-00476,0.00,1247.60,R,Akari Care Ltd,No
Http://opendatacommunities.org/id/metropolitan-district-council/leeds,Leeds City Council,31/07/2017,Adults and Health,Social Services Support Services,Employees,Training & Development,70,07/07/2017,1707-00477,0.00,7500.00,R,Akd Solutions Ltd,No
Http://opendatacommunities.org/id/metropolitan-district-council/leeds,Leeds City Council,31/07/2017,Environment & Housing,Leeds Building Services,Supplies and Services,Operational Materials,205,14/07/2017,1707-00478,0.00,54.67,R,Akw Medicare Ltd,No
Http://opendatacommunities.org/id/metropolitan-district-council/leeds,Leeds City Council,31/07/2017,Environment & Housing,Leeds Building Services,Supplies and Services,Operational Materials,205,14/07/2017,1707-00479,0.00,66.67,R,Akw Medicare Ltd,No
Http://opendatacommunities.org/id/metropolitan-district-council/leeds,Leeds City Council,31/07/2017,Environment & Housing,Leeds Building Services,Supplies and Services,Operational Materials,205,14/07/2017,1707-00480,0.00,46.58,R,Akw Medicare Ltd,No
Http://opendatacommunities.org/id/metropolitan-district-council/leeds,Leeds City Council,31/07/2017,Adults and Health,Public Health,Third Party Payments,Public Health Commissioned Services,526,27/07/2017,1707-00481,0.00,304.05,R,Al Shafa Pharmacy,No
Http://opendatacommunities.org/id/metropolitan-district-council/leeds,Leeds City Council,31/07/2017,Children and Families,Safeguarding Targeted & Specialist,Third Party Payments,Services Rendered By Other Organisations,511,21/07/2017,1707-00482,0.00,819.00,R,Alanna Cardiss,No
Http://opendatacommunities.org/id/metropolitan-district-council/leeds,Leeds City Council,31/07/2017,City Development,Economic Development,Supplies and Services,Clothing & Uniforms,241,19/07/2017,1707-00483,0.00,71.70,R,Albert Haywood & Sons Ltd,No
Http://opendatacommunities.org/id/metropolitan-district-council/leeds,Leeds City Council,31/07/2017,City Development,Economic Development,Supplies and Services,Clothing & Uniforms,241,31/07/2017,1707-00484,0.00,46.25,R,Albert Haywood & Sons Ltd,No
Http://opendatacommunities.org/id/metropolitan-district-council/leeds,Leeds City Council,31/07/2017,Communities and Environment,Communities,Supplies and Services,Computer Software & Equipment,214,21/07/2017,1707-00485,0.00,6450.00,R,Alcium Software Ltd,No
Http://opendatacommunities.org/id/metropolitan-district-council/leeds,Leeds City Council,31/07/2017,City Development,Recreation  ,Supplies and Services,Food & Drink,231,06/06/2017,1707-00486,0.00,5.99,R,Aldi,Yes
Http://opendatacommunities.org/id/metropolitan-district-council/leeds,Leeds City Council,31/07/2017,Children and Families,Safeguarding Targeted & Specialist  ,Transfer Payments,Leaving Care Allowances,634,06/06/2017,1707-00487,0.00,5.00,R,Aldi,Yes
Http://opendatacommunities.org/id/metropolitan-district-council/leeds,Leeds City Council,31/07/2017,Environment & Housing,Waste Management  ,Supplies and Services,Operational Furniture And Equipment,203,12/06/2017,1707-00488,0.00,15.01,R,Aldi,Yes
Http://opendatacommunities.org/id/metropolitan-district-council/leeds,Leeds City Council,31/07/2017,Children and Families,Safeguarding Targeted & Specialist  ,Transfer Payments,Leaving Care Allowances,634,13/06/2017,1707-00489,0.00,5.01,R,Aldi,Yes
Http://opendatacommunities.org/id/metropolitan-district-council/leeds,Leeds City Council,31/07/2017,Resources and Housing,Strategy And Improvement  ,Supplies and Services,Food & Drink,231,14/06/2017,1707-00490,0.00,19.68,R,Aldi,Yes
Http://opendatacommunities.org/id/metropolitan-district-council/leeds,Leeds City Council,31/07/2017,City Development,Recreation  ,Supplies and Services,Operational Furniture And Equipment,203,15/06/2017,1707-00491,0.00,83.26,R,Aldi,Yes
Http://opendatacommunities.org/id/metropolitan-district-council/leeds,Leeds City Council,31/07/2017,Resources and Housing,Strategy And Improvement  ,Supplies and Services,Food & Drink,231,16/06/2017,1707-00492,0.00,22.91,R,Aldi,Yes
Http://opendatacommunities.org/id/metropolitan-district-council/leeds,Leeds City Council,31/07/2017,Children and Families,Safeguarding Targeted & Specialist  ,Supplies and Services,Food & Drink,231,10/06/2017,1707-00493,0.00,130.29,R,Aldi Stores,Yes
Http://opendatacommunities.org/id/metropolitan-district-council/leeds,Leeds City Council,31/07/2017,Children and Families,Safeguarding Targeted & Specialist  ,Transfer Payments,Leaving Care Allowances,634,28/06/2017,1707-00494,0.00,3.68,R,Aldi Stores,Yes
Http://opendatacommunities.org/id/metropolitan-district-council/leeds,Leeds City Council,31/07/2017,Children and Families,Safeguarding Targeted & Specialist,Support Services,Legal Disbursements,411,04/07/2017,1707-00495,0.00,3199.00,R,Alex Taylor,No
Http://opendatacommunities.org/id/metropolitan-district-council/leeds,Leeds City Council,31/07/2017,Children and Families,Safeguarding Targeted & Specialist,Support Services,Legal Disbursements,411,14/07/2017,1707-00496,0.00,1308.00,R,Alex Taylor,No
Http://opendatacommunities.org/id/metropolitan-district-council/leeds,Leeds City Council,31/07/2017,Children and Families,Safeguarding Targeted & Specialist,Support Services,Legal Disbursements,411,31/07/2017,1707-00497,0.00,180.00,R,Alex Taylor,No
Http://opendatacommunities.org/id/metropolitan-district-council/leeds,Leeds City Council,31/07/2017,Adults and Health,Services For Older People - 65 And Over,Third Party Payments,Residential Care Dementia,571,26/07/2017,1707-00498,0.00,22012.39,R,Alexander Residential Home,No
Http://opendatacommunities.org/id/metropolitan-district-council/leeds,Leeds City Council,31/07/2017,Adults and Health,Services For Older People - 65 And Over,Third Party Payments,Residential,580,26/07/2017,1707-00499,0.00,18237.64,R,Alexander Residential Home,No
Http://opendatacommunities.org/id/metropolitan-district-council/leeds,Leeds City Council,31/07/2017,City Development,Recreation,Income,Swimming Bath Charges,923,13/07/2017,1707-00500,0.00,91.30,R,REDACTED PERSONAL DATA,No
Http://opendatacommunities.org/id/metropolitan-district-council/leeds,Leeds City Council,31/07/2017,Adults and Health,Services For Older People - 65 And Over,Third Party Payments,Residential Care Dementia,571,26/07/2017,1707-00501,0.00,1497.96,R,Alexandra Court,No
Http://opendatacommunities.org/id/metropolitan-district-council/leeds,Leeds City Council,31/07/2017,Adults and Health,Services For Older People - 65 And Over,Third Party Payments,Residential,580,26/07/2017,1707-00502,0.00,12019.56,R,Alexandra Court,No
Http://opendatacommunities.org/id/metropolitan-district-council/leeds,Leeds City Council,31/07/2017,Communities and Environment,Customer Access,Supplies and Services,Other Hired And Contracted Services,265,05/07/2017,1707-00503,0.00,88.75,R,Alexandra Hirst,No
Http://opendatacommunities.org/id/metropolitan-district-council/leeds,Leeds City Council,31/07/2017,Children and Families,Safeguarding Targeted & Specialist,Third Party Payments,Services Rendered By Other Organisations,511,14/07/2017,1707-00504,0.00,590.85,R,Alexandra Leigh,No
Http://opendatacommunities.org/id/metropolitan-district-council/leeds,Leeds City Council,31/07/2017,Civic Enterprise Leeds,Corporate Property Management,Premises,Maintenance Of Buildings,101,04/07/2017,1707-00505,0.00,290.00,R,Alfred Bagnall & Sons (Leeds) Ltd,No
Http://opendatacommunities.org/id/metropolitan-district-council/leeds,Leeds City Council,31/07/2017,Environment & Housing,Leeds Building Services,Supplies and Services,Other Hired And Contracted Services,265,04/07/2017,1707-00506,0.00,2090.00,R,Alfred Bagnall & Sons (Leeds) Ltd,No
Http://opendatacommunities.org/id/metropolitan-district-council/leeds,Leeds City Council,31/07/2017,Environment & Housing,Leeds Building Services,Supplies and Services,Other Hired And Contracted Services,265,04/07/2017,1707-00507,0.00,4217.20,R,Alfred Bagnall & Sons (Leeds) Ltd,No
Http://opendatacommunities.org/id/metropolitan-district-council/leeds,Leeds City Council,31/07/2017,Adults and Health,Services For Older People - 65 And Over,Supplies and Services,Operational Furniture And Equipment,203,07/07/2017,1707-00508,0.00,975.00,R,Alfred Bagnall & Sons (Leeds) Ltd,No
Http://opendatacommunities.org/id/metropolitan-district-council/leeds,Leeds City Council,31/07/2017,Environment & Housing,Leeds Building Services,Supplies and Services,Other Hired And Contracted Services,265,14/07/2017,1707-00509,0.00,3500.00,R,Alfred Bagnall & Sons (Leeds) Ltd,No
Http://opendatacommunities.org/id/metropolitan-district-council/leeds,Leeds City Council,31/07/2017,Communities and Environment,Communities,Supplies and Services,'Well Being' Large Grants Projects,230,28/07/2017,1707-00510,0.00,552.65,R,Alfred Bagnall & Sons (Leeds) Ltd,No
Http://opendatacommunities.org/id/metropolitan-district-council/leeds,Leeds City Council,31/07/2017,Communities and Environment,Communities,Capital,Other Costs,7,28/07/2017,1707-00511,0.00,6027.50,C,Alfred Bagnall & Sons (Leeds) Ltd,No
Http://opendatacommunities.org/id/metropolitan-district-council/leeds,Leeds City Council,31/07/2017,Environment & Housing,Leeds Building Services,Supplies and Services,Other Hired And Contracted Services,265,28/07/2017,1707-00512,0.00,5280.00,R,Alfred Bagnall & Sons (Leeds) Ltd,No
Http://opendatacommunities.org/id/metropolitan-district-council/leeds,Leeds City Council,31/07/2017,Children and Families,Safeguarding Targeted & Specialist,Third Party Payments,Section 17,551,07/07/2017,1707-00513,0.00,147.80,R,REDACTED PERSONAL DATA,No
Http://opendatacommunities.org/id/metropolitan-district-council/leeds,Leeds City Council,31/07/2017,Children and Families,Safeguarding Targeted & Specialist,Third Party Payments,Section 17,551,14/07/2017,1707-00514,0.00,147.80,R,REDACTED PERSONAL DATA,No
Http://opendatacommunities.org/id/metropolitan-district-council/leeds,Leeds City Council,31/07/2017,Children and Families,Safeguarding Targeted & Specialist,Third Party Payments,Section 17,551,21/07/2017,1707-00515,0.00,147.80,R,REDACTED PERSONAL DATA,No
Http://opendatacommunities.org/id/metropolitan-district-council/leeds,Leeds City Council,31/07/2017,Children and Families,Safeguarding Targeted & Specialist,Third Party Payments,Section 17,551,28/07/2017,1707-00516,0.00,147.80,R,REDACTED PERSONAL DATA,No
Http://opendatacommunities.org/id/metropolitan-district-council/leeds,Leeds City Council,31/07/2017,Communities and Environment,Customer Access,Supplies and Services,Other Hired And Contracted Services,265,05/07/2017,1707-00517,0.00,38.75,R,Ali Pourakaberian,No
Http://opendatacommunities.org/id/metropolitan-district-council/leeds,Leeds City Council,31/07/2017,Environment & Housing,Streetscene Environmental Services,Income,Penalties  Fines & Car Parking Charges,934,07/07/2017,1707-00518,0.00,113.00,R,REDACTED PERSONAL DATA,No
Http://opendatacommunities.org/id/metropolitan-district-council/leeds,Leeds City Council,31/07/2017,Children and Families,Safeguarding Targeted & Specialist,Third Party Payments,Services Rendered By Other Organisations,511,21/07/2017,1707-00519,0.00,327.60,R,Alison Brook,No
Http://opendatacommunities.org/id/metropolitan-district-council/leeds,Leeds City Council,31/07/2017,Children and Families,Safeguarding Targeted & Specialist,Third Party Payments,Placement Support,550,13/07/2017,1707-00520,0.00,300.00,R,All Abode,No
Http://opendatacommunities.org/id/metropolitan-district-council/leeds,Leeds City Council,31/07/2017,Environment & Housing,Leeds Building Services,Supplies and Services,Other Hired And Contracted Services,265,07/07/2017,1707-00521,0.00,195.00,R,All Clear Solutions Ltd,No
Http://opendatacommunities.org/id/metropolitan-district-council/leeds,Leeds City Council,31/07/2017,Environment & Housing,Leeds Building Services,Supplies and Services,Other Hired And Contracted Services,265,07/07/2017,1707-00522,0.00,195.00,R,All Clear Solutions Ltd,No
Http://opendatacommunities.org/id/metropolitan-district-council/leeds,Leeds City Council,31/07/2017,Environment & Housing,Leeds Building Services,Supplies and Services,Other Hired And Contracted Services,265,07/07/2017,1707-00523,0.00,195.00,R,All Clear Solutions Ltd,No
Http://opendatacommunities.org/id/metropolitan-district-council/leeds,Leeds City Council,31/07/2017,Environment & Housing,Leeds Building Services,Supplies and Services,Other Hired And Contracted Services,265,07/07/2017,1707-00524,0.00,195.00,R,All Clear Solutions Ltd,No
Http://opendatacommunities.org/id/metropolitan-district-council/leeds,Leeds City Council,31/07/2017,Environment & Housing,Leeds Building Services,Supplies and Services,Other Hired And Contracted Services,265,07/07/2017,1707-00525,0.00,250.00,R,All Clear Solutions Ltd,No
Http://opendatacommunities.org/id/metropolitan-district-council/leeds,Leeds City Council,31/07/2017,Environment & Housing,Leeds Building Services,Supplies and Services,Other Hired And Contracted Services,265,07/07/2017,1707-00526,0.00,250.00,R,All Clear Solutions Ltd,No
Http://opendatacommunities.org/id/metropolitan-district-council/leeds,Leeds City Council,31/07/2017,Environment & Housing,Leeds Building Services,Supplies and Services,Other Hired And Contracted Services,265,21/07/2017,1707-00527,0.00,195.00,R,All Clear Solutions Ltd,No
Http://opendatacommunities.org/id/metropolitan-district-council/leeds,Leeds City Council,31/07/2017,Environment & Housing,Leeds Building Services,Supplies and Services,Other Hired And Contracted Services,265,21/07/2017,1707-00528,0.00,585.00,R,All Clear Solutions Ltd,No
Http://opendatacommunities.org/id/metropolitan-district-council/leeds,Leeds City Council,31/07/2017,Environment & Housing,Leeds Building Services,Supplies and Services,Other Hired And Contracted Services,265,21/07/2017,1707-00529,0.00,195.00,R,All Clear Solutions Ltd,No
Http://opendatacommunities.org/id/metropolitan-district-council/leeds,Leeds City Council,31/07/2017,Environment & Housing,Leeds Building Services,Supplies and Services,Other Hired And Contracted Services,265,21/07/2017,1707-00530,0.00,195.00,R,All Clear Solutions Ltd,No
Http://opendatacommunities.org/id/metropolitan-district-council/leeds,Leeds City Council,31/07/2017,Environment & Housing,Leeds Building Services,Supplies and Services,Other Hired And Contracted Services,265,21/07/2017,1707-00531,0.00,195.00,R,All Clear Solutions Ltd,No
Http://opendatacommunities.org/id/metropolitan-district-council/leeds,Leeds City Council,31/07/2017,Environment & Housing,Leeds Building Services,Supplies and Services,Other Hired And Contracted Services,265,21/07/2017,1707-00532,0.00,250.00,R,All Clear Solutions Ltd,No
Http://opendatacommunities.org/id/metropolitan-district-council/leeds,Leeds City Council,31/07/2017,Environment & Housing,Leeds Building Services,Supplies and Services,Other Hired And Contracted Services,265,21/07/2017,1707-00533,0.00,195.00,R,All Clear Solutions Ltd,No
Http://opendatacommunities.org/id/metropolitan-district-council/leeds,Leeds City Council,31/07/2017,Environment & Housing,Leeds Building Services,Supplies and Services,Other Hired And Contracted Services,265,21/07/2017,1707-00534,0.00,195.00,R,All Clear Solutions Ltd,No
Http://opendatacommunities.org/id/metropolitan-district-council/leeds,Leeds City Council,31/07/2017,Environment & Housing,Leeds Building Services,Supplies and Services,Other Hired And Contracted Services,265,21/07/2017,1707-00535,0.00,195.00,R,All Clear Solutions Ltd,No
Http://opendatacommunities.org/id/metropolitan-district-council/leeds,Leeds City Council,31/07/2017,Environment & Housing,Leeds Building Services,Supplies and Services,Other Hired And Contracted Services,265,21/07/2017,1707-00536,0.00,195.00,R,All Clear Solutions Ltd,No
Http://opendatacommunities.org/id/metropolitan-district-council/leeds,Leeds City Council,31/07/2017,Environment & Housing,Leeds Building Services,Supplies and Services,Other Hired And Contracted Services,265,28/07/2017,1707-00537,0.00,195.00,R,All Clear Solutions Ltd,No
Http://opendatacommunities.org/id/metropolitan-district-council/leeds,Leeds City Council,31/07/2017,Environment & Housing,Leeds Building Services,Supplies and Services,Other Hired And Contracted Services,265,28/07/2017,1707-00538,0.00,195.00,R,All Clear Solutions Ltd,No
Http://opendatacommunities.org/id/metropolitan-district-council/leeds,Leeds City Council,31/07/2017,Environment & Housing,Leeds Building Services,Supplies and Services,Other Hired And Contracted Services,265,28/07/2017,1707-00539,0.00,390.00,R,All Clear Solutions Ltd,No
Http://opendatacommunities.org/id/metropolitan-district-council/leeds,Leeds City Council,31/07/2017,Environment & Housing,Leeds Building Services,Supplies and Services,Other Hired And Contracted Services,265,28/07/2017,1707-00540,0.00,195.00,R,All Clear Solutions Ltd,No
Http://opendatacommunities.org/id/metropolitan-district-council/leeds,Leeds City Council,31/07/2017,Environment & Housing,Leeds Building Services,Supplies and Services,Other Hired And Contracted Services,265,28/07/2017,1707-00541,0.00,195.00,R,All Clear Solutions Ltd,No
Http://opendatacommunities.org/id/metropolitan-district-council/leeds,Leeds City Council,31/07/2017,Environment & Housing,Leeds Building Services,Supplies and Services,Other Hired And Contracted Services,265,28/07/2017,1707-00542,0.00,195.00,R,All Clear Solutions Ltd,No
Http://opendatacommunities.org/id/metropolitan-district-council/leeds,Leeds City Council,31/07/2017,Children and Families,Safeguarding Targeted & Specialist,Third Party Payments,Services Rendered By Other Organisations,511,14/07/2017,1707-00543,0.00,787.80,R,All Stars Childcare,No
Http://opendatacommunities.org/id/metropolitan-district-council/leeds,Leeds City Council,31/07/2017,Children and Families,Safeguarding Targeted & Specialist,Third Party Payments,Services Rendered By Other Organisations,511,21/07/2017,1707-00544,0.00,206.70,R,All Stars Childcare,No
Http://opendatacommunities.org/id/metropolitan-district-council/leeds,Leeds City Council,31/07/2017,Children and Families,Safeguarding Targeted & Specialist,Third Party Payments,Services Rendered By Other Organisations,511,21/07/2017,1707-00545,0.00,6749.40,R,All Stars Childcare,No
Http://opendatacommunities.org/id/metropolitan-district-council/leeds,Leeds City Council,31/07/2017,Adults and Health,Services For Adults Under 65 Mental/Dis,Supplies and Services,Operational Furniture And Equipment,203,06/07/2017,1707-00546,0.00,330.00,R,Allansound Communications,No
Http://opendatacommunities.org/id/metropolitan-district-council/leeds,Leeds City Council,31/07/2017,Civic Enterprise Leeds,Facilities Management,Supplies and Services,Operational Furniture And Equipment,203,07/07/2017,1707-00547,0.00,45.00,R,Allansound Communications,No
Http://opendatacommunities.org/id/metropolitan-district-council/leeds,Leeds City Council as Accountable Body,31/07/2017,Social Services Pooled Budgets,Jcs For People With Learning Disabilitie,Third Party Payments,Sheltered Accommodation,569,26/07/2017,1707-00548,0.00,12248.52,R,Allerton Avenue,No
Http://opendatacommunities.org/id/metropolitan-district-council/leeds,Leeds City Council,31/07/2017,Resources and Housing,Finance,Supplies and Services,Bank Charges,263,03/07/2017,1707-00549,0.00,-60.09,R,Alliance & Leicester Commercial Bank,No
Http://opendatacommunities.org/id/metropolitan-district-council/leeds,Leeds City Council,31/07/2017,Resources and Housing,Finance,Supplies and Services,Bank Charges,263,05/07/2017,1707-00550,0.00,733.08,R,Alliance & Leicester Commercial Bank,No
Http://opendatacommunities.org/id/metropolitan-district-council/leeds,Leeds City Council,31/07/2017,Resources and Housing,Finance,Supplies and Services,Bank Charges,263,05/07/2017,1707-00551,0.00,100.00,R,Alliance & Leicester Commercial Bank,No
Http://opendatacommunities.org/id/metropolitan-district-council/leeds,Leeds City Council,31/07/2017,City Development,Highways,Supplies and Services,Other Hired And Contracted Services,265,06/07/2017,1707-00552,0.00,1765.90,R,Allied Exploration & Geotechnics Ltd,No
Http://opendatacommunities.org/id/metropolitan-district-council/leeds,Leeds City Council,31/07/2017,City Development,Highways,Supplies and Services,Other Hired And Contracted Services,265,13/07/2017,1707-00553,0.00,677.10,R,Allied Exploration & Geotechnics Ltd,No
Http://opendatacommunities.org/id/metropolitan-district-council/leeds,Leeds City Council,31/07/2017,City Development,Highways,Supplies and Services,Other Hired And Contracted Services,265,13/07/2017,1707-00554,0.00,660.00,R,Allied Exploration & Geotechnics Ltd,No
Http://opendatacommunities.org/id/metropolitan-district-council/leeds,Leeds City Council,31/07/2017,City Development,Highways,Supplies and Services,Other Hired And Contracted Services,265,17/07/2017,1707-00555,0.00,660.00,R,Allied Exploration & Geotechnics Ltd,No
Http://opendatacommunities.org/id/metropolitan-district-council/leeds,Leeds City Council,31/07/2017,City Development,Highways,Supplies and Services,Other Hired And Contracted Services,265,18/07/2017,1707-00556,0.00,94.50,R,Allied Exploration & Geotechnics Ltd,No
Http://opendatacommunities.org/id/metropolitan-district-council/leeds,Leeds City Council as Accountable Body,31/07/2017,Social Services Pooled Budgets,Jcs For People With Learning Disabilitie,Third Party Payments,Home Care,568,04/07/2017,1707-00557,0.00,15357.04,R,Allied Healthcare,No
Http://opendatacommunities.org/id/metropolitan-district-council/leeds,Leeds City Council,31/07/2017,Adults and Health,Other Generic Services,Third Party Payments,Home Care,568,07/07/2017,1707-00558,0.00,1371.17,R,Allied Healthcare,No
Http://opendatacommunities.org/id/metropolitan-district-council/leeds,Leeds City Council,31/07/2017,Adults and Health,Other Generic Services,Third Party Payments,Home Care,568,07/07/2017,1707-00559,0.00,520.36,R,Allied Healthcare,No
Http://opendatacommunities.org/id/metropolitan-district-council/leeds,Leeds City Council as Accountable Body,31/07/2017,Social Services Pooled Budgets,Jcs For People With Learning Disabilitie,Third Party Payments,Home Care,568,10/07/2017,1707-00560,0.00,664.49,R,Allied Healthcare,No
Http://opendatacommunities.org/id/metropolitan-district-council/leeds,Leeds City Council as Accountable Body,31/07/2017,Social Services Pooled Budgets,Jcs For People With Learning Disabilitie,Third Party Payments,Home Care,568,10/07/2017,1707-00561,0.00,144.56,R,Allied Healthcare,No
Http://opendatacommunities.org/id/metropolitan-district-council/leeds,Leeds City Council as Accountable Body,31/07/2017,Social Services Pooled Budgets,Jcs For People With Learning Disabilitie,Third Party Payments,Home Care,568,11/07/2017,1707-00562,0.00,998.76,R,Allied Healthcare,No
Http://opendatacommunities.org/id/metropolitan-district-council/leeds,Leeds City Council,31/07/2017,Adults and Health,Other Generic Services,Third Party Payments,Home Care,568,17/07/2017,1707-00563,0.00,20825.42,R,Allied Healthcare,No
Http://opendatacommunities.org/id/metropolitan-district-council/leeds,Leeds City Council,31/07/2017,Adults and Health,Other Generic Services,Third Party Payments,Home Care,568,17/07/2017,1707-00564,0.00,8350.49,R,Allied Healthcare,No
Http://opendatacommunities.org/id/metropolitan-district-council/leeds,Leeds City Council,31/07/2017,Adults and Health,Services For Older People - 65 And Over,Third Party Payments,Home Care,568,21/07/2017,1707-00565,0.00,1056.92,R,Allied Healthcare,No
Http://opendatacommunities.org/id/metropolitan-district-council/leeds,Leeds City Council,31/07/2017,Adults and Health,Services For Older People - 65 And Over,Third Party Payments,Home Care,568,21/07/2017,1707-00566,0.00,2443.55,R,Allied Healthcare,No
Http://opendatacommunities.org/id/metropolitan-district-council/leeds,Leeds City Council,31/07/2017,Adults and Health,Services For Older People Under 65 P/Dis,Third Party Payments,Home Care,568,21/07/2017,1707-00567,0.00,341.46,R,Allied Healthcare,No
Http://opendatacommunities.org/id/metropolitan-district-council/leeds,Leeds City Council,31/07/2017,Adults and Health,Services For Older People - 65 And Over,Third Party Payments,Home Care,568,21/07/2017,1707-00568,0.00,5247.11,R,Allied Healthcare,No
Http://opendatacommunities.org/id/metropolitan-district-council/leeds,Leeds City Council,31/07/2017,Adults and Health,Services For Older People Under 65 P/Dis,Third Party Payments,Home Care,568,21/07/2017,1707-00569,0.00,1917.11,R,Allied Healthcare,No
Http://opendatacommunities.org/id/metropolitan-district-council/leeds,Leeds City Council,31/07/2017,Adults and Health,Services For Older People - 65 And Over,Third Party Payments,Home Care,568,21/07/2017,1707-00570,0.00,11700.77,R,Allied Healthcare,No
Http://opendatacommunities.org/id/metropolitan-district-council/leeds,Leeds City Council,31/07/2017,Adults and Health,Services For Older People Under 65 P/Dis,Third Party Payments,Home Care,568,21/07/2017,1707-00571,0.00,1420.39,R,Allied Healthcare,No
Http://opendatacommunities.org/id/metropolitan-district-council/leeds,Leeds City Council,31/07/2017,Adults and Health,Services For Older People - 65 And Over,Third Party Payments,Home Care,568,21/07/2017,1707-00572,0.00,12306.14,R,Allied Healthcare,No
Http://opendatacommunities.org/id/metropolitan-district-council/leeds,Leeds City Council,31/07/2017,Adults and Health,Services For Older People Under 65 P/Dis,Third Party Payments,Home Care,568,21/07/2017,1707-00573,0.00,8653.21,R,Allied Healthcare,No
Http://opendatacommunities.org/id/metropolitan-district-council/leeds,Leeds City Council,31/07/2017,Adults and Health,Public Health,Third Party Payments,Public Health Commissioned Services,526,11/07/2017,1707-00574,0.00,93.00,R,Allied Pharmacy Ltd,No
Http://opendatacommunities.org/id/metropolitan-district-council/leeds,Leeds City Council,31/07/2017,Adults and Health,Public Health,Third Party Payments,Public Health Commissioned Services,526,13/07/2017,1707-00575,0.00,295.02,R,Allied Pharmacy Ltd,No
Http://opendatacommunities.org/id/metropolitan-district-council/leeds,Leeds City Council,31/07/2017,Adults and Health,Public Health,Third Party Payments,Public Health Commissioned Services,526,27/07/2017,1707-00576,0.00,33.35,R,Allied Pharmacy Ltd,No
Http://opendatacommunities.org/id/metropolitan-district-council/leeds,Leeds City Council,31/07/2017,Strategic Landlord,Housing Management,Supplies and Services,Other Hired And Contracted Services,265,04/07/2017,1707-00577,0.00,14.31,R,Allpay Limted,No
Http://opendatacommunities.org/id/metropolitan-district-council/leeds,Leeds City Council,31/07/2017,Strategic Landlord,Housing Management,Supplies and Services,Other Hired And Contracted Services,265,04/07/2017,1707-00578,0.00,331.52,R,Allpay Limted,No
Http://opendatacommunities.org/id/metropolitan-district-council/leeds,Leeds City Council,31/07/2017,Strategic Landlord,Housing Management,Supplies and Services,Other Hired And Contracted Services,265,14/07/2017,1707-00579,0.00,0.25,R,Allpay Limted,No
Http://opendatacommunities.org/id/metropolitan-district-council/leeds,Leeds City Council,31/07/2017,Resources and Housing,Finance,Supplies and Services,Bank Charges,263,14/07/2017,1707-00580,0.00,1.37,R,Allpay Limted,No
Http://opendatacommunities.org/id/metropolitan-district-council/leeds,Leeds City Council,31/07/2017,Resources and Housing,Finance,Supplies and Services,Bank Charges,263,14/07/2017,1707-00581,0.00,4.44,R,Allpay Limted,No
Http://opendatacommunities.org/id/metropolitan-district-council/leeds,Leeds City Council,31/07/2017,Resources and Housing,Finance,Supplies and Services,Bank Charges,263,14/07/2017,1707-00582,0.00,151.98,R,Allpay Limted,No
Http://opendatacommunities.org/id/metropolitan-district-council/leeds,Leeds City Council,31/07/2017,Resources and Housing,Finance,Supplies and Services,Bank Charges,263,31/07/2017,1707-00583,0.00,11068.04,R,Allpay Limted,No
Http://opendatacommunities.org/id/metropolitan-district-council/leeds,Leeds City Council,31/07/2017,Resources and Housing,Finance,Supplies and Services,Bank Charges,263,31/07/2017,1707-00584,0.00,496.16,R,Allpay Limted,No
Http://opendatacommunities.org/id/metropolitan-district-council/leeds,Leeds City Council,31/07/2017,Resources and Housing,Democratic Services,Transport,Fuel (Non LCC Supplies),321,07/07/2017,1707-00585,0.00,279.07,R,Allstar Business Solutions Ltd,No
Http://opendatacommunities.org/id/metropolitan-district-council/leeds,Leeds City Council,31/07/2017,Children and Families,Learning Skills & Universal,Transport,Fuel (Non LCC Supplies),321,07/07/2017,1707-00586,0.00,2273.28,R,Allstar Business Solutions Ltd,No
Http://opendatacommunities.org/id/metropolitan-district-council/leeds,Leeds City Council,31/07/2017,Environment & Housing,Parks and Countryside,Transport,Fuel (Non LCC Supplies),321,07/07/2017,1707-00587,0.00,24.48,R,Allstar Business Solutions Ltd,No
Http://opendatacommunities.org/id/metropolitan-district-council/leeds,Leeds City Council,31/07/2017,City Development,Highways,Transport,Fuel (Non LCC Supplies),321,07/07/2017,1707-00588,0.00,154.74,R,Allstar Business Solutions Ltd,No
Http://opendatacommunities.org/id/metropolitan-district-council/leeds,Leeds City Council,31/07/2017,Environment & Housing,Waste Management,Transport,Fuel (Non LCC Supplies),321,07/07/2017,1707-00589,0.00,2.70,R,Allstar Business Solutions Ltd,No
Http://opendatacommunities.org/id/metropolitan-district-council/leeds,Leeds City Council,31/07/2017,Environment & Housing,Leeds Building Services,Transport,Fuel (Non LCC Supplies),321,13/07/2017,1707-00590,0.00,78.87,R,Allstar Business Solutions Ltd,No
Http://opendatacommunities.org/id/metropolitan-district-council/leeds,Leeds City Council,31/07/2017,Environment & Housing,Leeds Building Services,Transport,Fuel (Non LCC Supplies),321,28/07/2017,1707-00591,0.00,45.35,R,Allstar Business Solutions Ltd,No
Http://opendatacommunities.org/id/metropolitan-district-council/leeds,Leeds City Council,31/07/2017,Adults and Health,Public Health,Supplies and Services,Publication And Promotion,267,12/07/2017,1707-00592,0.00,400.00,R,Alpha Card Compact Media Ltd,No
Http://opendatacommunities.org/id/metropolitan-district-council/leeds,Leeds City Council,31/07/2017,Communities and Environment,Communities,Support Services,Legal Disbursements,411,05/07/2017,1707-00593,0.00,199.75,R,Alphabiolabs,No
Http://opendatacommunities.org/id/metropolitan-district-council/leeds,Leeds City Council,31/07/2017,Communities and Environment,Communities,Support Services,Legal Disbursements,411,05/07/2017,1707-00594,0.00,90.00,R,Alphabiolabs,No
Http://opendatacommunities.org/id/metropolitan-district-council/leeds,Leeds City Council,31/07/2017,Children and Families,Safeguarding Targeted & Specialist,Support Services,Legal Disbursements,411,05/07/2017,1707-00595,0.00,97.50,R,Alphabiolabs,No
Http://opendatacommunities.org/id/metropolitan-district-council/leeds,Leeds City Council,31/07/2017,Children and Families,Safeguarding Targeted & Specialist,Support Services,Legal Disbursements,411,05/07/2017,1707-00596,0.00,69.38,R,Alphabiolabs,No
Http://opendatacommunities.org/id/metropolitan-district-council/leeds,Leeds City Council,31/07/2017,Children and Families,Safeguarding Targeted & Specialist,Support Services,Legal Disbursements,411,07/07/2017,1707-00597,0.00,121.25,R,Alphabiolabs,No
Http://opendatacommunities.org/id/metropolitan-district-council/leeds,Leeds City Council,31/07/2017,Children and Families,Safeguarding Targeted & Specialist,Support Services,Legal Disbursements,411,14/07/2017,1707-00598,0.00,380.00,R,Alphabiolabs,No
Http://opendatacommunities.org/id/metropolitan-district-council/leeds,Leeds City Council,31/07/2017,Children and Families,Safeguarding Targeted & Specialist,Support Services,Legal Disbursements,411,20/07/2017,1707-00599,0.00,90.00,R,Alphabiolabs,No
Http://opendatacommunities.org/id/metropolitan-district-council/leeds,Leeds City Council,31/07/2017,Children and Families,Safeguarding Targeted & Specialist,Support Services,Legal Disbursements,411,24/07/2017,1707-00600,0.00,304.75,R,Alphabiolabs,No
Http://opendatacommunities.org/id/metropolitan-district-council/leeds,Leeds City Council,31/07/2017,Children and Families,Safeguarding Targeted & Specialist,Support Services,Legal Disbursements,411,24/07/2017,1707-00601,0.00,485.00,R,Alphabiolabs,No
Http://opendatacommunities.org/id/metropolitan-district-council/leeds,Leeds City Council,31/07/2017,Children and Families,Safeguarding Targeted & Specialist,Support Services,Legal Disbursements,411,26/07/2017,1707-00602,0.00,240.00,R,Alphabiolabs,No
Http://opendatacommunities.org/id/metropolitan-district-council/leeds,Leeds City Council,31/07/2017,Communities and Environment,Communities,Support Services,Legal Disbursements,411,26/07/2017,1707-00603,0.00,130.01,R,Alphabiolabs,No
Http://opendatacommunities.org/id/metropolitan-district-council/leeds,Leeds City Council,31/07/2017,Communities and Environment,Communities,Support Services,Legal Disbursements,411,26/07/2017,1707-00604,0.00,130.01,R,Alphabiolabs,No
Http://opendatacommunities.org/id/metropolitan-district-council/leeds,Leeds City Council,31/07/2017,Children and Families,Safeguarding Targeted & Specialist,Support Services,Legal Disbursements,411,28/07/2017,1707-00605,0.00,445.00,R,Alphabiolabs,No
Http://opendatacommunities.org/id/metropolitan-district-council/leeds,Leeds City Council,31/07/2017,Children and Families,Safeguarding Targeted & Specialist,Support Services,Legal Disbursements,411,31/07/2017,1707-00606,0.00,165.01,R,Alphabiolabs,No
Http://opendatacommunities.org/id/metropolitan-district-council/leeds,Leeds City Council,31/07/2017,Resources and Housing,Strategy and Improvement,Supplies and Services,Memberships,226,28/07/2017,1707-00607,0.00,12041.52,R,Alps (Alkemygold Ltd),No
Http://opendatacommunities.org/id/metropolitan-district-council/leeds,Leeds City Council,31/07/2017,Adults and Health,Public Health,Third Party Payments,Public Health Commissioned Services,526,27/07/2017,1707-00608,0.00,286.00,R,Al-Shafa Pharmacy,No
Http://opendatacommunities.org/id/metropolitan-district-council/leeds,Leeds City Council,31/07/2017,City Development,Economic Development  ,Supplies and Services,Clothing & Uniforms,241,22/06/2017,1707-00609,0.00,60.00,R,Alter 8,Yes
Http://opendatacommunities.org/id/metropolitan-district-council/leeds,Leeds City Council,31/07/2017,Adults and Health,Services For Older People - 65 And Over,Third Party Payments,Payments To Voluntary Organisations,561,17/07/2017,1707-00610,0.00,68125.00,R,Alzheimers Society,No
Http://opendatacommunities.org/id/metropolitan-district-council/leeds,Leeds City Council,31/07/2017,Children and Families,Safeguarding Targeted & Specialist,Third Party Payments,Services Rendered By Other Organisations,511,14/07/2017,1707-00611,0.00,196.95,R,REDACTED PERSONAL DATA,No
Http://opendatacommunities.org/id/metropolitan-district-council/leeds,Leeds City Council,31/07/2017,Insurance,Insurance,Supplies and Services,Insurance Claims,248,19/07/2017,1707-00612,0.00,360.00,R,Amanda Cunliffe Solicitors,No
Http://opendatacommunities.org/id/metropolitan-district-council/leeds,Leeds City Council,31/07/2017,Children and Families,Safeguarding Targeted & Specialist,Third Party Payments,Services Rendered By Other Organisations,511,21/07/2017,1707-00613,0.00,32.76,R,REDACTED PERSONAL DATA,No
Http://opendatacommunities.org/id/metropolitan-district-council/leeds,Leeds City Council,31/07/2017,Children and Families,Safeguarding Targeted & Specialist,Third Party Payments,Services Rendered By Other Organisations,511,14/07/2017,1707-00614,0.00,393.90,R,Amanda Wharton,No
Http://opendatacommunities.org/id/metropolitan-district-council/leeds,Leeds City Council,31/07/2017,Children and Families,Safeguarding Targeted & Specialist,Third Party Payments,Services Rendered By Other Organisations,511,21/07/2017,1707-00615,0.00,327.60,R,Amanda Wharton,No
Http://opendatacommunities.org/id/metropolitan-district-council/leeds,Leeds City Council,31/07/2017,City Development,Recreation,Supplies and Services,Other Hired And Contracted Services,265,20/07/2017,1707-00616,0.00,200.00,R,Amateur Swimming Association,No
Http://opendatacommunities.org/id/metropolitan-district-council/leeds,Leeds City Council,31/07/2017,Children and Families,Safeguarding Targeted & Specialist,Third Party Payments,Services Rendered By Other Organisations,511,14/07/2017,1707-00617,0.00,1605.90,R,Amazing Grace Early Years Childcare,No
Http://opendatacommunities.org/id/metropolitan-district-council/leeds,Leeds City Council,31/07/2017,Children and Families,Safeguarding Targeted & Specialist,Third Party Payments,Services Rendered By Other Organisations,511,21/07/2017,1707-00618,0.00,39.75,R,Amazing Grace Early Years Childcare,No
Http://opendatacommunities.org/id/metropolitan-district-council/leeds,Leeds City Council,31/07/2017,Children and Families,Safeguarding Targeted & Specialist,Third Party Payments,Services Rendered By Other Organisations,511,21/07/2017,1707-00619,0.00,6642.75,R,Amazing Grace Early Years Childcare,No
Http://opendatacommunities.org/id/metropolitan-district-council/leeds,Leeds City Council,31/07/2017,City Development,Recreation,Supplies and Services,Operational Furniture And Equipment,203,05/07/2017,1707-00620,0.00,606.08,R,Amazon Leisure Uk Ltd,No
Http://opendatacommunities.org/id/metropolitan-district-council/leeds,Leeds City Council,31/07/2017,City Development,Recreation,Supplies and Services,Operational Furniture And Equipment,203,24/07/2017,1707-00621,0.00,1455.28,R,Amazon Leisure Uk Ltd,No
Http://opendatacommunities.org/id/metropolitan-district-council/leeds,Leeds City Council,31/07/2017,City Development,Recreation,Supplies and Services,Operational Furniture And Equipment,203,24/07/2017,1707-00622,0.00,163.19,R,Amazon Leisure Uk Ltd,No
Http://opendatacommunities.org/id/metropolitan-district-council/leeds,Leeds City Council,31/07/2017,City Development,Recreation,Supplies and Services,Operational Furniture And Equipment,203,24/07/2017,1707-00623,0.00,570.48,R,Amazon Leisure Uk Ltd,No
Http://opendatacommunities.org/id/metropolitan-district-council/leeds,Leeds City Council,31/07/2017,City Development,Recreation,Supplies and Services,Operational Furniture And Equipment,203,26/07/2017,1707-00624,0.00,215.06,R,Amazon Leisure Uk Ltd,No
Http://opendatacommunities.org/id/metropolitan-district-council/leeds,Leeds City Council,31/07/2017,City Development,Recreation,Supplies and Services,Operational Furniture And Equipment,203,26/07/2017,1707-00625,0.00,431.86,R,Amazon Leisure Uk Ltd,No
Http://opendatacommunities.org/id/metropolitan-district-council/leeds,Leeds City Council,31/07/2017,City Development,Recreation,Supplies and Services,Operational Furniture And Equipment,203,26/07/2017,1707-00626,0.00,177.39,R,Amazon Leisure Uk Ltd,No
Http://opendatacommunities.org/id/metropolitan-district-council/leeds,Leeds City Council,31/07/2017,City Development,Recreation,Supplies and Services,Operational Furniture And Equipment,203,26/07/2017,1707-00627,0.00,1464.96,R,Amazon Leisure Uk Ltd,No
Http://opendatacommunities.org/id/metropolitan-district-council/leeds,Leeds City Council,31/07/2017,City Development,Recreation,Supplies and Services,Operational Furniture And Equipment,203,28/07/2017,1707-00628,0.00,375.00,R,Amazon Leisure Uk Ltd,No
Http://opendatacommunities.org/id/metropolitan-district-council/leeds,Leeds City Council,31/07/2017,City Development,Recreation,Supplies and Services,Operational Furniture And Equipment,203,28/07/2017,1707-00629,0.00,3038.25,R,Amazon Leisure Uk Ltd,No
Http://opendatacommunities.org/id/metropolitan-district-council/leeds,Leeds City Council,31/07/2017,Children and Families,Partnerships  ,Supplies and Services,Office Consumables,210,06/06/2017,1707-00630,0.00,79.00,R,Amazon Prime,Yes
Http://opendatacommunities.org/id/metropolitan-district-council/leeds,Leeds City Council,31/07/2017,Adults and Health,Services For Older People - 65 And Over  ,Supplies and Services,Office Consumables,210,17/06/2017,1707-00631,0.00,79.00,R,Amazon Prime,Yes
Http://opendatacommunities.org/id/metropolitan-district-council/leeds,Leeds City Council,31/07/2017,Communities and Environment,Customer Access  ,Supplies and Services,Operational Materials,205,17/06/2017,1707-00632,0.00,7.99,R,Amazon Prime,Yes
Http://opendatacommunities.org/id/metropolitan-district-council/leeds,Leeds City Council,31/07/2017,Communities and Environment,Customer Access  ,Supplies and Services,Operational Materials,205,22/06/2017,1707-00633,0.00,-7.99,R,Amazon Prime,Yes
Http://opendatacommunities.org/id/metropolitan-district-council/leeds,Leeds City Council,31/07/2017,City Development,Libraries  Arts & Heritage  ,Supplies and Services,Office Consumables,210,27/06/2017,1707-00634,0.00,7.99,R,Amazon Prime,Yes
Http://opendatacommunities.org/id/metropolitan-district-council/leeds,Leeds City Council,31/07/2017,Children and Families,Safeguarding Targeted & Specialist  ,Transfer Payments,Young Peoples Rewards,653,28/06/2017,1707-00635,0.00,6.90,R,Amazon Svcs Europe sar,Yes
Http://opendatacommunities.org/id/metropolitan-district-council/leeds,Leeds City Council,31/07/2017,Children and Families,Safeguarding Targeted & Specialist  ,Supplies and Services,Operational Furniture And Equipment,203,31/05/2017,1707-00636,0.00,69.00,R,Amazon UK Marketplace,Yes
Http://opendatacommunities.org/id/metropolitan-district-council/leeds,Leeds City Council,31/07/2017,Adults and Health,Assessment And Care Management  ,Supplies and Services,Telephones,213,31/05/2017,1707-00637,0.00,7.53,R,Amazon UK Marketplace,Yes
Http://opendatacommunities.org/id/metropolitan-district-council/leeds,Leeds City Council,31/07/2017,City Development,Libraries  Arts & Heritage  ,Supplies and Services,Operational Materials,205,31/05/2017,1707-00638,0.00,23.85,R,Amazon UK Marketplace,Yes
Http://opendatacommunities.org/id/metropolitan-district-council/leeds,Leeds City Council,31/07/2017,Children and Families,Safeguarding Targeted & Specialist  ,Supplies and Services,Operational Furniture And Equipment,203,31/05/2017,1707-00639,0.00,7.00,R,Amazon UK Marketplace,Yes
Http://opendatacommunities.org/id/metropolitan-district-council/leeds,Leeds City Council,31/07/2017,City Development,Libraries  Arts & Heritage  ,Supplies and Services,Operational Materials,205,31/05/2017,1707-00640,0.00,30.45,R,Amazon UK Marketplace,Yes
Http://opendatacommunities.org/id/metropolitan-district-council/leeds,Leeds City Council,31/07/2017,City Development,Libraries  Arts & Heritage  ,Supplies and Services,Operational Materials,205,31/05/2017,1707-00641,0.00,7.28,R,Amazon UK Marketplace,Yes
Http://opendatacommunities.org/id/metropolitan-district-council/leeds,Leeds City Council,31/07/2017,Children and Families,Safeguarding Targeted & Specialist  ,Supplies and Services,Teaching Furniture & Equipment,207,01/06/2017,1707-00642,0.00,22.94,R,Amazon UK Marketplace,Yes
Http://opendatacommunities.org/id/metropolitan-district-council/leeds,Leeds City Council,31/07/2017,City Development,Libraries  Arts & Heritage  ,Supplies and Services,Teaching Materials,202,01/06/2017,1707-00643,0.00,20.57,R,Amazon UK Marketplace,Yes
Http://opendatacommunities.org/id/metropolitan-district-council/leeds,Leeds City Council,31/07/2017,Children and Families,Safeguarding Targeted & Specialist  ,Supplies and Services,Operational Furniture And Equipment,203,01/06/2017,1707-00644,0.00,2.99,R,Amazon UK Marketplace,Yes
Http://opendatacommunities.org/id/metropolitan-district-council/leeds,Leeds City Council,31/07/2017,Environment & Housing,Environmental Action (West North West)  ,Supplies and Services,Operational Furniture And Equipment,203,01/06/2017,1707-00645,0.00,5.67,R,Amazon UK Marketplace,Yes
Http://opendatacommunities.org/id/metropolitan-district-council/leeds,Leeds City Council,31/07/2017,Children and Families,Safeguarding Targeted & Specialist  ,Supplies and Services,Operational Furniture And Equipment,203,01/06/2017,1707-00646,0.00,2.49,R,Amazon UK Marketplace,Yes
Http://opendatacommunities.org/id/metropolitan-district-council/leeds,Leeds City Council,31/07/2017,Environment & Housing,Environmental Action (West North West)  ,Supplies and Services,Operational Furniture And Equipment,203,01/06/2017,1707-00647,0.00,15.19,R,Amazon UK Marketplace,Yes
Http://opendatacommunities.org/id/metropolitan-district-council/leeds,Leeds City Council,31/07/2017,Children and Families,Safeguarding Targeted & Specialist  ,Supplies and Services,Operational Furniture And Equipment,203,01/06/2017,1707-00648,0.00,2.96,R,Amazon UK Marketplace,Yes
Http://opendatacommunities.org/id/metropolitan-district-council/leeds,Leeds City Council,31/07/2017,Environment & Housing,Environmental Health  ,Supplies and Services,Office Consumables,210,01/06/2017,1707-00649,0.00,2.85,R,Amazon UK Marketplace,Yes
Http://opendatacommunities.org/id/metropolitan-district-council/leeds,Leeds City Council,31/07/2017,City Development,Libraries  Arts & Heritage  ,Supplies and Services,Teaching Materials,202,01/06/2017,1707-00650,0.00,14.29,R,Amazon UK Marketplace,Yes
Http://opendatacommunities.org/id/metropolitan-district-council/leeds,Leeds City Council,31/07/2017,Children and Families,Safeguarding Targeted & Specialist  ,Supplies and Services,Operational Furniture And Equipment,203,01/06/2017,1707-00651,0.00,8.98,R,Amazon UK Marketplace,Yes
Http://opendatacommunities.org/id/metropolitan-district-council/leeds,Leeds City Council,31/07/2017,Children and Families,Safeguarding Targeted & Specialist  ,Supplies and Services,Operational Furniture And Equipment,203,01/06/2017,1707-00652,0.00,5.30,R,Amazon UK Marketplace,Yes
Http://opendatacommunities.org/id/metropolitan-district-council/leeds,Leeds City Council,31/07/2017,Civic Enterprise Leeds,Commercial Services  ,Transport,Miscellaneous Transport Related Costs,324,02/06/2017,1707-00653,0.00,160.80,R,Amazon UK Marketplace,Yes
Http://opendatacommunities.org/id/metropolitan-district-council/leeds,Leeds City Council,31/07/2017,Children and Families,Safeguarding Targeted & Specialist  ,Supplies and Services,Teaching Furniture & Equipment,207,02/06/2017,1707-00654,0.00,13.98,R,Amazon UK Marketplace,Yes
Http://opendatacommunities.org/id/metropolitan-district-council/leeds,Leeds City Council,31/07/2017,Children and Families,Safeguarding Targeted & Specialist  ,Supplies and Services,Teaching Furniture & Equipment,207,02/06/2017,1707-00655,0.00,9.48,R,Amazon UK Marketplace,Yes
Http://opendatacommunities.org/id/metropolitan-district-council/leeds,Leeds City Council,31/07/2017,Children and Families,Safeguarding Targeted & Specialist  ,Supplies and Services,Teaching Furniture & Equipment,207,02/06/2017,1707-00656,0.00,33.33,R,Amazon UK Marketplace,Yes
Http://opendatacommunities.org/id/metropolitan-district-council/leeds,Leeds City Council,31/07/2017,Children and Families,Safeguarding Targeted & Specialist  ,Transfer Payments,Leaving Care Allowances,634,02/06/2017,1707-00657,0.00,2.62,R,Amazon UK Marketplace,Yes
Http://opendatacommunities.org/id/metropolitan-district-council/leeds,Leeds City Council,31/07/2017,City Development,Libraries  Arts & Heritage  ,Supplies and Services,Teaching Materials,202,03/06/2017,1707-00658,0.00,44.56,R,Amazon UK Marketplace,Yes
Http://opendatacommunities.org/id/metropolitan-district-council/leeds,Leeds City Council,31/07/2017,City Development,Economic Development  ,Supplies and Services,Operational Materials,205,03/06/2017,1707-00659,0.00,36.73,R,Amazon UK Marketplace,Yes
Http://opendatacommunities.org/id/metropolitan-district-council/leeds,Leeds City Council,31/07/2017,Strategic Landlord,Housing Management  ,Supplies and Services,Office Furniture & Equipment,201,04/06/2017,1707-00660,0.00,65.00,R,Amazon UK Marketplace,Yes
Http://opendatacommunities.org/id/metropolitan-district-council/leeds,Leeds City Council,31/07/2017,Environment & Housing,Environmental Action (West North West)  ,Supplies and Services,Operational Furniture And Equipment,203,04/06/2017,1707-00661,0.00,36.20,R,Amazon UK Marketplace,Yes
Http://opendatacommunities.org/id/metropolitan-district-council/leeds,Leeds City Council,31/07/2017,City Development,Libraries  Arts & Heritage  ,Supplies and Services,Operational Furniture And Equipment,203,05/06/2017,1707-00662,0.00,9.99,R,Amazon UK Marketplace,Yes
Http://opendatacommunities.org/id/metropolitan-district-council/leeds,Leeds City Council,31/07/2017,Children and Families,Learning Skills & Universal  ,Supplies and Services,Office Consumables,210,05/06/2017,1707-00663,0.00,75.98,R,Amazon UK Marketplace,Yes
Http://opendatacommunities.org/id/metropolitan-district-council/leeds,Leeds City Council,31/07/2017,City Development,Libraries  Arts & Heritage  ,Supplies and Services,Operational Materials,205,05/06/2017,1707-00664,0.00,2.48,R,Amazon UK Marketplace,Yes
Http://opendatacommunities.org/id/metropolitan-district-council/leeds,Leeds City Council,31/07/2017,Children and Families,Safeguarding Targeted & Specialist  ,Supplies and Services,Teaching Materials,202,06/06/2017,1707-00665,0.00,5.35,R,Amazon UK Marketplace,Yes
Http://opendatacommunities.org/id/metropolitan-district-council/leeds,Leeds City Council,31/07/2017,Children and Families,Safeguarding Targeted & Specialist  ,Supplies and Services,Other Hired And Contracted Services,265,06/06/2017,1707-00666,0.00,5.99,R,Amazon UK Marketplace,Yes
Http://opendatacommunities.org/id/metropolitan-district-council/leeds,Leeds City Council,31/07/2017,City Development,Libraries  Arts & Heritage  ,Supplies and Services,Operational Materials,205,06/06/2017,1707-00667,0.00,143.23,R,Amazon UK Marketplace,Yes
Http://opendatacommunities.org/id/metropolitan-district-council/leeds,Leeds City Council,31/07/2017,Civic Enterprise Leeds,Commercial Services  ,Transport,Vehicle Spares,345,06/06/2017,1707-00668,0.00,3.47,R,Amazon UK Marketplace,Yes
Http://opendatacommunities.org/id/metropolitan-district-council/leeds,Leeds City Council,31/07/2017,Children and Families,Safeguarding Targeted & Specialist  ,Employees,Best Value Training,70,07/06/2017,1707-00669,0.00,269.94,R,Amazon UK Marketplace,Yes
Http://opendatacommunities.org/id/metropolitan-district-council/leeds,Leeds City Council,31/07/2017,Children and Families,Safeguarding Targeted & Specialist  ,Supplies and Services,Teaching Materials,202,07/06/2017,1707-00670,0.00,44.87,R,Amazon UK Marketplace,Yes
Http://opendatacommunities.org/id/metropolitan-district-council/leeds,Leeds City Council,31/07/2017,Adults and Health,Social Services Support Services  ,Supplies and Services,Food & Drink,231,07/06/2017,1707-00671,0.00,28.42,R,Amazon UK Marketplace,Yes
Http://opendatacommunities.org/id/metropolitan-district-council/leeds,Leeds City Council,31/07/2017,Communities and Environment,Customer Access  ,Supplies and Services,Office Furniture & Equipment,201,07/06/2017,1707-00672,0.00,8.99,R,Amazon UK Marketplace,Yes
Http://opendatacommunities.org/id/metropolitan-district-council/leeds,Leeds City Council,31/07/2017,Civic Enterprise Leeds,Commercial Services  ,Supplies and Services,Books & Audio-Visual Materials,206,07/06/2017,1707-00673,0.00,75.47,R,Amazon UK Marketplace,Yes
Http://opendatacommunities.org/id/metropolitan-district-council/leeds,Leeds City Council,31/07/2017,Communities and Environment,Customer Access  ,Supplies and Services,Operational Materials,205,08/06/2017,1707-00674,0.00,27.24,R,Amazon UK Marketplace,Yes
Http://opendatacommunities.org/id/metropolitan-district-council/leeds,Leeds City Council,31/07/2017,Children and Families,Safeguarding Targeted & Specialist  ,Supplies and Services,General Amenity For Clients/Residents,285,08/06/2017,1707-00675,0.00,5.97,R,Amazon UK Marketplace,Yes
Http://opendatacommunities.org/id/metropolitan-district-council/leeds,Leeds City Council,31/07/2017,Children and Families,Partnerships  ,Supplies and Services,Books & Audio-Visual Materials,206,08/06/2017,1707-00676,0.00,78.00,R,Amazon UK Marketplace,Yes
Http://opendatacommunities.org/id/metropolitan-district-council/leeds,Leeds City Council,31/07/2017,Children and Families,Safeguarding Targeted & Specialist  ,Employees,Best Value Training,70,08/06/2017,1707-00677,0.00,25.89,R,Amazon UK Marketplace,Yes
Http://opendatacommunities.org/id/metropolitan-district-council/leeds,Leeds City Council,31/07/2017,City Development,Libraries  Arts & Heritage  ,Supplies and Services,Books & Audio-Visual Materials,206,08/06/2017,1707-00678,0.00,2.76,R,Amazon UK Marketplace,Yes
Http://opendatacommunities.org/id/metropolitan-district-council/leeds,Leeds City Council,31/07/2017,Children and Families,Safeguarding Targeted & Specialist  ,Supplies and Services,Operational Furniture And Equipment,203,08/06/2017,1707-00679,0.00,56.68,R,Amazon UK Marketplace,Yes
Http://opendatacommunities.org/id/metropolitan-district-council/leeds,Leeds City Council,31/07/2017,Communities and Environment,Benefits  Wlefare And Poverty  ,Supplies and Services,Office Furniture & Equipment,201,08/06/2017,1707-00680,0.00,45.74,R,Amazon UK Marketplace,Yes
Http://opendatacommunities.org/id/metropolitan-district-council/leeds,Leeds City Council,31/07/2017,City Development,Recreation  ,Supplies and Services,Operational Furniture And Equipment,203,08/06/2017,1707-00681,0.00,39.97,R,Amazon UK Marketplace,Yes
Http://opendatacommunities.org/id/metropolitan-district-council/leeds,Leeds City Council,31/07/2017,Children and Families,Partnerships  ,Supplies and Services,Operational Furniture And Equipment,203,09/06/2017,1707-00682,0.00,5.00,R,Amazon UK Marketplace,Yes
Http://opendatacommunities.org/id/metropolitan-district-council/leeds,Leeds City Council,31/07/2017,Children and Families,Partnerships  ,Supplies and Services,Books & Audio-Visual Materials,206,09/06/2017,1707-00683,0.00,6.99,R,Amazon UK Marketplace,Yes
Http://opendatacommunities.org/id/metropolitan-district-council/leeds,Leeds City Council,31/07/2017,Environment & Housing,Parks And Countryside  ,Supplies and Services,Computer Software & Equipment,214,09/06/2017,1707-00684,0.00,68.67,R,Amazon UK Marketplace,Yes
Http://opendatacommunities.org/id/metropolitan-district-council/leeds,Leeds City Council,31/07/2017,Children and Families,Partnerships  ,Supplies and Services,Operational Furniture And Equipment,203,09/06/2017,1707-00685,0.00,2.87,R,Amazon UK Marketplace,Yes
Http://opendatacommunities.org/id/metropolitan-district-council/leeds,Leeds City Council,31/07/2017,Children and Families,Partnerships  ,Supplies and Services,Operational Furniture And Equipment,203,09/06/2017,1707-00686,0.00,3.81,R,Amazon UK Marketplace,Yes
Http://opendatacommunities.org/id/metropolitan-district-council/leeds,Leeds City Council,31/07/2017,Children and Families,Safeguarding Targeted & Specialist  ,Supplies and Services,General Amenity For Clients/Residents,285,11/06/2017,1707-00687,0.00,14.98,R,Amazon UK Marketplace,Yes
Http://opendatacommunities.org/id/metropolitan-district-council/leeds,Leeds City Council,31/07/2017,Resources and Housing,Finance  ,Supplies and Services,Office Furniture & Equipment,201,12/06/2017,1707-00688,0.00,32.66,R,Amazon UK Marketplace,Yes
Http://opendatacommunities.org/id/metropolitan-district-council/leeds,Leeds City Council,31/07/2017,Children and Families,Safeguarding Targeted & Specialist  ,Supplies and Services,General Amenity For Clients/Residents,285,12/06/2017,1707-00689,0.00,19.70,R,Amazon UK Marketplace,Yes
Http://opendatacommunities.org/id/metropolitan-district-council/leeds,Leeds City Council,31/07/2017,Communities and Environment,Customer Access  ,Supplies and Services,Operational Materials,205,12/06/2017,1707-00690,0.00,26.00,R,Amazon UK Marketplace,Yes
Http://opendatacommunities.org/id/metropolitan-district-council/leeds,Leeds City Council,31/07/2017,City Development,Libraries  Arts & Heritage  ,Supplies and Services,Books & Audio-Visual Materials,206,12/06/2017,1707-00691,0.00,37.84,R,Amazon UK Marketplace,Yes
Http://opendatacommunities.org/id/metropolitan-district-council/leeds,Leeds City Council,31/07/2017,Children and Families,Safeguarding Targeted & Specialist  ,Supplies and Services,General Amenity For Clients/Residents,285,12/06/2017,1707-00692,0.00,14.47,R,Amazon UK Marketplace,Yes
Http://opendatacommunities.org/id/metropolitan-district-council/leeds,Leeds City Council,31/07/2017,Resources and Housing,Finance  ,Supplies and Services,Office Furniture & Equipment,201,13/06/2017,1707-00693,0.00,3.33,R,Amazon UK Marketplace,Yes
Http://opendatacommunities.org/id/metropolitan-district-council/leeds,Leeds City Council,31/07/2017,City Development,Asset Management Services  ,Supplies and Services,Computer Software & Equipment,214,13/06/2017,1707-00694,0.00,49.52,R,Amazon UK Marketplace,Yes
Http://opendatacommunities.org/id/metropolitan-district-council/leeds,Leeds City Council,31/07/2017,Children and Families,Safeguarding Targeted & Specialist  ,Supplies and Services,Teaching Materials,202,14/06/2017,1707-00695,0.00,9.99,R,Amazon UK Marketplace,Yes
Http://opendatacommunities.org/id/metropolitan-district-council/leeds,Leeds City Council,31/07/2017,Children and Families,Safeguarding Targeted & Specialist  ,Supplies and Services,Office Consumables,210,14/06/2017,1707-00696,0.00,20.83,R,Amazon UK Marketplace,Yes
Http://opendatacommunities.org/id/metropolitan-district-council/leeds,Leeds City Council,31/07/2017,Children and Families,Safeguarding Targeted & Specialist  ,Transfer Payments,Young Peoples Activities,652,14/06/2017,1707-00697,0.00,15.48,R,Amazon UK Marketplace,Yes
Http://opendatacommunities.org/id/metropolitan-district-council/leeds,Leeds City Council,31/07/2017,Adults and Health,Home Care Services  ,Supplies and Services,Operational Furniture And Equipment,203,15/06/2017,1707-00698,0.00,24.37,R,Amazon UK Marketplace,Yes
Http://opendatacommunities.org/id/metropolitan-district-council/leeds,Leeds City Council,31/07/2017,Adults and Health,Home Care Services  ,Supplies and Services,Operational Furniture And Equipment,203,15/06/2017,1707-00699,0.00,24.36,R,Amazon UK Marketplace,Yes
Http://opendatacommunities.org/id/metropolitan-district-council/leeds,Leeds City Council,31/07/2017,Adults and Health,Home Care Services  ,Supplies and Services,Operational Furniture And Equipment,203,15/06/2017,1707-00700,0.00,24.37,R,Amazon UK Marketplace,Yes
Http://opendatacommunities.org/id/metropolitan-district-council/leeds,Leeds City Council,31/07/2017,Adults and Health,Home Care Services  ,Supplies and Services,Operational Furniture And Equipment,203,15/06/2017,1707-00701,0.00,24.36,R,Amazon UK Marketplace,Yes
Http://opendatacommunities.org/id/metropolitan-district-council/leeds,Leeds City Council,31/07/2017,Adults and Health,Home Care Services  ,Supplies and Services,Operational Furniture And Equipment,203,15/06/2017,1707-00702,0.00,24.38,R,Amazon UK Marketplace,Yes
Http://opendatacommunities.org/id/metropolitan-district-council/leeds,Leeds City Council,31/07/2017,Children and Families,Safeguarding Targeted & Specialist  ,Supplies and Services,Computer Software & Equipment,214,15/06/2017,1707-00703,0.00,475.61,R,Amazon UK Marketplace,Yes
Http://opendatacommunities.org/id/metropolitan-district-council/leeds,Leeds City Council,31/07/2017,Adults and Health,Home Care Services  ,Supplies and Services,Operational Furniture And Equipment,203,15/06/2017,1707-00704,0.00,24.37,R,Amazon UK Marketplace,Yes
Http://opendatacommunities.org/id/metropolitan-district-council/leeds,Leeds City Council,31/07/2017,Strategic Landlord,Housing Management  ,Supplies and Services,Operational Materials,205,15/06/2017,1707-00705,0.00,12.98,R,Amazon UK Marketplace,Yes
Http://opendatacommunities.org/id/metropolitan-district-council/leeds,Leeds City Council,31/07/2017,Adults and Health,Home Care Services  ,Supplies and Services,Operational Furniture And Equipment,203,15/06/2017,1707-00706,0.00,24.36,R,Amazon UK Marketplace,Yes
Http://opendatacommunities.org/id/metropolitan-district-council/leeds,Leeds City Council,31/07/2017,Adults and Health,Home Care Services  ,Supplies and Services,Operational Furniture And Equipment,203,15/06/2017,1707-00707,0.00,24.36,R,Amazon UK Marketplace,Yes
Http://opendatacommunities.org/id/metropolitan-district-council/leeds,Leeds City Council,31/07/2017,Adults and Health,Home Care Services  ,Supplies and Services,Operational Furniture And Equipment,203,15/06/2017,1707-00708,0.00,24.36,R,Amazon UK Marketplace,Yes
Http://opendatacommunities.org/id/metropolitan-district-council/leeds,Leeds City Council,31/07/2017,City Development,Recreation  ,Supplies and Services,Operational Furniture And Equipment,203,15/06/2017,1707-00709,0.00,15.40,R,Amazon UK Marketplace,Yes
Http://opendatacommunities.org/id/metropolitan-district-council/leeds,Leeds City Council,31/07/2017,Adults and Health,Home Care Services  ,Supplies and Services,Operational Furniture And Equipment,203,15/06/2017,1707-00710,0.00,24.36,R,Amazon UK Marketplace,Yes
Http://opendatacommunities.org/id/metropolitan-district-council/leeds,Leeds City Council,31/07/2017,Adults and Health,Home Care Services  ,Supplies and Services,Operational Furniture And Equipment,203,15/06/2017,1707-00711,0.00,24.37,R,Amazon UK Marketplace,Yes
Http://opendatacommunities.org/id/metropolitan-district-council/leeds,Leeds City Council,31/07/2017,Adults and Health,Home Care Services  ,Supplies and Services,Operational Furniture And Equipment,203,15/06/2017,1707-00712,0.00,24.36,R,Amazon UK Marketplace,Yes
Http://opendatacommunities.org/id/metropolitan-district-council/leeds,Leeds City Council,31/07/2017,City Development,Recreation  ,Supplies and Services,Operational Furniture And Equipment,203,15/06/2017,1707-00713,0.00,8.23,R,Amazon UK Marketplace,Yes
Http://opendatacommunities.org/id/metropolitan-district-council/leeds,Leeds City Council,31/07/2017,Adults and Health,Home Care Services  ,Supplies and Services,Operational Furniture And Equipment,203,15/06/2017,1707-00714,0.00,24.36,R,Amazon UK Marketplace,Yes
Http://opendatacommunities.org/id/metropolitan-district-council/leeds,Leeds City Council,31/07/2017,Adults and Health,Home Care Services  ,Supplies and Services,Operational Furniture And Equipment,203,15/06/2017,1707-00715,0.00,24.36,R,Amazon UK Marketplace,Yes
Http://opendatacommunities.org/id/metropolitan-district-council/leeds,Leeds City Council,31/07/2017,Adults and Health,Home Care Services  ,Supplies and Services,Operational Furniture And Equipment,203,15/06/2017,1707-00716,0.00,24.37,R,Amazon UK Marketplace,Yes
Http://opendatacommunities.org/id/metropolitan-district-council/leeds,Leeds City Council,31/07/2017,Adults and Health,Home Care Services  ,Supplies and Services,Operational Furniture And Equipment,203,15/06/2017,1707-00717,0.00,24.36,R,Amazon UK Marketplace,Yes
Http://opendatacommunities.org/id/metropolitan-district-council/leeds,Leeds City Council,31/07/2017,Adults and Health,Home Care Services  ,Supplies and Services,Operational Furniture And Equipment,203,15/06/2017,1707-00718,0.00,24.39,R,Amazon UK Marketplace,Yes
Http://opendatacommunities.org/id/metropolitan-district-council/leeds,Leeds City Council,31/07/2017,Adults and Health,Home Care Services  ,Supplies and Services,Operational Furniture And Equipment,203,15/06/2017,1707-00719,0.00,24.37,R,Amazon UK Marketplace,Yes
Http://opendatacommunities.org/id/metropolitan-district-council/leeds,Leeds City Council,31/07/2017,Adults and Health,Home Care Services  ,Supplies and Services,Operational Furniture And Equipment,203,15/06/2017,1707-00720,0.00,24.37,R,Amazon UK Marketplace,Yes
Http://opendatacommunities.org/id/metropolitan-district-council/leeds,Leeds City Council,31/07/2017,Adults and Health,Home Care Services  ,Supplies and Services,Operational Furniture And Equipment,203,15/06/2017,1707-00721,0.00,24.37,R,Amazon UK Marketplace,Yes
Http://opendatacommunities.org/id/metropolitan-district-council/leeds,Leeds City Council,31/07/2017,City Development,Recreation  ,Supplies and Services,Operational Furniture And Equipment,203,16/06/2017,1707-00722,0.00,4.98,R,Amazon UK Marketplace,Yes
Http://opendatacommunities.org/id/metropolitan-district-council/leeds,Leeds City Council,31/07/2017,Strategic Landlord,Housing Management  ,Supplies and Services,Grants To Voluntary Organisations,293,16/06/2017,1707-00723,0.00,73.96,R,Amazon UK Marketplace,Yes
Http://opendatacommunities.org/id/metropolitan-district-council/leeds,Leeds City Council,31/07/2017,Children and Families,Safeguarding Targeted & Specialist  ,Supplies and Services,Books & Audio-Visual Materials,206,16/06/2017,1707-00724,0.00,39.00,R,Amazon UK Marketplace,Yes
Http://opendatacommunities.org/id/metropolitan-district-council/leeds,Leeds City Council,31/07/2017,Strategic Landlord,Housing Management  ,Supplies and Services,Grants To Voluntary Organisations,293,16/06/2017,1707-00725,0.00,39.95,R,Amazon UK Marketplace,Yes
Http://opendatacommunities.org/id/metropolitan-district-council/leeds,Leeds City Council,31/07/2017,Environment & Housing,Parks And Countryside  ,Supplies and Services,Office Consumables,210,16/06/2017,1707-00726,0.00,35.60,R,Amazon UK Marketplace,Yes
Http://opendatacommunities.org/id/metropolitan-district-council/leeds,Leeds City Council,31/07/2017,Children and Families,Safeguarding Targeted & Specialist  ,Supplies and Services,Office Furniture & Equipment,201,17/06/2017,1707-00727,0.00,6.57,R,Amazon UK Marketplace,Yes
Http://opendatacommunities.org/id/metropolitan-district-council/leeds,Leeds City Council,31/07/2017,Communities and Environment,Customer Access  ,Supplies and Services,Operational Materials,205,17/06/2017,1707-00728,0.00,31.95,R,Amazon UK Marketplace,Yes
Http://opendatacommunities.org/id/metropolitan-district-council/leeds,Leeds City Council,31/07/2017,City Development,Libraries  Arts & Heritage  ,Supplies and Services,Books & Audio-Visual Materials,206,17/06/2017,1707-00729,0.00,21.73,R,Amazon UK Marketplace,Yes
Http://opendatacommunities.org/id/metropolitan-district-council/leeds,Leeds City Council,31/07/2017,Strategic Landlord,Housing Management  ,Supplies and Services,Grants To Voluntary Organisations,293,17/06/2017,1707-00730,0.00,126.00,R,Amazon UK Marketplace,Yes
Http://opendatacommunities.org/id/metropolitan-district-council/leeds,Leeds City Council,31/07/2017,Strategic Landlord,Housing Management  ,Supplies and Services,Grants To Voluntary Organisations,293,17/06/2017,1707-00731,0.00,126.00,R,Amazon UK Marketplace,Yes
Http://opendatacommunities.org/id/metropolitan-district-council/leeds,Leeds City Council,31/07/2017,Children and Families,Safeguarding Targeted & Specialist  ,Supplies and Services,Advertising,211,18/06/2017,1707-00732,0.00,83.33,R,Amazon UK Marketplace,Yes
Http://opendatacommunities.org/id/metropolitan-district-council/leeds,Leeds City Council,31/07/2017,Children and Families,Safeguarding Targeted & Specialist  ,Supplies and Services,Office Consumables,210,18/06/2017,1707-00733,0.00,15.98,R,Amazon UK Marketplace,Yes
Http://opendatacommunities.org/id/metropolitan-district-council/leeds,Leeds City Council,31/07/2017,City Development,Recreation  ,Supplies and Services,Operational Furniture And Equipment,203,18/06/2017,1707-00734,0.00,37.45,R,Amazon UK Marketplace,Yes
Http://opendatacommunities.org/id/metropolitan-district-council/leeds,Leeds City Council,31/07/2017,Adults and Health,Services For Older People - 65 And Over  ,Premises,First Aid Requisites,128,18/06/2017,1707-00735,0.00,25.90,R,Amazon UK Marketplace,Yes
Http://opendatacommunities.org/id/metropolitan-district-council/leeds,Leeds City Council,31/07/2017,Children and Families,Safeguarding Targeted & Specialist  ,Supplies and Services,Teaching Materials,202,19/06/2017,1707-00736,0.00,20.88,R,Amazon UK Marketplace,Yes
Http://opendatacommunities.org/id/metropolitan-district-council/leeds,Leeds City Council,31/07/2017,Environment & Housing,Strategic Housing Support  ,Supplies and Services,Operational Furniture And Equipment,203,20/06/2017,1707-00737,0.00,26.83,R,Amazon UK Marketplace,Yes
Http://opendatacommunities.org/id/metropolitan-district-council/leeds,Leeds City Council,31/07/2017,Environment & Housing,Community Safety  ,Supplies and Services,Operational Materials,205,20/06/2017,1707-00738,0.00,51.96,R,Amazon UK Marketplace,Yes
Http://opendatacommunities.org/id/metropolitan-district-council/leeds,Leeds City Council,31/07/2017,Communities and Environment,Benefits  Wlefare And Poverty  ,Supplies and Services,Operational Furniture And Equipment,203,20/06/2017,1707-00739,0.00,32.25,R,Amazon UK Marketplace,Yes
Http://opendatacommunities.org/id/metropolitan-district-council/leeds,Leeds City Council,31/07/2017,Children and Families,Safeguarding Targeted & Specialist  ,Transfer Payments,Leaving Care Grants,635,20/06/2017,1707-00740,0.00,89.98,R,Amazon UK Marketplace,Yes
Http://opendatacommunities.org/id/metropolitan-district-council/leeds,Leeds City Council,31/07/2017,Children and Families,Safeguarding Targeted & Specialist  ,Transfer Payments,Leaving Care Grants,635,20/06/2017,1707-00741,0.00,16.20,R,Amazon UK Marketplace,Yes
Http://opendatacommunities.org/id/metropolitan-district-council/leeds,Leeds City Council,31/07/2017,Civic Enterprise Leeds,Shared Services  ,Supplies and Services,Office Furniture & Equipment,201,20/06/2017,1707-00742,0.00,68.54,R,Amazon UK Marketplace,Yes
Http://opendatacommunities.org/id/metropolitan-district-council/leeds,Leeds City Council,31/07/2017,Children and Families,Safeguarding Targeted & Specialist  ,Premises,General Maintenance,104,20/06/2017,1707-00743,0.00,21.98,R,Amazon UK Marketplace,Yes
Http://opendatacommunities.org/id/metropolitan-district-council/leeds,Leeds City Council,31/07/2017,Civic Enterprise Leeds,Shared Services  ,Supplies and Services,Office Furniture & Equipment,201,20/06/2017,1707-00744,0.00,162.99,R,Amazon UK Marketplace,Yes
Http://opendatacommunities.org/id/metropolitan-district-council/leeds,Leeds City Council,31/07/2017,Children and Families,Safeguarding Targeted & Specialist  ,Transfer Payments,Young Peoples Activities,652,20/06/2017,1707-00745,0.00,27.89,R,Amazon UK Marketplace,Yes
Http://opendatacommunities.org/id/metropolitan-district-council/leeds,Leeds City Council,31/07/2017,City Development,Asset Management Services  ,Supplies and Services,Computer Software & Equipment,214,21/06/2017,1707-00746,0.00,114.75,R,Amazon UK Marketplace,Yes
Http://opendatacommunities.org/id/metropolitan-district-council/leeds,Leeds City Council,31/07/2017,Resources and Housing,Finance  ,Supplies and Services,Office Furniture & Equipment,201,21/06/2017,1707-00747,0.00,9.92,R,Amazon UK Marketplace,Yes
Http://opendatacommunities.org/id/metropolitan-district-council/leeds,Leeds City Council,31/07/2017,Children and Families,Safeguarding Targeted & Specialist  ,Transfer Payments,Leaving Care Grants,635,21/06/2017,1707-00748,0.00,241.95,R,Amazon UK Marketplace,Yes
Http://opendatacommunities.org/id/metropolitan-district-council/leeds,Leeds City Council,31/07/2017,Children and Families,Safeguarding Targeted & Specialist  ,Supplies and Services,Books & Audio-Visual Materials,206,22/06/2017,1707-00749,0.00,8.97,R,Amazon UK Marketplace,Yes
Http://opendatacommunities.org/id/metropolitan-district-council/leeds,Leeds City Council,31/07/2017,Resources and Housing,Legal Services  ,Supplies and Services,Office Furniture & Equipment,201,22/06/2017,1707-00750,0.00,74.80,R,Amazon UK Marketplace,Yes
Http://opendatacommunities.org/id/metropolitan-district-council/leeds,Leeds City Council,31/07/2017,Civic Enterprise Leeds,Shared Services  ,Supplies and Services,Office Furniture & Equipment,201,22/06/2017,1707-00751,0.00,7.62,R,Amazon UK Marketplace,Yes
Http://opendatacommunities.org/id/metropolitan-district-council/leeds,Leeds City Council,31/07/2017,Communities and Environment,Benefits  Wlefare And Poverty  ,Supplies and Services,Office Furniture & Equipment,201,22/06/2017,1707-00752,0.00,53.26,R,Amazon UK Marketplace,Yes
Http://opendatacommunities.org/id/metropolitan-district-council/leeds,Leeds City Council,31/07/2017,Children and Families,Safeguarding Targeted & Specialist  ,Supplies and Services,Books & Audio-Visual Materials,206,22/06/2017,1707-00753,0.00,13.33,R,Amazon UK Marketplace,Yes
Http://opendatacommunities.org/id/metropolitan-district-council/leeds,Leeds City Council,31/07/2017,Children and Families,Safeguarding Targeted & Specialist  ,Supplies and Services,General Amenity For Clients/Residents,285,22/06/2017,1707-00754,0.00,6.99,R,Amazon UK Marketplace,Yes
Http://opendatacommunities.org/id/metropolitan-district-council/leeds,Leeds City Council,31/07/2017,Children and Families,Safeguarding Targeted & Specialist  ,Supplies and Services,Operational Furniture And Equipment,203,23/06/2017,1707-00755,0.00,9.98,R,Amazon UK Marketplace,Yes
